Workbook

Sheet 部门收支总表
A1: 2019年部门预算收支总表
A2: 填报单位：临湘市文化旅游广电新闻出版局 和 临湘市文化馆 和 临湘市图书馆 和 临湘市花鼓戏保护传承中心 和 临湘市文化市场综合执法大队 和 临湘市影剧院 和 临湘市博物馆 | F2: 单位：元
A3: 收入 | C3: 支出(经济分类） | E3: 支出（功能科目）
A4: 一般预算拨款（补助） | B4: 14,105,630.84 | C4: 基本支出 | D4: 11,207,349.68 | E4: 201、一般公共服务支出 | F4: 0.00
A5: 经费拨款 | B5: 13,655,630.84 | C5: 301、工资福利支出 | D5: 9,573,989.68 | E5: 202、外交支出 | F5: 0.00
A6: 纳入预算管理的非税收入拨款 | B6: 450,000.00 | C6: 302、商品和服务支出 | D6: 1,616,800.00 | E6: 203、国防支出 | F6: 0.00
A7: 纳入专户管理的非税收入拨款 | B7: 200,000.00 | C7: 303、对个人和家庭的补助 | D7: 16,560.00 | E7: 204、公共安全支出 | F7: 0.00
A8: 政府性基金拨款 | B8: 0.00 | C8: 项目支出 | D8: 3,676,000.00 | E8: 205、教育支出 | F8: 0.00
A9: 事业单位经营收入 | B9: 0.00 | C9: 302、商品和服务支出 | D9: 2,848,000.00 | E9: 206、科学技术支出 | F9: 0.00
A10: 上级补助收入 | B10: 0.00 | C10: 303、对个人和家庭的补助 | D10: 0.00 | E10: 207、文化体育与传媒支出 | F10: 12,897,548.12
A11: 附属单位上缴收入 | B11: 0.00 | C11: 307、债务利息及费用支出 | D11: 0.00 | E11: 208、社会保障和就业支出 | F11: 1,424,274.44
A12: 其他收入 | B12: 577,718.84 | C12: 309、资本性支出（基本建设） | D12: 330,000.00 | E12: 209、社保基金支出 | F12: 0.00
A13: 上年结转 | B13: 0.00 | C13: 310、资本性支出 | D13: 498,000.00 | E13: 210、医疗卫生与计划生育支出 | F13: 0.00
C14: 311、对企业补助（基本建设） | D14: 0.00 | E14: 211、节能环保支出 | F14: 0.00
C15: 312、对企业补助 | D15: 0.00 | E15: 212、城乡社区支出 | F15: 0.00
C16: 313、对社会保障金补助 | D16: 0.00 | E16: 213、农林水支出 | F16: 0.00
C17: 399、其他支出 | D17: 0.00 | E17: 214、交通运输支出 | F17: 0.00
E18: 215、资源勘探信息等支出 | F18: 0.00
E19: 216、商业服务业等支出 | F19: 0.00
E20: 217、金融支出 | F20: 0.00
E21: 219、援助其他地区支出 | F21: 0.00
E22: 220、国土海洋气象等支出 | F22: 0.00
E23: 221、住房保障支出 | F23: 561,527.12
E24: 222、粮油物资储备支出 | F24: 0.00
E25: 223、国有资本经营预算支出 | F25: 0.00
E26: 227、预备费 | F26: 0.00
E27: 229、其他支出 | F27: 0.00
E28: 230、转移性支出 | F28: 0.00
E29: 231、债务还本支出 | F29: 0.00
E30: 232、债务付息支出 | F30: 0.00
E31: 233、债务发行费用支出 | F31: 0.00
A33: 本年收入合计 | B33: 14,883,349.68 | C33: 本年支出合计 | D33: 14,883,349.68 | E33: 本年支出合计 | F33: 14,883,349.68
B34: 15,082,509.34
B35: =B34-B33 -> 199,159.66
B36: 1537.87
B37: =B36-B33/10000 -> 49.535032

Sheet 部门收入总表
A2: 部门收入总体情况表
A3: 单位名称：临湘市文化旅游广电新闻出版局 和 临湘市文化馆 和 临湘市图书馆 和 临湘市花鼓戏保护传承中心 和 临湘市文化市场综合执法大队 和 临湘市影剧院 和 临湘市博物馆 | K3: 单位：元
A4: 单位 | C4: 总计 | D4: 一般预算拨款 | F4: 纳入专户管理的非税收入拨款 | G4: 政府性基金拨款 | H4: 上级补助收入 | I4: 附属单位上缴收入 | J4: 其他收入 | K4: 上年结转
A5: 单位代码 | B5: 单位名称 | D5: 经费拨款 | E5: 纳入预算管理的非税收入拨款
B6: 合计 | C6: 14883349.68 | D6: 13655630.84 | E6: 450000.00 | F6: 200000.00 | G6: 0.00 | H6: 0.00 | I6: 0.00 | J6: 577718.84 | K6: 0.00
C7: 14883349.68 | D7: 13655630.84 | E7: 450000.00 | F7: 200000.00 | G7: 0.00 | H7: 0.00 | I7: 0.00 | J7: 577718.84 | K7: 0.00
A8: 403005 | B8: 教科文股 | C8: 2331106.04 | D8: 2137106.04 | E8: 0.00 | F8: 0.00 | G8: 0.00 | H8: 0.00 | I8: 0.00 | J8: 194000.00 | K8: 0.00
A9: 403007 | B9: 教科文股 | C9: 415189.80 | D9: 150000.00 | E9: 0.00 | F9: 200000.00 | G9: 0.00 | H9: 0.00 | I9: 0.00 | J9: 65189.80 | K9: 0.00
A10: 403001 | B10: 教科文股 | C10: 4724154.79 | D10: 4570625.75 | E10: 0.00 | F10: 0.00 | G10: 0.00 | H10: 0.00 | I10: 0.00 | J10: 153529.04 | K10: 0.00
A11: 403008 | B11: 教科文股 | C11: 1528778.54 | D11: 1477778.54 | E11: 50000.00 | F11: 0.00 | G11: 0.00 | H11: 0.00 | I11: 0.00 | J11: 1000.00 | K11: 0.00
A12: 403004 | B12: 教科文股 | C12: 1851618.20 | D12: 1851618.20 | E12: 0.00 | F12: 0.00 | G12: 0.00 | H12: 0.00 | I12: 0.00 | J12: 0.00 | K12: 0.00
A13: 403002 | B13: 教科文股 | C13: 1572009.08 | D13: 1500009.08 | E13: 0.00 | F13: 0.00 | G13: 0.00 | H13: 0.00 | I13: 0.00 | J13: 72000.00 | K13: 0.00
A14: 403006 | B14: 教科文股 | C14: 2460493.23 | D14: 1968493.23 | E14: 400000.00 | F14: 0.00 | G14: 0.00 | H14: 0.00 | I14: 0.00 | J14: 92000.00 | K14: 0.00

Sheet 部门支出总表
A2: 部门支出总体情况表
A3: 单位名称临湘市文化旅游广电新闻出版局 和 临湘市文化馆 和 临湘市图书馆 和 临湘市花鼓戏保护传承中心 和 临湘市文化市场综合执法大队 和 临湘市影剧院 和 临湘市博物馆 | O3: 单位：元
A4: 功能科目 | F4: 总计 | J4: 一般预算拨款 | L4: 纳入专户管理的非税收入拨款 | M4: 政府性基金拨款 | N4: 上级补助收入 | O4: 其他收入
A5: 类 | B5: 款 | C5: 项 | D5: 科目名称 | J5: 经费拨款 | K5: 纳入预算管理的非税收入拨款
D6: 合计 | E6: =F6/10000 -> 1488.33 | F6: 14,883,349.68 | G6: =I6/10000 -> 1,410.56 | H6: =I6/$I$6 -> 100.00% | I6: =SUM(J6:K6) -> 14,105,630.84 | J6: 13,655,630.84 | K6: 450,000.00 | L6: 200,000.00 | M6: 0.00 | N6: 0.00 | O6: 577,718.84
A7: 207 | E7: =F7/10000 -> 1289.75 | F7: 12,897,548.12 | G7: =I7/10000 -> 1,221.19 | H7: =I7/$I$6 -> 86.57% | I7: =SUM(J7:K7) -> 12,211,884.16 | J7: 11,761,884.16 | K7: 450,000.00 | L7: 200,000.00 | M7: 0.00 | N7: 0.00 | O7: 485,663.96
A8: 207 | B8: 1 | E8: 1162.45 | F8: 11,624,528.30 | G8: 1,093.99 | H8: 77.56% | I8: 10,939,864.34 | J8: 10,539,864.34 | K8: 400,000.00 | L8: 200,000.00 | M8: 0.00 | N8: 0.00 | O8: 484,663.96
A9: 207 | B9: 1 | C9: 1 | D9: 行政运行（文化） | E9: 35.65 | F9: 356,455.08 | G9: 15.00 | H9: 1.06% | I9: 150,000.00 | J9: 150,000.00 | K9: 0.00 | L9: 200,000.00 | M9: 0.00 | N9: 0.00 | O9: 6,455.08
A10: 207 | B10: 1 | C10: 1 | D10: 行政运行（文化） | E10: 210.01 | F10: 2,100,085.63 | G10: 200.81 | H10: 14.24% | I10: 2,008,085.63 | J10: 1,608,085.63 | K10: 400,000.00 | L10: 0.00 | M10: 0.00 | N10: 0.00 | O10: 92,000.00
A11: 207 | B11: 1 | C11: 1 | D11: 行政运行（文化） | E11: 412.66 | F11: 4,126,558.75 | G11: 400.63 | H11: 28.40% | I11: 4,006,349.87 | J11: 4,006,349.87 | K11: 0.00 | L11: 0.00 | M11: 0.00 | N11: 0.00 | O11: 120,208.88
A12: 207 | B12: 1 | C12: 4 | D12: 图书馆 | E12: 155.97 | F12: 1,559,741.72 | G12: 155.97 | H12: 11.06% | I12: 1,559,741.72 | J12: 1,559,741.72 | K12: 0.00 | L12: 0.00 | M12: 0.00 | N12: 0.00 | O12: 0.00
A13: 207 | B13: 1 | C13: 7 | D13: 艺术表演团体 | E13: 219.07 | F13: 2,190,742.04 | G13: 199.67 | H13: 14.16% | I13: 1,996,742.04 | J13: 1,996,742.04 | K13: 0.00 | L13: 0.00 | M13: 0.00 | N13: 0.00 | O13: 194,000.00
A14: 207 | B14: 1 | C14: 9 | D14: 群众文化 | E14: 129.09 | F14: 1,290,945.08 | G14: 121.89 | H14: 8.64% | I14: 1,218,945.08 | J14: 1,218,945.08 | K14: 0.00 | L14: 0.00 | M14: 0.00 | N14: 0.00 | O14: 72,000.00
A15: 207 | B15: 2 | E15: 127.30 | F15: 1,273,019.82 | G15: 127.20 | H15: 9.02% | I15: 1,272,019.82 | J15: 1,222,019.82 | K15: 50,000.00 | L15: 0.00 | M15: 0.00 | N15: 0.00 | O15: 1,000.00
A16: 207 | B16: 2 | C16: 4 | D16: 文物保护 | E16: 4.00 | F16: 40,000.00 | G16: 4.00 | H16: 0.28% | I16: 40,000.00 | J16: 30,000.00 | K16: 10,000.00 | L16: 0.00 | M16: 0.00 | N16: 0.00 | O16: 0.00
A17: 207 | B17: 2 | C17: 5 | D17: 博物馆 | E17: 123.30 | F17: 1,233,019.82 | G17: 123.20 | H17: 8.73% | I17: 1,232,019.82 | J17: 1,192,019.82 | K17: 40,000.00 | L17: 0.00 | M17: 0.00 | N17: 0.00 | O17: 1,000.00
A18: 208 | E18: 142.43 | F18: 1,424,274.44 | G18: 135.27 | H18: 9.59% | I18: 1,352,676.20 | J18: 1,352,676.20 | K18: 0.00 | L18: 0.00 | M18: 0.00 | N18: 0.00 | O18: 71,598.24
A19: 208 | B19: 5 | E19: 142.43 | F19: 1,424,274.44 | G19: 135.27 | H19: 9.59% | I19: 1,352,676.20 | J19: 1,352,676.20 | K19: 0.00 | L19: 0.00 | M19: 0.00 | N19: 0.00 | O19: 71,598.24
A20: 208 | B20: 5 | C20: 5 | D20: 机关事业单位基本养老保险缴费支出 | E20: 18.27 | F20: 182,684.80 | G20: 18.27 | H20: 1.30% | I20: 182,684.80 | J20: 182,684.80 | K20: 0.00 | L20: 0.00 | M20: 0.00 | N20: 0.00 | O20: 0.00
A21: 208 | B21: 5 | C21: 5 | D21: 机关事业单位基本养老保险缴费支出 | E21: 20.85 | F21: 208,483.20 | G21: 20.85 | H21: 1.48% | I21: 208,483.20 | J21: 208,483.20 | K21: 0.00 | L21: 0.00 | M21: 0.00 | N21: 0.00 | O21: 0.00
A22: 208 | B22: 5 | C22: 5 | D22: 机关事业单位基本养老保险缴费支出 | E22: 42.16 | F22: 421,565.40 | G22: 40.31 | H22: 2.86% | I22: 403,054.20 | J22: 403,054.20 | K22: 0.00 | L22: 0.00 | M22: 0.00 | N22: 0.00 | O22: 18,511.20
A23: 208 | B23: 5 | C23: 5 | D23: 机关事业单位基本养老保险缴费支出 | E23: 10.03 | F23: 100,260.00 | G23: 10.03 | H23: 0.71% | I23: 100,260.00 | J23: 100,260.00 | K23: 0.00 | L23: 0.00 | M23: 0.00 | N23: 0.00 | O23: 0.00
A24: 208 | B24: 5 | C24: 5 | D24: 机关事业单位基本养老保险缴费支出 | E24: 3.26 | F24: 32,630.40 | G24: 0.00 | H24: 0.00% | I24: 0.00 | J24: 0.00 | K24: 0.00 | L24: 0.00 | M24: 0.00 | N24: 0.00 | O24: 32,630.40
A25: 208 | B25: 5 | C25: 5 | D25: 机关事业单位基本养老保险缴费支出 | E25: 25.74 | F25: 257,434.00 | G25: 25.74 | H25: 1.83% | I25: 257,434.00 | J25: 257,434.00 | K25: 0.00 | L25: 0.00 | M25: 0.00 | N25: 0.00 | O25: 0.00
A26: 208 | B26: 5 | C26: 5 | D26: 机关事业单位基本养老保险缴费支出 | E26: 20.08 | F26: 200,760.00 | G26: 20.08 | H26: 1.42% | I26: 200,760.00 | J26: 200,760.00 | K26: 0.00 | L26: 0.00 | M26: 0.00 | N26: 0.00 | O26: 0.00
A27: 208 | B27: 5 | C27: 6 | D27: 机关事业单位职业年金缴费支出 | E27: 1.31 | F27: 13,052.16 | G27: 0.00 | H27: 0.00% | I27: 0.00 | J27: 0.00 | K27: 0.00 | L27: 0.00 | M27: 0.00 | N27: 0.00 | O27: 13,052.16
A28: 208 | B28: 5 | C28: 6 | D28: 机关事业单位职业年金缴费支出 | E28: 0.74 | F28: 7,404.48 | G28: 0.00 | H28: 0.00% | I28: 0.00 | J28: 0.00 | K28: 0.00 | L28: 0.00 | M28: 0.00 | N28: 0.00 | O28: 7,404.48
A29: 221 | E29: 56.15 | F29: 561,527.12 | G29: 54.11 | H29: 3.84% | I29: 541,070.48 | J29: 541,070.48 | K29: 0.00 | L29: 0.00 | M29: 0.00 | N29: 0.00 | O29: 20,456.64
A30: 221 | B30: 2 | E30: 56.15 | F30: 561,527.12 | G30: 54.11 | H30: 3.84% | I30: 541,070.48 | J30: 541,070.48 | K30: 0.00 | L30: 0.00 | M30: 0.00 | N30: 0.00 | O30: 20,456.64
A31: 221 | B31: 2 | C31: 1 | D31: 住房公积金 | E31: 16.86 | F31: 168,626.16 | G31: 16.12 | H31: 1.14% | I31: 161,221.68 | J31: 161,221.68 | K31: 0.00 | L31: 0.00 | M31: 0.00 | N31: 0.00 | O31: 7,404.48
A32: 221 | B32: 2 | C32: 1 | D32: 住房公积金 | E32: 7.31 | F32: 73,073.92 | G32: 7.31 | H32: 0.52% | I32: 73,073.92 | J32: 73,073.92 | K32: 0.00 | L32: 0.00 | M32: 0.00 | N32: 0.00 | O32: 0.00
A33: 221 | B33: 2 | C33: 1 | D33: 住房公积金 | E33: 1.31 | F33: 13,052.16 | G33: 0.00 | H33: 0.00% | I33: 0.00 | J33: 0.00 | K33: 0.00 | L33: 0.00 | M33: 0.00 | N33: 0.00 | O33: 13,052.16
A34: 221 | B34: 2 | C34: 1 | D34: 住房公积金 | E34: 10.30 | F34: 102,973.60 | G34: 10.30 | H34: 0.73% | I34: 102,973.60 | J34: 102,973.60 | K34: 0.00 | L34: 0.00 | M34: 0.00 | N34: 0.00 | O34: 0.00
A35: 221 | B35: 2 | C35: 1 | D35: 住房公积金 | E35: 8.34 | F35: 83,393.28 | G35: 8.34 | H35: 0.59% | I35: 83,393.28 | J35: 83,393.28 | K35: 0.00 | L35: 0.00 | M35: 0.00 | N35: 0.00 | O35: 0.00
A36: 221 | B36: 2 | C36: 1 | D36: 住房公积金 | E36: 8.03 | F36: 80,304.00 | G36: 8.03 | H36: 0.57% | I36: 80,304.00 | J36: 80,304.00 | K36: 0.00 | L36: 0.00 | M36: 0.00 | N36: 0.00 | O36: 0.00
A37: 221 | B37: 2 | C37: 1 | D37: 住房公积金 | E37: 4.01 | F37: 40,104.00 | G37: 4.01 | H37: 0.28% | I37: 40,104.00 | J37: 40,104.00 | K37: 0.00 | L37: 0.00 | M37: 0.00 | N37: 0.00 | O37: 0.00

Sheet 部门支出总表(分类)
A2: 部门支出总表分类
A3: 单位名称：临湘市文化旅游广电新闻出版局 和 临湘市文化馆 和 临湘市图书馆 和 临湘市花鼓戏保护传承中心 和 临湘市文化市场综合执法大队 和 临湘市影剧院 和 临湘市博物馆 | R3: 单位：元
A4: 功能科目 | E4: 总计 | F4: 基本支出 | J4: 项目支出
A5: 科目编码 | D5: 科目名称 | F5: 合计 | G5: 工资福利支出 | H5: 一般商品和服务支出 | I5: 对个人和家庭的补助 | J5: 合计 | K5: 商品和服务支出 | L5: 对个人和家庭的补助支出 | M5: 基本建设 | N5: 其他资本性支出 | O5: 对企事业单位的补贴 | P5: 对社保基金的补助 | Q5: 其他支出 | R5: 债务利息及费用支出
A6: 类 | B6: 款 | C6: 项
D7: 合计 | E7: 14883349.68 | F7: 11207349.68 | G7: 9573989.68 | H7: 1616800.00 | I7: 16560.00 | J7: 3676000.00 | K7: 2848000.00 | L7: 0.00 | M7: 330000.00 | N7: 498000.00 | O7: 0.00 | P7: 0.00 | Q7: 0.00 | R7: 0.00
A8: 207 | E8: 12897548.12 | F8: 9221548.12 | G8: 7588188.12 | H8: 1616800.00 | I8: 16560.00 | J8: 3676000.00 | K8: 2848000.00 | L8: 0.00 | M8: 330000.00 | N8: 498000.00 | O8: 0.00 | P8: 0.00 | Q8: 0.00 | R8: 0.00
B9: 01 | E9: 11624528.30 | F9: 7988528.30 | G9: 6600568.30 | H9: 1371400.00 | I9: 16560.00 | J9: 3636000.00 | K9: 2838000.00 | L9: 0.00 | M9: 300000.00 | N9: 498000.00 | O9: 0.00 | P9: 0.00 | Q9: 0.00 | R9: 0.00
A10: 207 | B10: 01 | C10: 01 | D10: 行政运行（文化） | E10: 2100085.63 | F10: 1700085.63 | G10: 1391885.63 | H10: 308200.00 | I10: 0.00 | J10: 400000.00 | K10: 380000.00 | L10: 0.00 | M10: 20000.00 | N10: 0.00 | O10: 0.00 | P10: 0.00 | Q10: 0.00 | R10: 0.00
A11: 207 | B11: 01 | C11: 01 | D11: 行政运行（文化） | E11: 4126558.75 | F11: 2846558.75 | G11: 2278358.75 | H11: 568200.00 | I11: 0.00 | J11: 1280000.00 | K11: 1000000.00 | L11: 0.00 | M11: 280000.00 | N11: 0.00 | O11: 0.00 | P11: 0.00 | Q11: 0.00 | R11: 0.00
A12: 207 | B12: 01 | C12: 01 | D12: 行政运行（文化） | E12: 356455.08 | F12: 206455.08 | G12: 176455.08 | H12: 30000.00 | I12: 0.00 | J12: 150000.00 | K12: 150000.00 | L12: 0.00 | M12: 0.00 | N12: 0.00 | O12: 0.00 | P12: 0.00 | Q12: 0.00 | R12: 0.00
A13: 207 | B13: 01 | C13: 04 | D13: 图书馆 | E13: 1559741.72 | F13: 1309741.72 | G13: 1126641.72 | H13: 178000.00 | I13: 5100.00 | J13: 250000.00 | K13: 0.00 | L13: 0.00 | M13: 0.00 | N13: 250000.00 | O13: 0.00 | P13: 0.00 | Q13: 0.00 | R13: 0.00
A14: 207 | B14: 01 | C14: 07 | D14: 艺术表演团体 | E14: 2190742.04 | F14: 634742.04 | G14: 541742.04 | H14: 93000.00 | I14: 0.00 | J14: 1556000.00 | K14: 1308000.00 | L14: 0.00 | M14: 0.00 | N14: 248000.00 | O14: 0.00 | P14: 0.00 | Q14: 0.00 | R14: 0.00
A15: 207 | B15: 01 | C15: 09 | D15: 群众文化 | E15: 1290945.08 | F15: 1290945.08 | G15: 1085485.08 | H15: 194000.00 | I15: 11460.00 | J15: 0.00 | K15: 0.00 | L15: 0.00 | M15: 0.00 | N15: 0.00 | O15: 0.00 | P15: 0.00 | Q15: 0.00 | R15: 0.00
B16: 02 | E16: 1273019.82 | F16: 1233019.82 | G16: 987619.82 | H16: 245400.00 | I16: 0.00 | J16: 40000.00 | K16: 10000.00 | L16: 0.00 | M16: 30000.00 | N16: 0.00 | O16: 0.00 | P16: 0.00 | Q16: 0.00 | R16: 0.00
A17: 207 | B17: 02 | C17: 04 | D17: 文物保护 | E17: 40000.00 | F17: 0.00 | G17: 0.00 | H17: 0.00 | I17: 0.00 | J17: 40000.00 | K17: 10000.00 | L17: 0.00 | M17: 30000.00 | N17: 0.00 | O17: 0.00 | P17: 0.00 | Q17: 0.00 | R17: 0.00
A18: 207 | B18: 02 | C18: 05 | D18: 博物馆 | E18: 1233019.82 | F18: 1233019.82 | G18: 987619.82 | H18: 245400.00 | I18: 0.00 | J18: 0.00 | K18: 0.00 | L18: 0.00 | M18: 0.00 | N18: 0.00 | O18: 0.00 | P18: 0.00 | Q18: 0.00 | R18: 0.00
A19: 208 | E19: 1424274.44 | F19: 1424274.44 | G19: 1424274.44 | H19: 0.00 | I19: 0.00 | J19: 0.00 | K19: 0.00 | L19: 0.00 | M19: 0.00 | N19: 0.00 | O19: 0.00 | P19: 0.00 | Q19: 0.00 | R19: 0.00
B20: 05 | E20: 1424274.44 | F20: 1424274.44 | G20: 1424274.44 | H20: 0.00 | I20: 0.00 | J20: 0.00 | K20: 0.00 | L20: 0.00 | M20: 0.00 | N20: 0.00 | O20: 0.00 | P20: 0.00 | Q20: 0.00 | R20: 0.00
A21: 208 | B21: 05 | C21: 05 | D21: 机关事业单位基本养老保险缴费支出 | E21: 182684.80 | F21: 182684.80 | G21: 182684.80 | H21: 0.00 | I21: 0.00 | J21: 0.00 | K21: 0.00 | L21: 0.00 | M21: 0.00 | N21: 0.00 | O21: 0.00 | P21: 0.00 | Q21: 0.00 | R21: 0.00
A22: 208 | B22: 05 | C22: 05 | D22: 机关事业单位基本养老保险缴费支出 | E22: 208483.20 | F22: 208483.20 | G22: 208483.20 | H22: 0.00 | I22: 0.00 | J22: 0.00 | K22: 0.00 | L22: 0.00 | M22: 0.00 | N22: 0.00 | O22: 0.00 | P22: 0.00 | Q22: 0.00 | R22: 0.00
A23: 208 | B23: 05 | C23: 05 | D23: 机关事业单位基本养老保险缴费支出 | E23: 32630.40 | F23: 32630.40 | G23: 32630.40 | H23: 0.00 | I23: 0.00 | J23: 0.00 | K23: 0.00 | L23: 0.00 | M23: 0.00 | N23: 0.00 | O23: 0.00 | P23: 0.00 | Q23: 0.00 | R23: 0.00
A24: 208 | B24: 05 | C24: 05 | D24: 机关事业单位基本养老保险缴费支出 | E24: 100260.00 | F24: 100260.00 | G24: 100260.00 | H24: 0.00 | I24: 0.00 | J24: 0.00 | K24: 0.00 | L24: 0.00 | M24: 0.00 | N24: 0.00 | O24: 0.00 | P24: 0.00 | Q24: 0.00 | R24: 0.00
A25: 208 | B25: 05 | C25: 05 | D25: 机关事业单位基本养老保险缴费支出 | E25: 200760.00 | F25: 200760.00 | G25: 200760.00 | H25: 0.00 | I25: 0.00 | J25: 0.00 | K25: 0.00 | L25: 0.00 | M25: 0.00 | N25: 0.00 | O25: 0.00 | P25: 0.00 | Q25: 0.00 | R25: 0.00
A26: 208 | B26: 05 | C26: 05 | D26: 机关事业单位基本养老保险缴费支出 | E26: 257434.00 | F26: 257434.00 | G26: 257434.00 | H26: 0.00 | I26: 0.00 | J26: 0.00 | K26: 0.00 | L26: 0.00 | M26: 0.00 | N26: 0.00 | O26: 0.00 | P26: 0.00 | Q26: 0.00 | R26: 0.00
A27: 208 | B27: 05 | C27: 05 | D27: 机关事业单位基本养老保险缴费支出 | E27: 421565.40 | F27: 421565.40 | G27: 421565.40 | H27: 0.00 | I27: 0.00 | J27: 0.00 | K27: 0.00 | L27: 0.00 | M27: 0.00 | N27: 0.00 | O27: 0.00 | P27: 0.00 | Q27: 0.00 | R27: 0.00
A28: 208 | B28: 05 | C28: 06 | D28: 机关事业单位职业年金缴费支出 | E28: 7404.48 | F28: 7404.48 | G28: 7404.48 | H28: 0.00 | I28: 0.00 | J28: 0.00 | K28: 0.00 | L28: 0.00 | M28: 0.00 | N28: 0.00 | O28: 0.00 | P28: 0.00 | Q28: 0.00 | R28: 0.00
A29: 208 | B29: 05 | C29: 06 | D29: 机关事业单位职业年金缴费支出 | E29: 13052.16 | F29: 13052.16 | G29: 13052.16 | H29: 0.00 | I29: 0.00 | J29: 0.00 | K29: 0.00 | L29: 0.00 | M29: 0.00 | N29: 0.00 | O29: 0.00 | P29: 0.00 | Q29: 0.00 | R29: 0.00
A30: 221 | E30: 561527.12 | F30: 561527.12 | G30: 561527.12 | H30: 0.00 | I30: 0.00 | J30: 0.00 | K30: 0.00 | L30: 0.00 | M30: 0.00 | N30: 0.00 | O30: 0.00 | P30: 0.00 | Q30: 0.00 | R30: 0.00
B31: 02 | E31: 561527.12 | F31: 561527.12 | G31: 561527.12 | H31: 0.00 | I31: 0.00 | J31: 0.00 | K31: 0.00 | L31: 0.00 | M31: 0.00 | N31: 0.00 | O31: 0.00 | P31: 0.00 | Q31: 0.00 | R31: 0.00
A32: 221 | B32: 02 | C32: 01 | D32: 住房公积金 | E32: 73073.92 | F32: 73073.92 | G32: 73073.92 | H32: 0.00 | I32: 0.00 | J32: 0.00 | K32: 0.00 | L32: 0.00 | M32: 0.00 | N32: 0.00 | O32: 0.00 | P32: 0.00 | Q32: 0.00 | R32: 0.00
A33: 221 | B33: 02 | C33: 01 | D33: 住房公积金 | E33: 102973.60 | F33: 102973.60 | G33: 102973.60 | H33: 0.00 | I33: 0.00 | J33: 0.00 | K33: 0.00 | L33: 0.00 | M33: 0.00 | N33: 0.00 | O33: 0.00 | P33: 0.00 | Q33: 0.00 | R33: 0.00
A34: 221 | B34: 02 | C34: 01 | D34: 住房公积金 | E34: 40104.00 | F34: 40104.00 | G34: 40104.00 | H34: 0.00 | I34: 0.00 | J34: 0.00 | K34: 0.00 | L34: 0.00 | M34: 0.00 | N34: 0.00 | O34: 0.00 | P34: 0.00 | Q34: 0.00 | R34: 0.00
A35: 221 | B35: 02 | C35: 01 | D35: 住房公积金 | E35: 13052.16 | F35: 13052.16 | G35: 13052.16 | H35: 0.00 | I35: 0.00 | J35: 0.00 | K35: 0.00 | L35: 0.00 | M35: 0.00 | N35: 0.00 | O35: 0.00 | P35: 0.00 | Q35: 0.00 | R35: 0.00
A36: 221 | B36: 02 | C36: 01 | D36: 住房公积金 | E36: 80304.00 | F36: 80304.00 | G36: 80304.00 | H36: 0.00 | I36: 0.00 | J36: 0.00 | K36: 0.00 | L36: 0.00 | M36: 0.00 | N36: 0.00 | O36: 0.00 | P36: 0.00 | Q36: 0.00 | R36: 0.00
A37: 221 | B37: 02 | C37: 01 | D37: 住房公积金 | E37: 168626.16 | F37: 168626.16 | G37: 168626.16 | H37: 0.00 | I37: 0.00 | J37: 0.00 | K37: 0.00 | L37: 0.00 | M37: 0.00 | N37: 0.00 | O37: 0.00 | P37: 0.00 | Q37: 0.00 | R37: 0.00
A38: 221 | B38: 02 | C38: 01 | D38: 住房公积金 | E38: 83393.28 | F38: 83393.28 | G38: 83393.28 | H38: 0.00 | I38: 0.00 | J38: 0.00 | K38: 0.00 | L38: 0.00 | M38: 0.00 | N38: 0.00 | O38: 0.00 | P38: 0.00 | Q38: 0.00 | R38: 0.00

Sheet 支出分类（政府预算）
A2: 部门支出总表(按政府预算经济分类)
A3: 单位名称：临湘市文化旅游广电新闻出版局 和 临湘市文化馆 和 临湘市图书馆 和 临湘市花鼓戏保护传承中心 和 临湘市文化市场综合执法大队 和 临湘市影剧院 和 临湘市博物馆 | T3: 单位：元
A4: 功能科目 | D4: 功能科目 | E4: 总计 | F4: 机关工资福利支出 | G4: 机关商品和服务支出 | H4: 机关资本性支出（一） | I4: 机关资本性支出（二） | J4: 对事业单位经常性补助 | K4: 对事业单位资本性补助 | L4: 对企业补助 | M4: 对企业资本性支出 | N4: 对个人和家庭的补助 | O4: 对社会保障基金补助 | P4: 债务利息及费用支出 | Q4: 预备费及预留 | R4: 转移性支出 | S4: 债务还本支出 | T4: 其他支出
A5: 类 | B5: 款 | C5: 项
D7: 合计 | E7: 14883349.68 | F7: 5871626.56 | G7: 2511800.00 | H7: 0.00 | I7: 330000.00 | J7: 5655363.12 | K7: 498000.00 | L7: 0.00 | M7: 0.00 | N7: 16560.00 | O7: 0.00 | P7: 0.00 | Q7: 0.00 | R7: 0.00 | S7: 0.00 | T7: 0.00
A8: 207 | E8: 12897548.12 | F8: 4657864.20 | G8: 2511800.00 | H8: 0.00 | I8: 330000.00 | J8: 4883323.92 | K8: 498000.00 | L8: 0.00 | M8: 0.00 | N8: 16560.00 | O8: 0.00 | P8: 0.00 | Q8: 0.00 | R8: 0.00 | S8: 0.00 | T8: 0.00
A9: 207 | B9: 01 | E9: 11624528.30 | F9: 3670244.38 | G9: 2256400.00 | H9: 0.00 | I9: 300000.00 | J9: 4883323.92 | K9: 498000.00 | L9: 0.00 | M9: 0.00 | N9: 16560.00 | O9: 0.00 | P9: 0.00 | Q9: 0.00 | R9: 0.00 | S9: 0.00 | T9: 0.00
A10: 207 | B10: 01 | C10: 01 | D10: 行政运行（文化） | E10: 4126558.75 | F10: 2278358.75 | G10: 1568200.00 | H10: 0.00 | I10: 280000.00 | J10: 0.00 | K10: 0.00 | L10: 0.00 | M10: 0.00 | N10: 0.00 | O10: 0.00 | P10: 0.00 | Q10: 0.00 | R10: 0.00 | S10: 0.00 | T10: 0.00
A11: 207 | B11: 01 | C11: 01 | D11: 行政运行（文化） | E11: 2100085.63 | F11: 1391885.63 | G11: 688200.00 | H11: 0.00 | I11: 20000.00 | J11: 0.00 | K11: 0.00 | L11: 0.00 | M11: 0.00 | N11: 0.00 | O11: 0.00 | P11: 0.00 | Q11: 0.00 | R11: 0.00 | S11: 0.00 | T11: 0.00
A12: 207 | B12: 01 | C12: 01 | D12: 行政运行（文化） | E12: 356455.08 | F12: 0.00 | G12: 0.00 | H12: 0.00 | I12: 0.00 | J12: 356455.08 | K12: 0.00 | L12: 0.00 | M12: 0.00 | N12: 0.00 | O12: 0.00 | P12: 0.00 | Q12: 0.00 | R12: 0.00 | S12: 0.00 | T12: 0.00
A13: 207 | B13: 01 | C13: 04 | D13: 图书馆 | E13: 1559741.72 | F13: 0.00 | G13: 0.00 | H13: 0.00 | I13: 0.00 | J13: 1304641.72 | K13: 250000.00 | L13: 0.00 | M13: 0.00 | N13: 5100.00 | O13: 0.00 | P13: 0.00 | Q13: 0.00 | R13: 0.00 | S13: 0.00 | T13: 0.00
A14: 207 | B14: 01 | C14: 07 | D14: 艺术表演团体 | E14: 2190742.04 | F14: 0.00 | G14: 0.00 | H14: 0.00 | I14: 0.00 | J14: 1942742.04 | K14: 248000.00 | L14: 0.00 | M14: 0.00 | N14: 0.00 | O14: 0.00 | P14: 0.00 | Q14: 0.00 | R14: 0.00 | S14: 0.00 | T14: 0.00
A15: 207 | B15: 01 | C15: 09 | D15: 群众文化 | E15: 1290945.08 | F15: 0.00 | G15: 0.00 | H15: 0.00 | I15: 0.00 | J15: 1279485.08 | K15: 0.00 | L15: 0.00 | M15: 0.00 | N15: 11460.00 | O15: 0.00 | P15: 0.00 | Q15: 0.00 | R15: 0.00 | S15: 0.00 | T15: 0.00
A16: 207 | B16: 02 | E16: 1273019.82 | F16: 987619.82 | G16: 255400.00 | H16: 0.00 | I16: 30000.00 | J16: 0.00 | K16: 0.00 | L16: 0.00 | M16: 0.00 | N16: 0.00 | O16: 0.00 | P16: 0.00 | Q16: 0.00 | R16: 0.00 | S16: 0.00 | T16: 0.00
A17: 207 | B17: 02 | C17: 04 | D17: 文物保护 | E17: 40000.00 | F17: 0.00 | G17: 10000.00 | H17: 0.00 | I17: 30000.00 | J17: 0.00 | K17: 0.00 | L17: 0.00 | M17: 0.00 | N17: 0.00 | O17: 0.00 | P17: 0.00 | Q17: 0.00 | R17: 0.00 | S17: 0.00 | T17: 0.00
A18: 207 | B18: 02 | C18: 05 | D18: 博物馆 | E18: 1233019.82 | F18: 987619.82 | G18: 245400.00 | H18: 0.00 | I18: 0.00 | J18: 0.00 | K18: 0.00 | L18: 0.00 | M18: 0.00 | N18: 0.00 | O18: 0.00 | P18: 0.00 | Q18: 0.00 | R18: 0.00 | S18: 0.00 | T18: 0.00
A19: 208 | E19: 1424274.44 | F19: 869088.68 | G19: 0.00 | H19: 0.00 | I19: 0.00 | J19: 555185.76 | K19: 0.00 | L19: 0.00 | M19: 0.00 | N19: 0.00 | O19: 0.00 | P19: 0.00 | Q19: 0.00 | R19: 0.00 | S19: 0.00 | T19: 0.00
A20: 208 | B20: 05 | E20: 1424274.44 | F20: 869088.68 | G20: 0.00 | H20: 0.00 | I20: 0.00 | J20: 555185.76 | K20: 0.00 | L20: 0.00 | M20: 0.00 | N20: 0.00 | O20: 0.00 | P20: 0.00 | Q20: 0.00 | R20: 0.00 | S20: 0.00 | T20: 0.00
A21: 208 | B21: 05 | C21: 05 | D21: 机关事业单位基本养老保险缴费支出 | E21: 421565.40 | F21: 421565.40 | G21: 0.00 | H21: 0.00 | I21: 0.00 | J21: 0.00 | K21: 0.00 | L21: 0.00 | M21: 0.00 | N21: 0.00 | O21: 0.00 | P21: 0.00 | Q21: 0.00 | R21: 0.00 | S21: 0.00 | T21: 0.00
A22: 208 | B22: 05 | C22: 05 | D22: 机关事业单位基本养老保险缴费支出 | E22: 200760.00 | F22: 0.00 | G22: 0.00 | H22: 0.00 | I22: 0.00 | J22: 200760.00 | K22: 0.00 | L22: 0.00 | M22: 0.00 | N22: 0.00 | O22: 0.00 | P22: 0.00 | Q22: 0.00 | R22: 0.00 | S22: 0.00 | T22: 0.00
A23: 208 | B23: 05 | C23: 05 | D23: 机关事业单位基本养老保险缴费支出 | E23: 208483.20 | F23: 0.00 | G23: 0.00 | H23: 0.00 | I23: 0.00 | J23: 208483.20 | K23: 0.00 | L23: 0.00 | M23: 0.00 | N23: 0.00 | O23: 0.00 | P23: 0.00 | Q23: 0.00 | R23: 0.00 | S23: 0.00 | T23: 0.00
A24: 208 | B24: 05 | C24: 05 | D24: 机关事业单位基本养老保险缴费支出 | E24: 100260.00 | F24: 0.00 | G24: 0.00 | H24: 0.00 | I24: 0.00 | J24: 100260.00 | K24: 0.00 | L24: 0.00 | M24: 0.00 | N24: 0.00 | O24: 0.00 | P24: 0.00 | Q24: 0.00 | R24: 0.00 | S24: 0.00 | T24: 0.00
A25: 208 | B25: 05 | C25: 05 | D25: 机关事业单位基本养老保险缴费支出 | E25: 257434.00 | F25: 257434.00 | G25: 0.00 | H25: 0.00 | I25: 0.00 | J25: 0.00 | K25: 0.00 | L25: 0.00 | M25: 0.00 | N25: 0.00 | O25: 0.00 | P25: 0.00 | Q25: 0.00 | R25: 0.00 | S25: 0.00 | T25: 0.00
A26: 208 | B26: 05 | C26: 05 | D26: 机关事业单位基本养老保险缴费支出 | E26: 32630.40 | F26: 0.00 | G26: 0.00 | H26: 0.00 | I26: 0.00 | J26: 32630.40 | K26: 0.00 | L26: 0.00 | M26: 0.00 | N26: 0.00 | O26: 0.00 | P26: 0.00 | Q26: 0.00 | R26: 0.00 | S26: 0.00 | T26: 0.00
A27: 208 | B27: 05 | C27: 05 | D27: 机关事业单位基本养老保险缴费支出 | E27: 182684.80 | F27: 182684.80 | G27: 0.00 | H27: 0.00 | I27: 0.00 | J27: 0.00 | K27: 0.00 | L27: 0.00 | M27: 0.00 | N27: 0.00 | O27: 0.00 | P27: 0.00 | Q27: 0.00 | R27: 0.00 | S27: 0.00 | T27: 0.00
A28: 208 | B28: 05 | C28: 06 | D28: 机关事业单位职业年金缴费支出 | E28: 7404.48 | F28: 7404.48 | G28: 0.00 | H28: 0.00 | I28: 0.00 | J28: 0.00 | K28: 0.00 | L28: 0.00 | M28: 0.00 | N28: 0.00 | O28: 0.00 | P28: 0.00 | Q28: 0.00 | R28: 0.00 | S28: 0.00 | T28: 0.00
A29: 208 | B29: 05 | C29: 06 | D29: 机关事业单位职业年金缴费支出 | E29: 13052.16 | F29: 0.00 | G29: 0.00 | H29: 0.00 | I29: 0.00 | J29: 13052.16 | K29: 0.00 | L29: 0.00 | M29: 0.00 | N29: 0.00 | O29: 0.00 | P29: 0.00 | Q29: 0.00 | R29: 0.00 | S29: 0.00 | T29: 0.00
A30: 221 | E30: 561527.12 | F30: 344673.68 | G30: 0.00 | H30: 0.00 | I30: 0.00 | J30: 216853.44 | K30: 0.00 | L30: 0.00 | M30: 0.00 | N30: 0.00 | O30: 0.00 | P30: 0.00 | Q30: 0.00 | R30: 0.00 | S30: 0.00 | T30: 0.00
A31: 221 | B31: 02 | E31: 561527.12 | F31: 344673.68 | G31: 0.00 | H31: 0.00 | I31: 0.00 | J31: 216853.44 | K31: 0.00 | L31: 0.00 | M31: 0.00 | N31: 0.00 | O31: 0.00 | P31: 0.00 | Q31: 0.00 | R31: 0.00 | S31: 0.00 | T31: 0.00
A32: 221 | B32: 02 | C32: 01 | D32: 住房公积金 | E32: 168626.16 | F32: 168626.16 | G32: 0.00 | H32: 0.00 | I32: 0.00 | J32: 0.00 | K32: 0.00 | L32: 0.00 | M32: 0.00 | N32: 0.00 | O32: 0.00 | P32: 0.00 | Q32: 0.00 | R32: 0.00 | S32: 0.00 | T32: 0.00
A33: 221 | B33: 02 | C33: 01 | D33: 住房公积金 | E33: 80304.00 | F33: 0.00 | G33: 0.00 | H33: 0.00 | I33: 0.00 | J33: 80304.00 | K33: 0.00 | L33: 0.00 | M33: 0.00 | N33: 0.00 | O33: 0.00 | P33: 0.00 | Q33: 0.00 | R33: 0.00 | S33: 0.00 | T33: 0.00
A34: 221 | B34: 02 | C34: 01 | D34: 住房公积金 | E34: 83393.28 | F34: 0.00 | G34: 0.00 | H34: 0.00 | I34: 0.00 | J34: 83393.28 | K34: 0.00 | L34: 0.00 | M34: 0.00 | N34: 0.00 | O34: 0.00 | P34: 0.00 | Q34: 0.00 | R34: 0.00 | S34: 0.00 | T34: 0.00
A35: 221 | B35: 02 | C35: 01 | D35: 住房公积金 | E35: 40104.00 | F35: 0.00 | G35: 0.00 | H35: 0.00 | I35: 0.00 | J35: 40104.00 | K35: 0.00 | L35: 0.00 | M35: 0.00 | N35: 0.00 | O35: 0.00 | P35: 0.00 | Q35: 0.00 | R35: 0.00 | S35: 0.00 | T35: 0.00
A36: 221 | B36: 02 | C36: 01 | D36: 住房公积金 | E36: 102973.60 | F36: 102973.60 | G36: 0.00 | H36: 0.00 | I36: 0.00 | J36: 0.00 | K36: 0.00 | L36: 0.00 | M36: 0.00 | N36: 0.00 | O36: 0.00 | P36: 0.00 | Q36: 0.00 | R36: 0.00 | S36: 0.00 | T36: 0.00
A37: 221 | B37: 02 | C37: 01 | D37: 住房公积金 | E37: 13052.16 | F37: 0.00 | G37: 0.00 | H37: 0.00 | I37: 0.00 | J37: 13052.16 | K37: 0.00 | L37: 0.00 | M37: 0.00 | N37: 0.00 | O37: 0.00 | P37: 0.00 | Q37: 0.00 | R37: 0.00 | S37: 0.00 | T37: 0.00
A38: 221 | B38: 02 | C38: 01 | D38: 住房公积金 | E38: 73073.92 | F38: 73073.92 | G38: 0.00 | H38: 0.00 | I38: 0.00 | J38: 0.00 | K38: 0.00 | L38: 0.00 | M38: 0.00 | N38: 0.00 | O38: 0.00 | P38: 0.00 | Q38: 0.00 | R38: 0.00 | S38: 0.00 | T38: 0.00

Sheet 基本-工资福利
A2: 基本支出预算明细表-工资福利
A3: 单位名称：临湘市文化旅游广电新闻出版局 和 临湘市文化馆 和 临湘市图书馆 和 临湘市花鼓戏保护传承中心 和 临湘市文化市场综合执法大队 和 临湘市影剧院 和 临湘市博物馆 | U3: 单位：元
A4: 功能科目 | D4: 科目名称 | E4: 总计 | F4: 工资性支出 | K4: 社会保障缴费 | S4: 伙食补贴支出 | U4: 其他工资福利支出
A5: 类 | B5: 款 | C5: 项 | F5: 合计 | G5: 基本工资 | H5: 津贴补贴 | I5: 奖金 | J5: 绩效工资 | K5: 合计 | L5: 基本医疗保险 | M5: 医疗费 | N5: 其他社会保障缴费 | O5: 机关事业单位基本养老保险缴费 | P5: 职业年金 | Q5: 住房公积金 | R5: 公务员医疗补助缴费 | S5: 合计 | T5: 伙食补助费
D6: 合计 | E6: 9573989.68 | F6: 7019089.00 | G6: 4102572.00 | H6: 1146240.00 | I6: 157249.00 | J6: 1613028.00 | K6: 2554900.68 | L6: 491336.23 | M6: 0.00 | N6: 77762.89 | O6: 1403817.80 | P6: 20456.64 | Q6: 561527.12 | R6: 0.00 | S6: 0.00 | T6: 0.00 | U6: 0.00
A7: 207 | D7: 行政运行（文化） | E7: 7588188.12 | F7: 7019089.00 | G7: 4102572.00 | H7: 1146240.00 | I7: 157249.00 | J7: 1613028.00 | K7: 569099.12 | L7: 491336.23 | M7: 0.00 | N7: 77762.89 | O7: 0.00 | P7: 0.00 | Q7: 0.00 | R7: 0.00 | S7: 0.00 | T7: 0.00 | U7: 0.00
A8: 207 | B8: 01 | D8: 行政运行（文化） | E8: 6600568.30 | F8: 6105665.00 | G8: 3577704.00 | H8: 905964.00 | I8: 125429.00 | J8: 1496568.00 | K8: 494903.30 | L8: 427396.55 | M8: 0.00 | N8: 67506.75 | O8: 0.00 | P8: 0.00 | Q8: 0.00 | R8: 0.00 | S8: 0.00 | T8: 0.00 | U8: 0.00
A9: 207 | B9: 01 | C9: 01 | D9: 行政运行（文化） | E9: 1391885.63 | F9: 1287170.00 | G9: 739860.00 | H9: 382212.00 | I9: 50690.00 | J9: 114408.00 | K9: 104715.63 | L9: 90101.90 | M9: 0.00 | N9: 14613.73 | O9: 0.00 | P9: 0.00 | Q9: 0.00 | R9: 0.00 | S9: 0.00 | T9: 0.00 | U9: 0.00
A10: 207 | B10: 01 | C10: 01 | D10: 行政运行（文化） | E10: 2278358.75 | F10: 2107827.00 | G10: 1236996.00 | H10: 523752.00 | I10: 74739.00 | J10: 272340.00 | K10: 170531.75 | L10: 147547.89 | M10: 0.00 | N10: 22983.86 | O10: 0.00 | P10: 0.00 | Q10: 0.00 | R10: 0.00 | S10: 0.00 | T10: 0.00 | U10: 0.00
A11: 207 | B11: 01 | C11: 01 | D11: 行政运行（文化） | E11: 176455.08 | F11: 163152.00 | G11: 92520.00 | H11: 0.00 | I11: 0.00 | J11: 70632.00 | K11: 13303.08 | L11: 11420.64 | M11: 0.00 | N11: 1882.44 | O11: 0.00 | P11: 0.00 | Q11: 0.00 | R11: 0.00 | S11: 0.00 | T11: 0.00 | U11: 0.00
A12: 207 | B12: 01 | C12: 04 | D12: 图书馆 | E12: 1126641.72 | F12: 1042416.00 | G12: 624876.00 | H12: 0.00 | I12: 0.00 | J12: 417540.00 | K12: 84225.72 | L12: 72969.12 | M12: 0.00 | N12: 11256.60 | O12: 0.00 | P12: 0.00 | Q12: 0.00 | R12: 0.00 | S12: 0.00 | T12: 0.00 | U12: 0.00
A13: 207 | B13: 01 | C13: 07 | D13: 艺术表演团体 | E13: 541742.04 | F13: 501300.00 | G13: 308868.00 | H13: 0.00 | I13: 0.00 | J13: 192432.00 | K13: 40442.04 | L13: 35091.00 | M13: 0.00 | N13: 5351.04 | O13: 0.00 | P13: 0.00 | Q13: 0.00 | R13: 0.00 | S13: 0.00 | T13: 0.00 | U13: 0.00
A14: 207 | B14: 01 | C14: 09 | D14: 群众文化 | E14: 1085485.08 | F14: 1003800.00 | G14: 574584.00 | H14: 0.00 | I14: 0.00 | J14: 429216.00 | K14: 81685.08 | L14: 70266.00 | M14: 0.00 | N14: 11419.08 | O14: 0.00 | P14: 0.00 | Q14: 0.00 | R14: 0.00 | S14: 0.00 | T14: 0.00 | U14: 0.00
A15: 207 | B15: 02 | D15: 博物馆 | E15: 987619.82 | F15: 913424.00 | G15: 524868.00 | H15: 240276.00 | I15: 31820.00 | J15: 116460.00 | K15: 74195.82 | L15: 63939.68 | M15: 0.00 | N15: 10256.14 | O15: 0.00 | P15: 0.00 | Q15: 0.00 | R15: 0.00 | S15: 0.00 | T15: 0.00 | U15: 0.00
A16: 207 | B16: 02 | C16: 05 | D16: 博物馆 | E16: 987619.82 | F16: 913424.00 | G16: 524868.00 | H16: 240276.00 | I16: 31820.00 | J16: 116460.00 | K16: 74195.82 | L16: 63939.68 | M16: 0.00 | N16: 10256.14 | O16: 0.00 | P16: 0.00 | Q16: 0.00 | R16: 0.00 | S16: 0.00 | T16: 0.00 | U16: 0.00
A17: 208 | D17: 机关事业单位基本养老保险缴费支出 | E17: 1424274.44 | F17: 0.00 | G17: 0.00 | H17: 0.00 | I17: 0.00 | J17: 0.00 | K17: 1424274.44 | L17: 0.00 | M17: 0.00 | N17: 0.00 | O17: 1403817.80 | P17: 20456.64 | Q17: 0.00 | R17: 0.00 | S17: 0.00 | T17: 0.00 | U17: 0.00
A18: 208 | B18: 05 | D18: 机关事业单位基本养老保险缴费支出 | E18: 1424274.44 | F18: 0.00 | G18: 0.00 | H18: 0.00 | I18: 0.00 | J18: 0.00 | K18: 1424274.44 | L18: 0.00 | M18: 0.00 | N18: 0.00 | O18: 1403817.80 | P18: 20456.64 | Q18: 0.00 | R18: 0.00 | S18: 0.00 | T18: 0.00 | U18: 0.00
A19: 208 | B19: 05 | C19: 05 | D19: 机关事业单位基本养老保险缴费支出 | E19: 257434.00 | F19: 0.00 | G19: 0.00 | H19: 0.00 | I19: 0.00 | J19: 0.00 | K19: 257434.00 | L19: 0.00 | M19: 0.00 | N19: 0.00 | O19: 257434.00 | P19: 0.00 | Q19: 0.00 | R19: 0.00 | S19: 0.00 | T19: 0.00 | U19: 0.00
A20: 208 | B20: 05 | C20: 05 | D20: 机关事业单位基本养老保险缴费支出 | E20: 421565.40 | F20: 0.00 | G20: 0.00 | H20: 0.00 | I20: 0.00 | J20: 0.00 | K20: 421565.40 | L20: 0.00 | M20: 0.00 | N20: 0.00 | O20: 421565.40 | P20: 0.00 | Q20: 0.00 | R20: 0.00 | S20: 0.00 | T20: 0.00 | U20: 0.00
A21: 208 | B21: 05 | C21: 05 | D21: 机关事业单位基本养老保险缴费支出 | E21: 200760.00 | F21: 0.00 | G21: 0.00 | H21: 0.00 | I21: 0.00 | J21: 0.00 | K21: 200760.00 | L21: 0.00 | M21: 0.00 | N21: 0.00 | O21: 200760.00 | P21: 0.00 | Q21: 0.00 | R21: 0.00 | S21: 0.00 | T21: 0.00 | U21: 0.00
A22: 208 | B22: 05 | C22: 05 | D22: 机关事业单位基本养老保险缴费支出 | E22: 182684.80 | F22: 0.00 | G22: 0.00 | H22: 0.00 | I22: 0.00 | J22: 0.00 | K22: 182684.80 | L22: 0.00 | M22: 0.00 | N22: 0.00 | O22: 182684.80 | P22: 0.00 | Q22: 0.00 | R22: 0.00 | S22: 0.00 | T22: 0.00 | U22: 0.00
A23: 208 | B23: 05 | C23: 05 | D23: 机关事业单位基本养老保险缴费支出 | E23: 208483.20 | F23: 0.00 | G23: 0.00 | H23: 0.00 | I23: 0.00 | J23: 0.00 | K23: 208483.20 | L23: 0.00 | M23: 0.00 | N23: 0.00 | O23: 208483.20 | P23: 0.00 | Q23: 0.00 | R23: 0.00 | S23: 0.00 | T23: 0.00 | U23: 0.00
A24: 208 | B24: 05 | C24: 05 | D24: 机关事业单位基本养老保险缴费支出 | E24: 32630.40 | F24: 0.00 | G24: 0.00 | H24: 0.00 | I24: 0.00 | J24: 0.00 | K24: 32630.40 | L24: 0.00 | M24: 0.00 | N24: 0.00 | O24: 32630.40 | P24: 0.00 | Q24: 0.00 | R24: 0.00 | S24: 0.00 | T24: 0.00 | U24: 0.00
A25: 208 | B25: 05 | C25: 05 | D25: 机关事业单位基本养老保险缴费支出 | E25: 100260.00 | F25: 0.00 | G25: 0.00 | H25: 0.00 | I25: 0.00 | J25: 0.00 | K25: 100260.00 | L25: 0.00 | M25: 0.00 | N25: 0.00 | O25: 100260.00 | P25: 0.00 | Q25: 0.00 | R25: 0.00 | S25: 0.00 | T25: 0.00 | U25: 0.00
A26: 208 | B26: 05 | C26: 06 | D26: 机关事业单位职业年金缴费支出 | E26: 7404.48 | F26: 0.00 | G26: 0.00 | H26: 0.00 | I26: 0.00 | J26: 0.00 | K26: 7404.48 | L26: 0.00 | M26: 0.00 | N26: 0.00 | O26: 0.00 | P26: 7404.48 | Q26: 0.00 | R26: 0.00 | S26: 0.00 | T26: 0.00 | U26: 0.00
A27: 208 | B27: 05 | C27: 06 | D27: 机关事业单位职业年金缴费支出 | E27: 13052.16 | F27: 0.00 | G27: 0.00 | H27: 0.00 | I27: 0.00 | J27: 0.00 | K27: 13052.16 | L27: 0.00 | M27: 0.00 | N27: 0.00 | O27: 0.00 | P27: 13052.16 | Q27: 0.00 | R27: 0.00 | S27: 0.00 | T27: 0.00 | U27: 0.00
A28: 221 | D28: 住房公积金 | E28: 561527.12 | F28: 0.00 | G28: 0.00 | H28: 0.00 | I28: 0.00 | J28: 0.00 | K28: 561527.12 | L28: 0.00 | M28: 0.00 | N28: 0.00 | O28: 0.00 | P28: 0.00 | Q28: 561527.12 | R28: 0.00 | S28: 0.00 | T28: 0.00 | U28: 0.00
A29: 221 | B29: 02 | D29: 住房公积金 | E29: 561527.12 | F29: 0.00 | G29: 0.00 | H29: 0.00 | I29: 0.00 | J29: 0.00 | K29: 561527.12 | L29: 0.00 | M29: 0.00 | N29: 0.00 | O29: 0.00 | P29: 0.00 | Q29: 561527.12 | R29: 0.00 | S29: 0.00 | T29: 0.00 | U29: 0.00
A30: 221 | B30: 02 | C30: 01 | D30: 住房公积金 | E30: 40104.00 | F30: 0.00 | G30: 0.00 | H30: 0.00 | I30: 0.00 | J30: 0.00 | K30: 40104.00 | L30: 0.00 | M30: 0.00 | N30: 0.00 | O30: 0.00 | P30: 0.00 | Q30: 40104.00 | R30: 0.00 | S30: 0.00 | T30: 0.00 | U30: 0.00
A31: 221 | B31: 02 | C31: 01 | D31: 住房公积金 | E31: 13052.16 | F31: 0.00 | G31: 0.00 | H31: 0.00 | I31: 0.00 | J31: 0.00 | K31: 13052.16 | L31: 0.00 | M31: 0.00 | N31: 0.00 | O31: 0.00 | P31: 0.00 | Q31: 13052.16 | R31: 0.00 | S31: 0.00 | T31: 0.00 | U31: 0.00
A32: 221 | B32: 02 | C32: 01 | D32: 住房公积金 | E32: 102973.60 | F32: 0.00 | G32: 0.00 | H32: 0.00 | I32: 0.00 | J32: 0.00 | K32: 102973.60 | L32: 0.00 | M32: 0.00 | N32: 0.00 | O32: 0.00 | P32: 0.00 | Q32: 102973.60 | R32: 0.00 | S32: 0.00 | T32: 0.00 | U32: 0.00
A33: 221 | B33: 02 | C33: 01 | D33: 住房公积金 | E33: 73073.92 | F33: 0.00 | G33: 0.00 | H33: 0.00 | I33: 0.00 | J33: 0.00 | K33: 73073.92 | L33: 0.00 | M33: 0.00 | N33: 0.00 | O33: 0.00 | P33: 0.00 | Q33: 73073.92 | R33: 0.00 | S33: 0.00 | T33: 0.00 | U33: 0.00
A34: 221 | B34: 02 | C34: 01 | D34: 住房公积金 | E34: 83393.28 | F34: 0.00 | G34: 0.00 | H34: 0.00 | I34: 0.00 | J34: 0.00 | K34: 83393.28 | L34: 0.00 | M34: 0.00 | N34: 0.00 | O34: 0.00 | P34: 0.00 | Q34: 83393.28 | R34: 0.00 | S34: 0.00 | T34: 0.00 | U34: 0.00
A35: 221 | B35: 02 | C35: 01 | D35: 住房公积金 | E35: 80304.00 | F35: 0.00 | G35: 0.00 | H35: 0.00 | I35: 0.00 | J35: 0.00 | K35: 80304.00 | L35: 0.00 | M35: 0.00 | N35: 0.00 | O35: 0.00 | P35: 0.00 | Q35: 80304.00 | R35: 0.00 | S35: 0.00 | T35: 0.00 | U35: 0.00
A36: 221 | B36: 02 | C36: 01 | D36: 住房公积金 | E36: 168626.16 | F36: 0.00 | G36: 0.00 | H36: 0.00 | I36: 0.00 | J36: 0.00 | K36: 168626.16 | L36: 0.00 | M36: 0.00 | N36: 0.00 | O36: 0.00 | P36: 0.00 | Q36: 168626.16 | R36: 0.00 | S36: 0.00 | T36: 0.00 | U36: 0.00

Sheet 基本-工资福利（政府预算）
A2: 基本支出预算明细表-工资福利（政府预算）
A3: 单位名称：临湘市文化旅游广电新闻出版局 和 临湘市文化馆 和 临湘市图书馆 和 临湘市花鼓戏保护传承中心 和 临湘市文化市场综合执法大队 和 临湘市影剧院 和 临湘市博物馆 | M3: 单位：元
A4: 功能科目 | D4: 科目名称 | E4: 总计 | F4: 机关工资福利支出 | K4: 对事业单位经常性补助
A5: 类 | B5: 款 | C5: 项 | F5: 合计 | G5: 工资奖金津补贴 | H5: 社会保障缴费 | I5: 住房公积金 | J5: 其他工资福利支出 | K5: 合计 | L5: 工资福利支出 | M5: 其他对事业单位补助
D6: 合计 | E6: 9573989.68 | F6: 5871626.56 | G6: 4308421.00 | H6: 1218531.88 | I6: 344673.68 | J6: 0.00 | K6: 3702363.12 | L6: 3702363.12 | M6: 0.00
A7: 207 | D7: 行政运行（文化） | E7: 7588188.12 | F7: 4657864.20 | G7: 4308421.00 | H7: 349443.20 | I7: 0.00 | J7: 0.00 | K7: 2930323.92 | L7: 2930323.92 | M7: 0.00
A8: 207 | D8: 1 | E8: 6600568.30 | F8: 3670244.38 | G8: 3394997.00 | H8: 275247.38 | I8: 0.00 | J8: 0.00 | K8: 2930323.92 | L8: 2930323.92 | M8: 0.00
A9: 207 | B9: 01 | C9: 01 | D9: 行政运行（文化） | E9: 2278358.75 | F9: 2278358.75 | G9: 2107827.00 | H9: 170531.75 | I9: 0.00 | J9: 0.00 | K9: 0.00 | L9: 0.00 | M9: 0.00
A10: 207 | B10: 01 | C10: 01 | D10: 行政运行（文化） | E10: 1391885.63 | F10: 1391885.63 | G10: 1287170.00 | H10: 104715.63 | I10: 0.00 | J10: 0.00 | K10: 0.00 | L10: 0.00 | M10: 0.00
A11: 207 | B11: 01 | C11: 01 | D11: 行政运行（文化） | E11: 176455.08 | F11: 0.00 | G11: 0.00 | H11: 0.00 | I11: 0.00 | J11: 0.00 | K11: 176455.08 | L11: 176455.08 | M11: 0.00
A12: 207 | B12: 01 | C12: 04 | D12: 图书馆 | E12: 1126641.72 | F12: 0.00 | G12: 0.00 | H12: 0.00 | I12: 0.00 | J12: 0.00 | K12: 1126641.72 | L12: 1126641.72 | M12: 0.00
A13: 207 | B13: 01 | C13: 07 | D13: 艺术表演团体 | E13: 541742.04 | F13: 0.00 | G13: 0.00 | H13: 0.00 | I13: 0.00 | J13: 0.00 | K13: 541742.04 | L13: 541742.04 | M13: 0.00
A14: 207 | B14: 01 | C14: 09 | D14: 群众文化 | E14: 1085485.08 | F14: 0.00 | G14: 0.00 | H14: 0.00 | I14: 0.00 | J14: 0.00 | K14: 1085485.08 | L14: 1085485.08 | M14: 0.00
A15: 207 | D15: 2 | E15: 987619.82 | F15: 987619.82 | G15: 913424.00 | H15: 74195.82 | I15: 0.00 | J15: 0.00 | K15: 0.00 | L15: 0.00 | M15: 0.00
A16: 207 | B16: 02 | C16: 05 | D16: 博物馆 | E16: 987619.82 | F16: 987619.82 | G16: 913424.00 | H16: 74195.82 | I16: 0.00 | J16: 0.00 | K16: 0.00 | L16: 0.00 | M16: 0.00
A17: 208 | D17: 机关事业单位基本养老保险缴费支出 | E17: 1424274.44 | F17: 869088.68 | G17: 0.00 | H17: 869088.68 | I17: 0.00 | J17: 0.00 | K17: 555185.76 | L17: 555185.76 | M17: 0.00
A18: 208 | D18: 5 | E18: 1424274.44 | F18: 869088.68 | G18: 0.00 | H18: 869088.68 | I18: 0.00 | J18: 0.00 | K18: 555185.76 | L18: 555185.76 | M18: 0.00
A19: 208 | B19: 05 | C19: 05 | D19: 机关事业单位基本养老保险缴费支出 | E19: 421565.40 | F19: 421565.40 | G19: 0.00 | H19: 421565.40 | I19: 0.00 | J19: 0.00 | K19: 0.00 | L19: 0.00 | M19: 0.00
A20: 208 | B20: 05 | C20: 05 | D20: 机关事业单位基本养老保险缴费支出 | E20: 200760.00 | F20: 0.00 | G20: 0.00 | H20: 0.00 | I20: 0.00 | J20: 0.00 | K20: 200760.00 | L20: 200760.00 | M20: 0.00
A21: 208 | B21: 05 | C21: 05 | D21: 机关事业单位基本养老保险缴费支出 | E21: 208483.20 | F21: 0.00 | G21: 0.00 | H21: 0.00 | I21: 0.00 | J21: 0.00 | K21: 208483.20 | L21: 208483.20 | M21: 0.00
A22: 208 | B22: 05 | C22: 05 | D22: 机关事业单位基本养老保险缴费支出 | E22: 100260.00 | F22: 0.00 | G22: 0.00 | H22: 0.00 | I22: 0.00 | J22: 0.00 | K22: 100260.00 | L22: 100260.00 | M22: 0.00
A23: 208 | B23: 05 | C23: 05 | D23: 机关事业单位基本养老保险缴费支出 | E23: 257434.00 | F23: 257434.00 | G23: 0.00 | H23: 257434.00 | I23: 0.00 | J23: 0.00 | K23: 0.00 | L23: 0.00 | M23: 0.00
A24: 208 | B24: 05 | C24: 05 | D24: 机关事业单位基本养老保险缴费支出 | E24: 32630.40 | F24: 0.00 | G24: 0.00 | H24: 0.00 | I24: 0.00 | J24: 0.00 | K24: 32630.40 | L24: 32630.40 | M24: 0.00
A25: 208 | B25: 05 | C25: 05 | D25: 机关事业单位基本养老保险缴费支出 | E25: 182684.80 | F25: 182684.80 | G25: 0.00 | H25: 182684.80 | I25: 0.00 | J25: 0.00 | K25: 0.00 | L25: 0.00 | M25: 0.00
A26: 208 | B26: 05 | C26: 06 | D26: 机关事业单位职业年金缴费支出 | E26: 7404.48 | F26: 7404.48 | G26: 0.00 | H26: 7404.48 | I26: 0.00 | J26: 0.00 | K26: 0.00 | L26: 0.00 | M26: 0.00
A27: 208 | B27: 05 | C27: 06 | D27: 机关事业单位职业年金缴费支出 | E27: 13052.16 | F27: 0.00 | G27: 0.00 | H27: 0.00 | I27: 0.00 | J27: 0.00 | K27: 13052.16 | L27: 13052.16 | M27: 0.00
A28: 221 | D28: 住房公积金 | E28: 561527.12 | F28: 344673.68 | G28: 0.00 | H28: 0.00 | I28: 344673.68 | J28: 0.00 | K28: 216853.44 | L28: 216853.44 | M28: 0.00
A29: 221 | D29: 2 | E29: 561527.12 | F29: 344673.68 | G29: 0.00 | H29: 0.00 | I29: 344673.68 | J29: 0.00 | K29: 216853.44 | L29: 216853.44 | M29: 0.00
A30: 221 | B30: 02 | C30: 01 | D30: 住房公积金 | E30: 168626.16 | F30: 168626.16 | G30: 0.00 | H30: 0.00 | I30: 168626.16 | J30: 0.00 | K30: 0.00 | L30: 0.00 | M30: 0.00
A31: 221 | B31: 02 | C31: 01 | D31: 住房公积金 | E31: 80304.00 | F31: 0.00 | G31: 0.00 | H31: 0.00 | I31: 0.00 | J31: 0.00 | K31: 80304.00 | L31: 80304.00 | M31: 0.00
A32: 221 | B32: 02 | C32: 01 | D32: 住房公积金 | E32: 83393.28 | F32: 0.00 | G32: 0.00 | H32: 0.00 | I32: 0.00 | J32: 0.00 | K32: 83393.28 | L32: 83393.28 | M32: 0.00
A33: 221 | B33: 02 | C33: 01 | D33: 住房公积金 | E33: 40104.00 | F33: 0.00 | G33: 0.00 | H33: 0.00 | I33: 0.00 | J33: 0.00 | K33: 40104.00 | L33: 40104.00 | M33: 0.00
A34: 221 | B34: 02 | C34: 01 | D34: 住房公积金 | E34: 102973.60 | F34: 102973.60 | G34: 0.00 | H34: 0.00 | I34: 102973.60 | J34: 0.00 | K34: 0.00 | L34: 0.00 | M34: 0.00
A35: 221 | B35: 02 | C35: 01 | D35: 住房公积金 | E35: 13052.16 | F35: 0.00 | G35: 0.00 | H35: 0.00 | I35: 0.00 | J35: 0.00 | K35: 13052.16 | L35: 13052.16 | M35: 0.00
A36: 221 | B36: 02 | C36: 01 | D36: 住房公积金 | E36: 73073.92 | F36: 73073.92 | G36: 0.00 | H36: 0.00 | I36: 73073.92 | J36: 0.00 | K36: 0.00 | L36: 0.00 | M36: 0.00

Sheet 基本-商品和服务支出
A2: 基本支出预算明细表-商品和服务支出
A3: 单位名称：临湘市文化旅游广电新闻出版局 和 临湘市文化馆 和 临湘市图书馆 和 临湘市花鼓戏保护传承中心 和 临湘市文化市场综合执法大队 和 临湘市影剧院 和 临湘市博物馆 | AF3: 单位：元
A4: 功能科目 | D4: 科目名称 | E4: 总计 | F4: 办公费 | G4: 日常印刷费 | H4: 水费 | I4: 电费 | J4: 邮电费 | K4: 取暖费 | L4: 物业管理费 | M4: 差旅费 | N4: 日常维修(护)费 | O4: 租赁费 | P4: 会议费 | Q4: 培训费 | R4: 公务接待费 | S4: 劳务费 | T4: 工会经费 | U4: 福利费 | V4: 公务用车运行维护费 | W4: 其他交通费 | X4: 其他一般商品和服务支出 | Y4: 咨询费 | Z4: 手续费 | AA4: 因公出国（境）费 | AB4: 专用材料费 | AC4: 被装购置费 | AD4: 专用燃料费 | AE4: 委托业务费 | AF4: 税金及附加费用
A5: 类 | B5: 款 | C5: 项
D6: 合计 | E6: 1,616,800.00 | F6: 247,000.00 | G6: 50,500.00 | H6: 88,000.00 | I6: 167,000.00 | J6: 28,800.00 | K6: 0.00 | L6: 0.00 | M6: 83,000.00 | N6: 90,000.00 | O6: 10,000.00 | P6: 59,000.00 | Q6: 64,000.00 | R6: 167,500.00 | S6: 8,000.00 | T6: 95,100.00 | U6: 7,500.00 | V6: 22,000.00 | W6: 256,800.00 | X6: 172,600.00 | Y6: 0.00 | Z6: 0.00 | AA6: 0.00 | AB6: 0.00 | AC6: 0.00 | AD6: 0.00 | AE6: 0.00 | AF6: 0.00
A7: 207 | E7: 1,616,800.00 | F7: 247,000.00 | G7: 50,500.00 | H7: 88,000.00 | I7: 167,000.00 | J7: 28,800.00 | K7: 0.00 | L7: 0.00 | M7: 83,000.00 | N7: 90,000.00 | O7: 10,000.00 | P7: 59,000.00 | Q7: 64,000.00 | R7: 167,500.00 | S7: 8,000.00 | T7: 95,100.00 | U7: 7,500.00 | V7: 22,000.00 | W7: 256,800.00 | X7: 172,600.00 | Y7: 0.00 | Z7: 0.00 | AA7: 0.00 | AB7: 0.00 | AC7: 0.00 | AD7: 0.00 | AE7: 0.00 | AF7: 0.00
B8: 01 | E8: 1,371,400.00 | F8: 203,000.00 | G8: 50,500.00 | H8: 83,000.00 | I8: 152,000.00 | J8: 28,800.00 | K8: 0.00 | L8: 0.00 | M8: 83,000.00 | N8: 60,000.00 | O8: 10,000.00 | P8: 51,000.00 | Q8: 56,000.00 | R8: 157,500.00 | S8: 0.00 | T8: 75,500.00 | U8: 7,500.00 | V8: 22,000.00 | W8: 197,400.00 | X8: 134,200.00 | Y8: 0.00 | Z8: 0.00 | AA8: 0.00 | AB8: 0.00 | AC8: 0.00 | AD8: 0.00 | AE8: 0.00 | AF8: 0.00
A9: 207 | B9: 01 | C9: 01 | D9: 行政运行（文化） | E9: 568,200.00 | F9: 89,000.00 | G9: 11,000.00 | H9: 40,500.00 | I9: 40,500.00 | J9: 8,000.00 | K9: 0.00 | L9: 0.00 | M9: 22,000.00 | N9: 20,000.00 | O9: 0.00 | P9: 36,000.00 | Q9: 31,000.00 | R9: 65,000.00 | S9: 0.00 | T9: 22,000.00 | U9: 0.00 | V9: 0.00 | W9: 157,200.00 | X9: 26,000.00 | Y9: 0.00 | Z9: 0.00 | AA9: 0.00 | AB9: 0.00 | AC9: 0.00 | AD9: 0.00 | AE9: 0.00 | AF9: 0.00
A10: 207 | B10: 01 | C10: 01 | D10: 行政运行（文化） | E10: 308,200.00 | F10: 55,000.00 | G10: 17,500.00 | H10: 27,500.00 | I10: 51,500.00 | J10: 20,000.00 | K10: 0.00 | L10: 0.00 | M10: 41,000.00 | N10: 12,000.00 | O10: 10,000.00 | P10: 0.00 | Q10: 0.00 | R10: 16,500.00 | S10: 0.00 | T10: 7,500.00 | U10: 7,500.00 | V10: 0.00 | W10: 40,200.00 | X10: 2,000.00 | Y10: 0.00 | Z10: 0.00 | AA10: 0.00 | AB10: 0.00 | AC10: 0.00 | AD10: 0.00 | AE10: 0.00 | AF10: 0.00
A11: 207 | B11: 01 | C11: 01 | D11: 行政运行（文化） | E11: 30,000.00 | F11: 10,000.00 | G11: 0.00 | H11: 0.00 | I11: 10,000.00 | J11: 0.00 | K11: 0.00 | L11: 0.00 | M11: 0.00 | N11: 0.00 | O11: 0.00 | P11: 0.00 | Q11: 0.00 | R11: 10,000.00 | S11: 0.00 | T11: 0.00 | U11: 0.00 | V11: 0.00 | W11: 0.00 | X11: 0.00 | Y11: 0.00 | Z11: 0.00 | AA11: 0.00 | AB11: 0.00 | AC11: 0.00 | AD11: 0.00 | AE11: 0.00 | AF11: 0.00
A12: 207 | B12: 01 | C12: 04 | D12: 图书馆 | E12: 178,000.00 | F12: 12,000.00 | G12: 2,000.00 | H12: 2,000.00 | I12: 20,000.00 | J12: 800.00 | K12: 0.00 | L12: 0.00 | M12: 20,000.00 | N12: 8,000.00 | O12: 0.00 | P12: 5,000.00 | Q12: 15,000.00 | R12: 25,000.00 | S12: 0.00 | T12: 26,000.00 | U12: 0.00 | V12: 0.00 | W12: 0.00 | X12: 42,200.00 | Y12: 0.00 | Z12: 0.00 | AA12: 0.00 | AB12: 0.00 | AC12: 0.00 | AD12: 0.00 | AE12: 0.00 | AF12: 0.00
A13: 207 | B13: 01 | C13: 07 | D13: 艺术表演团体 | E13: 93,000.00 | F13: 17,000.00 | G13: 0.00 | H13: 3,000.00 | I13: 10,000.00 | J13: 0.00 | K13: 0.00 | L13: 0.00 | M13: 0.00 | N13: 0.00 | O13: 0.00 | P13: 0.00 | Q13: 0.00 | R13: 8,000.00 | S13: 0.00 | T13: 20,000.00 | U13: 0.00 | V13: 22,000.00 | W13: 0.00 | X13: 13,000.00 | Y13: 0.00 | Z13: 0.00 | AA13: 0.00 | AB13: 0.00 | AC13: 0.00 | AD13: 0.00 | AE13: 0.00 | AF13: 0.00
A14: 207 | B14: 01 | C14: 09 | D14: 群众文化 | E14: 194,000.00 | F14: 20,000.00 | G14: 20,000.00 | H14: 10,000.00 | I14: 20,000.00 | J14: 0.00 | K14: 0.00 | L14: 0.00 | M14: 0.00 | N14: 20,000.00 | O14: 0.00 | P14: 10,000.00 | Q14: 10,000.00 | R14: 33,000.00 | S14: 0.00 | T14: 0.00 | U14: 0.00 | V14: 0.00 | W14: 0.00 | X14: 51,000.00 | Y14: 0.00 | Z14: 0.00 | AA14: 0.00 | AB14: 0.00 | AC14: 0.00 | AD14: 0.00 | AE14: 0.00 | AF14: 0.00
B15: 02 | E15: 245,400.00 | F15: 44,000.00 | G15: 0.00 | H15: 5,000.00 | I15: 15,000.00 | J15: 0.00 | K15: 0.00 | L15: 0.00 | M15: 0.00 | N15: 30,000.00 | O15: 0.00 | P15: 8,000.00 | Q15: 8,000.00 | R15: 10,000.00 | S15: 8,000.00 | T15: 19,600.00 | U15: 0.00 | V15: 0.00 | W15: 59,400.00 | X15: 38,400.00 | Y15: 0.00 | Z15: 0.00 | AA15: 0.00 | AB15: 0.00 | AC15: 0.00 | AD15: 0.00 | AE15: 0.00 | AF15: 0.00
A16: 207 | B16: 02 | C16: 05 | D16: 博物馆 | E16: 245,400.00 | F16: 44,000.00 | G16: 0.00 | H16: 5,000.00 | I16: 15,000.00 | J16: 0.00 | K16: 0.00 | L16: 0.00 | M16: 0.00 | N16: 30,000.00 | O16: 0.00 | P16: 8,000.00 | Q16: 8,000.00 | R16: 10,000.00 | S16: 8,000.00 | T16: 19,600.00 | U16: 0.00 | V16: 0.00 | W16: 59,400.00 | X16: 38,400.00 | Y16: 0.00 | Z16: 0.00 | AA16: 0.00 | AB16: 0.00 | AC16: 0.00 | AD16: 0.00 | AE16: 0.00 | AF16: 0.00

Sheet 基本-商品和服务支出（政府预算）
A2: 基本支出预算明细表-商品和服务支出（政府预算）
A3: 单位名称：临湘市文化旅游广电新闻出版局 和 临湘市文化馆 和 临湘市图书馆 和 临湘市花鼓戏保护传承中心 和 临湘市文化市场综合执法大队 和 临湘市影剧院 和 临湘市博物馆 | S3: 单位：元
A4: 功能科目 | D4: 科目名称 | E4: 总计 | F4: 机关商品和服务支出 | Q4: 对事业单位经常性补助
A5: 类 | B5: 款 | C5: 项 | F5: 合计 | G5: 办公经费 | H5: 会议费 | I5: 培训费 | J5: 委托业务费 | K5: 公务接待费 | L5: 公务用车运行维护费 | M5: 维修（护）费 | N5: 其他商品和服务支出 | O5: 因公出国（境）费用 | P5: 专用材料购置费 | Q5: 合计 | R5: 商品和服务支出 | S5: 其他对事业单位补助
D6: 合计 | E6: 1616800.00 | F6: 1121800.00 | G6: 810900.00 | H6: 44000.00 | I6: 39000.00 | J6: 8000.00 | K6: 91500.00 | L6: 0.00 | M6: 62000.00 | N6: 66400.00 | O6: 0.00 | P6: 0.00 | Q6: 495000.00 | R6: 495000.00 | S6: 0.00
A7: 207 | E7: 1616800.00 | F7: 1121800.00 | G7: 810900.00 | H7: 44000.00 | I7: 39000.00 | J7: 8000.00 | K7: 91500.00 | L7: 0.00 | M7: 62000.00 | N7: 66400.00 | O7: 0.00 | P7: 0.00 | Q7: 495000.00 | R7: 495000.00 | S7: 0.00
B8: 01 | E8: 1371400.00 | F8: 876400.00 | G8: 667900.00 | H8: 36000.00 | I8: 31000.00 | J8: 0.00 | K8: 81500.00 | L8: 0.00 | M8: 32000.00 | N8: 28000.00 | O8: 0.00 | P8: 0.00 | Q8: 495000.00 | R8: 495000.00 | S8: 0.00
A9: 207 | B9: 01 | C9: 01 | D9: 行政运行（文化） | E9: 308200.00 | F9: 308200.00 | G9: 277700.00 | H9: 0.00 | I9: 0.00 | J9: 0.00 | K9: 16500.00 | L9: 0.00 | M9: 12000.00 | N9: 2000.00 | O9: 0.00 | P9: 0.00 | Q9: 0.00 | R9: 0.00 | S9: 0.00
A10: 207 | B10: 01 | C10: 01 | D10: 行政运行（文化） | E10: 568200.00 | F10: 568200.00 | G10: 390200.00 | H10: 36000.00 | I10: 31000.00 | J10: 0.00 | K10: 65000.00 | L10: 0.00 | M10: 20000.00 | N10: 26000.00 | O10: 0.00 | P10: 0.00 | Q10: 0.00 | R10: 0.00 | S10: 0.00
A11: 207 | B11: 01 | C11: 01 | D11: 行政运行（文化） | E11: 30000.00 | F11: 0.00 | G11: 0.00 | H11: 0.00 | I11: 0.00 | J11: 0.00 | K11: 0.00 | L11: 0.00 | M11: 0.00 | N11: 0.00 | O11: 0.00 | P11: 0.00 | Q11: 30000.00 | R11: 30000.00 | S11: 0.00
A12: 207 | B12: 01 | C12: 04 | D12: 图书馆 | E12: 178000.00 | F12: 0.00 | G12: 0.00 | H12: 0.00 | I12: 0.00 | J12: 0.00 | K12: 0.00 | L12: 0.00 | M12: 0.00 | N12: 0.00 | O12: 0.00 | P12: 0.00 | Q12: 178000.00 | R12: 178000.00 | S12: 0.00
A13: 207 | B13: 01 | C13: 07 | D13: 艺术表演团体 | E13: 93000.00 | F13: 0.00 | G13: 0.00 | H13: 0.00 | I13: 0.00 | J13: 0.00 | K13: 0.00 | L13: 0.00 | M13: 0.00 | N13: 0.00 | O13: 0.00 | P13: 0.00 | Q13: 93000.00 | R13: 93000.00 | S13: 0.00
A14: 207 | B14: 01 | C14: 09 | D14: 群众文化 | E14: 194000.00 | F14: 0.00 | G14: 0.00 | H14: 0.00 | I14: 0.00 | J14: 0.00 | K14: 0.00 | L14: 0.00 | M14: 0.00 | N14: 0.00 | O14: 0.00 | P14: 0.00 | Q14: 194000.00 | R14: 194000.00 | S14: 0.00
B15: 02 | E15: 245400.00 | F15: 245400.00 | G15: 143000.00 | H15: 8000.00 | I15: 8000.00 | J15: 8000.00 | K15: 10000.00 | L15: 0.00 | M15: 30000.00 | N15: 38400.00 | O15: 0.00 | P15: 0.00 | Q15: 0.00 | R15: 0.00 | S15: 0.00
A16: 207 | B16: 02 | C16: 05 | D16: 博物馆 | E16: 245400.00 | F16: 245400.00 | G16: 143000.00 | H16: 8000.00 | I16: 8000.00 | J16: 8000.00 | K16: 10000.00 | L16: 0.00 | M16: 30000.00 | N16: 38400.00 | O16: 0.00 | P16: 0.00 | Q16: 0.00 | R16: 0.00 | S16: 0.00

Sheet 基本-个人家庭
A2: 基本支出明细表-对个人和家庭的补助
A3: 单位名称：临湘市文化旅游广电新闻出版局 和 临湘市文化馆 和 临湘市图书馆 和 临湘市花鼓戏保护传承中心 和 临湘市文化市场综合执法大队 和 临湘市影剧院 和 临湘市博物馆 | P3: 单位：元
A4: 功能科目 | D4: 科目名称 | E4: 总计 | F4: 离休费 | G4: 退休费 | H4: 退职(役)费 | I4: 抚恤金 | J4: 生活补助 | K4: 救济费 | L4: 医疗费 | M4: 助学金 | N4: 奖励金 | O4: 生产补贴 | P4: 其他对个人和家庭的补助
A5: 类 | B5: 款 | C5: 项
E6: ￥16,560.00 | F6: ￥0.00 | G6: ￥0.00 | H6: ￥0.00 | I6: ￥16,560.00 | J6: ￥0.00 | K6: ￥0.00 | L6: ￥0.00 | M6: ￥0.00 | N6: ￥0.00 | O6: ￥0.00 | P6: ￥0.00
A7: 207.00 | E7: ￥16,560.00 | F7: ￥0.00 | G7: ￥0.00 | H7: ￥0.00 | I7: ￥16,560.00 | J7: ￥0.00 | K7: ￥0.00 | L7: ￥0.00 | M7: ￥0.00 | N7: ￥0.00 | O7: ￥0.00 | P7: ￥0.00
B8: 1.00 | E8: ￥16,560.00 | F8: ￥0.00 | G8: ￥0.00 | H8: ￥0.00 | I8: ￥16,560.00 | J8: ￥0.00 | K8: ￥0.00 | L8: ￥0.00 | M8: ￥0.00 | N8: ￥0.00 | O8: ￥0.00 | P8: ￥0.00
C9: 4.00 | E9: ￥5,100.00 | F9: ￥0.00 | G9: ￥0.00 | H9: ￥0.00 | I9: ￥5,100.00 | J9: ￥0.00 | K9: ￥0.00 | L9: ￥0.00 | M9: ￥0.00 | N9: ￥0.00 | O9: ￥0.00 | P9: ￥0.00
A10: 207.00 | B10: 1.00 | C10: 4.00 | D10: 图书馆 | E10: ￥5,100.00 | F10: ￥0.00 | G10: ￥0.00 | H10: ￥0.00 | I10: ￥5,100.00 | J10: ￥0.00 | K10: ￥0.00 | L10: ￥0.00 | M10: ￥0.00 | N10: ￥0.00 | O10: ￥0.00 | P10: ￥0.00
C11: 9.00 | E11: ￥11,460.00 | F11: ￥0.00 | G11: ￥0.00 | H11: ￥0.00 | I11: ￥11,460.00 | J11: ￥0.00 | K11: ￥0.00 | L11: ￥0.00 | M11: ￥0.00 | N11: ￥0.00 | O11: ￥0.00 | P11: ￥0.00
A12: 207.00 | B12: 1.00 | C12: 9.00 | D12: 群众文化 | E12: ￥11,460.00 | F12: ￥0.00 | G12: ￥0.00 | H12: ￥0.00 | I12: ￥11,460.00 | J12: ￥0.00 | K12: ￥0.00 | L12: ￥0.00 | M12: ￥0.00 | N12: ￥0.00 | O12: ￥0.00 | P12: ￥0.00

Sheet 基本-个人家庭（政府预算）
A2: 基本支出明细表-对个人和家庭的补助（政府预算）
A3: 单位名称临湘市文化旅游广电新闻出版局 和 临湘市文化馆 和 临湘市图书馆 和 临湘市花鼓戏保护传承中心 和 临湘市文化市场综合执法大队 和 临湘市影剧院 和 临湘市博物馆 | J3: 单位：元
A4: 功能科目 | D4: 科目名称 | E4: 总计 | F4: 社会福利和救济 | G4: 助学金 | H4: 个人农业生产补贴 | I4: 离退休 | J4: 其他对个人和家庭的补助
A5: 类 | B5: 款 | C5: 项
D6: 合计 | E6: 16,560.00 | F6: 16,560.00 | G6: 0.00 | H6: 0.00 | I6: 0.00 | J6: 0.00
A7: 207 | E7: 16,560.00 | F7: 16,560.00 | G7: 0.00 | H7: 0.00 | I7: 0.00 | J7: 0.00
B8: 01 | E8: 16,560.00 | F8: 16,560.00 | G8: 0.00 | H8: 0.00 | I8: 0.00 | J8: 0.00
A9: 207 | B9: 01 | C9: 04 | D9: 图书馆 | E9: 5,100.00 | F9: 5,100.00 | G9: 0.00 | H9: 0.00 | I9: 0.00 | J9: 0.00
A10: 207 | B10: 01 | C10: 09 | D10: 群众文化 | E10: 11,460.00 | F10: 11,460.00 | G10: 0.00 | H10: 0.00 | I10: 0.00 | J10: 0.00

Sheet 财政拨款收支总表的
A1: 2019年部门预算收支总表
A2: 填报单位：临湘市文化旅游广电新闻出版局 和 临湘市文化馆 和 临湘市图书馆 和 临湘市花鼓戏保护传承中心 和 临湘市文化市场综合执法大队 和 临湘市影剧院 和 临湘市博物馆 | G2: 单位：元
A3: 收入 | C3: 支出（功能科目）
A4: 项目 | B4: 本年预算 | C4: 项目 | D4: 合计 | E4: 一般公共预算 | F4: 政府性基金预算 | G4: 国有资本经营预算
A5: 一般预算拨款（补助） | B5: 14,105,630.84 | C5: 201、一般公共服务支出 | D5: 0.00 | E5: 0.00 | F5: 0.00
A6: 经费拨款 | B6: 13,655,630.84 | C6: 202、外交支出 | D6: 0.00 | E6: 0.00 | F6: 0.00
A7: 纳入预算管理的非税收入拨款 | B7: 450,000.00 | C7: 203、国防支出 | D7: 0.00 | E7: 0.00 | F7: 0.00
A8: 纳入专户管理的非税收入拨款 | B8: 200,000.00 | C8: 204、公共安全支出 | D8: 0.00 | E8: 0.00 | F8: 0.00
A9: 政府性基金拨款 | B9: 0.00 | C9: 205、教育支出 | D9: 0.00 | E9: 0.00 | F9: 0.00
A10: 事业单位经营收入 | B10: 0.00 | C10: 206、科学技术支出 | D10: 0.00 | E10: 0.00 | F10: 0.00
A11: 上级补助收入 | B11: 0.00 | C11: 207、文化体育与传媒支出 | D11: 12,897,548.12 | E11: 12211884.16 | F11: 0.00
A12: 附属单位上缴收入 | B12: 0.00 | C12: 208、社会保障和就业支出 | D12: 1,424,274.44 | E12: 1352676.20 | F12: 0.00
A13: 其他收入 | B13: 577,718.84 | C13: 209、社保基金支出 | D13: 0.00 | E13: 0.00 | F13: 0.00
A14: 上年结转 | B14: 0.00 | C14: 210、医疗卫生与计划生育支出 | D14: 0.00 | E14: 0.00 | F14: 0.00
C15: 211、节能环保支出 | D15: 0.00 | E15: 0.00 | F15: 0.00
C16: 212、城乡社区支出 | D16: 0.00 | E16: 0.00 | F16: 0.00
C17: 213、农林水支出 | D17: 0.00 | E17: 0.00 | F17: 0.00
C18: 214、交通运输支出 | D18: 0.00 | E18: 0.00 | F18: 0.00
C19: 215、资源勘探信息等支出 | D19: 0.00 | E19: 0.00 | F19: 0.00
C20: 216、商业服务业等支出 | D20: 0.00 | E20: 0.00 | F20: 0.00
C21: 217、金融支出 | D21: 0.00 | E21: 0.00 | F21: 0.00
C22: 219、援助其他地区支出 | D22: 0.00 | E22: 0.00 | F22: 0.00
C23: 220、国土海洋气象等支出 | D23: 0.00 | E23: 0.00 | F23: 0.00
C24: 221、住房保障支出 | D24: 561,527.12 | E24: 541070.48 | F24: 0.00
C25: 222、粮油物资储备支出 | D25: 0.00 | E25: 0.00 | F25: 0.00
C26: 223、国有资本经营预算支出 | D26: 0.00 | E26: 0.00 | F26: 0.00
C27: 227、预备费 | D27: 0.00 | E27: 0.00 | F27: 0.00
C28: 229、其他支出 | D28: 0.00 | E28: 0.00 | F28: 0.00
C29: 230、转移性支出 | D29: 0.00 | E29: 0.00 | F29: 0.00
C30: 231、债务还本支出 | D30: 0.00 | E30: 0.00 | F30: 0.00
C31: 232、债务付息支出 | D31: 0.00 | E31: 0.00 | F31: 0.00
C32: 233、债务发行费用支出 | D32: 0.00 | E32: 0.00 | F32: 0.00
A34: 本年收入合计 | B34: 14,883,349.68 | C34: 本年支出合计 | D34: 14,883,349.68 | E34: 14105630.84 | F34: 0.00

Sheet 一般预算支出表的
A2: 一般公共预算支出情况表
A3: 单位名称临湘市文化旅游广电新闻出版局 和 临湘市文化馆 和 临湘市图书馆 和 临湘市花鼓戏保护传承中心 和 临湘市文化市场综合执法大队 和 临湘市影剧院 和 临湘市博物馆 | T3: 单位：元
A4: 功能科目 | E4: 总计 | G4: 基本支出 | L4: 项目支出
A5: 科目编码 | D5: 科目名称 | G5: 合计 | H5: 工资福利支出 | I5: 一般商品和服务支出 | J5: 对个人和家庭的补助 | L5: 合计 | M5: 商品和服务支出 | N5: 对个人和家庭的补助支出 | O5: 资本性支出（基建） | P5: 资本性支出（项目支出） | Q5: 其他资本性支出 | R5: 对企事业单位的补贴（基建） | S5: 对社会保障基金补助 | T5: 其他支出 | U5: 债务利息及费用支出
A6: 类 | B6: 款 | C6: 项
D7: 合计 | E7: 14,105,630.84 | F7: =G7/10000 -> 1,042.96 | G7: 10,429,630.84 | H7: 9,104,270.84 | I7: 1,308,800.00 | J7: 16,560.00 | K7: =L7/10000 -> 367.60 | L7: 3,676,000.00 | M7: 2,848,000.00 | N7: 0.00 | O7: 330,000.00 | P7: 498,000.00 | Q7: 0.00 | R7: 0.00 | S7: 0.00 | T7: 0.00 | U7: 0.00
B8: 01 | E8: 10,939,864.34 | F8: =G8/10000 -> 730.39 | G8: 7,303,864.34 | H8: 6,222,904.34 | I8: 1,064,400.00 | J8: 16,560.00 | K8: =L8/10000 -> 363.60 | L8: 3,636,000.00 | M8: 2,838,000.00 | N8: 0.00 | O8: 300,000.00 | P8: 498,000.00 | Q8: 0.00 | R8: 0.00 | S8: 0.00 | T8: 0.00 | U8: 0.00
A9: 207 | E9: 10,939,864.34 | F9: 730.39 | G9: 7,303,864.34 | H9: 6,222,904.34 | I9: 1,064,400.00 | J9: 16,560.00 | K9: 363.60 | L9: 3,636,000.00 | M9: 2,838,000.00 | N9: 0.00 | O9: 300,000.00 | P9: 498,000.00 | Q9: 0.00 | R9: 0.00 | S9: 0.00 | T9: 0.00 | U9: 0.00
A10: 207 | B10: 01 | C10: 01 | D10: 行政运行（文化） | E10: 2,008,085.63 | F10: 160.81 | G10: 1,608,085.63 | H10: 1,391,885.63 | I10: 216,200.00 | J10: 0.00 | K10: 40.00 | L10: 400,000.00 | M10: 380,000.00 | N10: 0.00 | O10: 20,000.00 | P10: 0.00 | Q10: 0.00 | R10: 0.00 | S10: 0.00 | T10: 0.00 | U10: 0.00
A11: 207 | B11: 01 | C11: 01 | D11: 行政运行（文化） | E11: 150,000.00 | F11: 0.00 | G11: 0.00 | H11: 0.00 | I11: 0.00 | J11: 0.00 | K11: 15.00 | L11: 150,000.00 | M11: 150,000.00 | N11: 0.00 | O11: 0.00 | P11: 0.00 | Q11: 0.00 | R11: 0.00 | S11: 0.00 | T11: 0.00 | U11: 0.00
A12: 207 | B12: 01 | C12: 01 | D12: 行政运行（文化） | E12: 4,006,349.87 | F12: 272.63 | G12: 2,726,349.87 | H12: 2,178,149.87 | I12: 548,200.00 | J12: 0.00 | K12: 128.00 | L12: 1,280,000.00 | M12: 1,000,000.00 | N12: 0.00 | O12: 280,000.00 | P12: 0.00 | Q12: 0.00 | R12: 0.00 | S12: 0.00 | T12: 0.00 | U12: 0.00
A13: 207 | B13: 01 | C13: 04 | D13: 图书馆 | E13: 1,559,741.72 | F13: 130.97 | G13: 1,309,741.72 | H13: 1,126,641.72 | I13: 178,000.00 | J13: 5,100.00 | K13: 25.00 | L13: 250,000.00 | M13: 0.00 | N13: 0.00 | O13: 0.00 | P13: 250,000.00 | Q13: 0.00 | R13: 0.00 | S13: 0.00 | T13: 0.00 | U13: 0.00
A14: 207 | B14: 01 | C14: 07 | D14: 艺术表演团体 | E14: 1,996,742.04 | F14: 44.07 | G14: 440,742.04 | H14: 440,742.04 | I14: 0.00 | J14: 0.00 | K14: 155.60 | L14: 1,556,000.00 | M14: 1,308,000.00 | N14: 0.00 | O14: 0.00 | P14: 248,000.00 | Q14: 0.00 | R14: 0.00 | S14: 0.00 | T14: 0.00 | U14: 0.00
A15: 207 | B15: 01 | C15: 09 | D15: 群众文化 | E15: 1,218,945.08 | F15: 121.89 | G15: 1,218,945.08 | H15: 1,085,485.08 | I15: 122,000.00 | J15: 11,460.00 | K15: 0.00 | L15: 0.00 | M15: 0.00 | N15: 0.00 | O15: 0.00 | P15: 0.00 | Q15: 0.00 | R15: 0.00 | S15: 0.00 | T15: 0.00 | U15: 0.00
B16: 02 | E16: 1,813,090.30 | F16: 177.31 | G16: 1,773,090.30 | H16: 1,528,690.30 | I16: 244,400.00 | J16: 0.00 | K16: 4.00 | L16: 40,000.00 | M16: 10,000.00 | N16: 0.00 | O16: 30,000.00 | P16: 0.00 | Q16: 0.00 | R16: 0.00 | S16: 0.00 | T16: 0.00 | U16: 0.00
A17: 207 | E17: 1,272,019.82 | F17: 123.20 | G17: 1,232,019.82 | H17: 987,619.82 | I17: 244,400.00 | J17: 0.00 | K17: 4.00 | L17: 40,000.00 | M17: 10,000.00 | N17: 0.00 | O17: 30,000.00 | P17: 0.00 | Q17: 0.00 | R17: 0.00 | S17: 0.00 | T17: 0.00 | U17: 0.00
A18: 207 | B18: 02 | C18: 04 | D18: 文物保护 | E18: 40,000.00 | F18: 0.00 | G18: 0.00 | H18: 0.00 | I18: 0.00 | J18: 0.00 | K18: 4.00 | L18: 40,000.00 | M18: 10,000.00 | N18: 0.00 | O18: 30,000.00 | P18: 0.00 | Q18: 0.00 | R18: 0.00 | S18: 0.00 | T18: 0.00 | U18: 0.00
A19: 207 | B19: 02 | C19: 05 | D19: 博物馆 | E19: 1,232,019.82 | F19: 123.20 | G19: 1,232,019.82 | H19: 987,619.82 | I19: 244,400.00 | J19: 0.00 | K19: 0.00 | L19: 0.00 | M19: 0.00 | N19: 0.00 | O19: 0.00 | P19: 0.00 | Q19: 0.00 | R19: 0.00 | S19: 0.00 | T19: 0.00 | U19: 0.00
A20: 221 | E20: 541,070.48 | F20: 54.11 | G20: 541,070.48 | H20: 541,070.48 | I20: 0.00 | J20: 0.00 | K20: 0.00 | L20: 0.00 | M20: 0.00 | N20: 0.00 | O20: 0.00 | P20: 0.00 | Q20: 0.00 | R20: 0.00 | S20: 0.00 | T20: 0.00 | U20: 0.00
A21: 221 | B21: 02 | C21: 01 | D21: 住房公积金 | E21: 80,304.00 | F21: 8.03 | G21: 80,304.00 | H21: 80,304.00 | I21: 0.00 | J21: 0.00 | K21: 0.00 | L21: 0.00 | M21: 0.00 | N21: 0.00 | O21: 0.00 | P21: 0.00 | Q21: 0.00 | R21: 0.00 | S21: 0.00 | T21: 0.00 | U21: 0.00
A22: 221 | B22: 02 | C22: 01 | D22: 住房公积金 | E22: 40,104.00 | F22: 4.01 | G22: 40,104.00 | H22: 40,104.00 | I22: 0.00 | J22: 0.00 | K22: 0.00 | L22: 0.00 | M22: 0.00 | N22: 0.00 | O22: 0.00 | P22: 0.00 | Q22: 0.00 | R22: 0.00 | S22: 0.00 | T22: 0.00 | U22: 0.00
A23: 221 | B23: 02 | C23: 01 | D23: 住房公积金 | E23: 102,973.60 | F23: 10.30 | G23: 102,973.60 | H23: 102,973.60 | I23: 0.00 | J23: 0.00 | K23: 0.00 | L23: 0.00 | M23: 0.00 | N23: 0.00 | O23: 0.00 | P23: 0.00 | Q23: 0.00 | R23: 0.00 | S23: 0.00 | T23: 0.00 | U23: 0.00
A24: 221 | B24: 02 | C24: 01 | D24: 住房公积金 | E24: 73,073.92 | F24: 7.31 | G24: 73,073.92 | H24: 73,073.92 | I24: 0.00 | J24: 0.00 | K24: 0.00 | L24: 0.00 | M24: 0.00 | N24: 0.00 | O24: 0.00 | P24: 0.00 | Q24: 0.00 | R24: 0.00 | S24: 0.00 | T24: 0.00 | U24: 0.00
A25: 221 | B25: 02 | C25: 01 | D25: 住房公积金 | E25: 83,393.28 | F25: 8.34 | G25: 83,393.28 | H25: 83,393.28 | I25: 0.00 | J25: 0.00 | K25: 0.00 | L25: 0.00 | M25: 0.00 | N25: 0.00 | O25: 0.00 | P25: 0.00 | Q25: 0.00 | R25: 0.00 | S25: 0.00 | T25: 0.00 | U25: 0.00
A26: 221 | B26: 02 | C26: 01 | D26: 住房公积金 | E26: 161,221.68 | F26: 16.12 | G26: 161,221.68 | H26: 161,221.68 | I26: 0.00 | J26: 0.00 | K26: 0.00 | L26: 0.00 | M26: 0.00 | N26: 0.00 | O26: 0.00 | P26: 0.00 | Q26: 0.00 | R26: 0.00 | S26: 0.00 | T26: 0.00 | U26: 0.00
B27: 05 | E27: 1,352,676.20 | F27: 135.27 | G27: 1,352,676.20 | H27: 1,352,676.20 | I27: 0.00 | J27: 0.00 | K27: 0.00 | L27: 0.00 | M27: 0.00 | N27: 0.00 | O27: 0.00 | P27: 0.00 | Q27: 0.00 | R27: 0.00 | S27: 0.00 | T27: 0.00 | U27: 0.00
A28: 208 | E28: 1,352,676.20 | F28: 135.27 | G28: 1,352,676.20 | H28: 1,352,676.20 | I28: 0.00 | J28: 0.00 | K28: 0.00 | L28: 0.00 | M28: 0.00 | N28: 0.00 | O28: 0.00 | P28: 0.00 | Q28: 0.00 | R28: 0.00 | S28: 0.00 | T28: 0.00 | U28: 0.00
A29: 208 | B29: 05 | C29: 05 | D29: 机关事业单位基本养老保险缴费支出 | E29: 100,260.00 | F29: 10.03 | G29: 100,260.00 | H29: 100,260.00 | I29: 0.00 | J29: 0.00 | K29: 0.00 | L29: 0.00 | M29: 0.00 | N29: 0.00 | O29: 0.00 | P29: 0.00 | Q29: 0.00 | R29: 0.00 | S29: 0.00 | T29: 0.00 | U29: 0.00
A30: 208 | B30: 05 | C30: 05 | D30: 机关事业单位基本养老保险缴费支出 | E30: 200,760.00 | F30: 20.08 | G30: 200,760.00 | H30: 200,760.00 | I30: 0.00 | J30: 0.00 | K30: 0.00 | L30: 0.00 | M30: 0.00 | N30: 0.00 | O30: 0.00 | P30: 0.00 | Q30: 0.00 | R30: 0.00 | S30: 0.00 | T30: 0.00 | U30: 0.00
A31: 208 | B31: 05 | C31: 05 | D31: 机关事业单位基本养老保险缴费支出 | E31: 182,684.80 | F31: 18.27 | G31: 182,684.80 | H31: 182,684.80 | I31: 0.00 | J31: 0.00 | K31: 0.00 | L31: 0.00 | M31: 0.00 | N31: 0.00 | O31: 0.00 | P31: 0.00 | Q31: 0.00 | R31: 0.00 | S31: 0.00 | T31: 0.00 | U31: 0.00
A32: 208 | B32: 05 | C32: 05 | D32: 机关事业单位基本养老保险缴费支出 | E32: 257,434.00 | F32: 25.74 | G32: 257,434.00 | H32: 257,434.00 | I32: 0.00 | J32: 0.00 | K32: 0.00 | L32: 0.00 | M32: 0.00 | N32: 0.00 | O32: 0.00 | P32: 0.00 | Q32: 0.00 | R32: 0.00 | S32: 0.00 | T32: 0.00 | U32: 0.00
A33: 208 | B33: 05 | C33: 05 | D33: 机关事业单位基本养老保险缴费支出 | E33: 208,483.20 | F33: 20.85 | G33: 208,483.20 | H33: 208,483.20 | I33: 0.00 | J33: 0.00 | K33: 0.00 | L33: 0.00 | M33: 0.00 | N33: 0.00 | O33: 0.00 | P33: 0.00 | Q33: 0.00 | R33: 0.00 | S33: 0.00 | T33: 0.00 | U33: 0.00
A34: 208 | B34: 05 | C34: 05 | D34: 机关事业单位基本养老保险缴费支出 | E34: 403,054.20 | F34: 40.31 | G34: 403,054.20 | H34: 403,054.20 | I34: 0.00 | J34: 0.00 | K34: 0.00 | L34: 0.00 | M34: 0.00 | N34: 0.00 | O34: 0.00 | P34: 0.00 | Q34: 0.00 | R34: 0.00 | S34: 0.00 | T34: 0.00 | U34: 0.00

Sheet 一般预算基本支出表
A2: 一般公共预算基本支出情况表
A3: 单位名称临湘市文化旅游广电新闻出版局 和 临湘市文化馆 和 临湘市图书馆 和 临湘市花鼓戏保护传承中心 和 临湘市文化市场综合执法大队 和 临湘市影剧院 和 临湘市博物馆 | I3: 单位：元
A4: 功能科目 | E4: 总计 | F4: 基本支出
A5: 科目编码 | D5: 科目名称 | F5: 合计 | G5: 工资福利支出 | H5: 一般商品和服务支出 | I5: 对个人和家庭的补助
A6: 类 | B6: 款 | C6: 项
D7: 合计 | E7: 10,429,630.84 | F7: 10,429,630.84 | G7: 9,104,270.84 | H7: 1,308,800.00 | I7: 16,560.00
B8: 01 | E8: 7,303,864.34 | F8: 7,303,864.34 | G8: 6,222,904.34 | H8: 1,064,400.00 | I8: 16,560.00
A9: 207 | E9: 7,303,864.34 | F9: 7,303,864.34 | G9: 6,222,904.34 | H9: 1,064,400.00 | I9: 16,560.00
A10: 207 | B10: 01 | C10: 01 | D10: 行政运行（文化） | E10: 2,726,349.87 | F10: 2,726,349.87 | G10: 2,178,149.87 | H10: 548,200.00 | I10: 0.00
A11: 207 | B11: 01 | C11: 01 | D11: 行政运行（文化） | E11: 1,608,085.63 | F11: 1,608,085.63 | G11: 1,391,885.63 | H11: 216,200.00 | I11: 0.00
A12: 207 | B12: 01 | C12: 04 | D12: 图书馆 | E12: 1,309,741.72 | F12: 1,309,741.72 | G12: 1,126,641.72 | H12: 178,000.00 | I12: 5,100.00
A13: 207 | B13: 01 | C13: 07 | D13: 艺术表演团体 | E13: 440,742.04 | F13: 440,742.04 | G13: 440,742.04 | H13: 0.00 | I13: 0.00
A14: 207 | B14: 01 | C14: 09 | D14: 群众文化 | E14: 1,218,945.08 | F14: 1,218,945.08 | G14: 1,085,485.08 | H14: 122,000.00 | I14: 11,460.00
B15: 02 | E15: 1,773,090.30 | F15: 1,773,090.30 | G15: 1,528,690.30 | H15: 244,400.00 | I15: 0.00
A16: 207 | E16: 1,232,019.82 | F16: 1,232,019.82 | G16: 987,619.82 | H16: 244,400.00 | I16: 0.00
A17: 207 | B17: 02 | C17: 05 | D17: 博物馆 | E17: 1,232,019.82 | F17: 1,232,019.82 | G17: 987,619.82 | H17: 244,400.00 | I17: 0.00
A18: 221 | E18: 541,070.48 | F18: 541,070.48 | G18: 541,070.48 | H18: 0.00 | I18: 0.00
A19: 221 | B19: 02 | C19: 01 | D19: 住房公积金 | E19: 161,221.68 | F19: 161,221.68 | G19: 161,221.68 | H19: 0.00 | I19: 0.00
A20: 221 | B20: 02 | C20: 01 | D20: 住房公积金 | E20: 73,073.92 | F20: 73,073.92 | G20: 73,073.92 | H20: 0.00 | I20: 0.00
A21: 221 | B21: 02 | C21: 01 | D21: 住房公积金 | E21: 102,973.60 | F21: 102,973.60 | G21: 102,973.60 | H21: 0.00 | I21: 0.00
A22: 221 | B22: 02 | C22: 01 | D22: 住房公积金 | E22: 83,393.28 | F22: 83,393.28 | G22: 83,393.28 | H22: 0.00 | I22: 0.00
A23: 221 | B23: 02 | C23: 01 | D23: 住房公积金 | E23: 40,104.00 | F23: 40,104.00 | G23: 40,104.00 | H23: 0.00 | I23: 0.00
A24: 221 | B24: 02 | C24: 01 | D24: 住房公积金 | E24: 80,304.00 | F24: 80,304.00 | G24: 80,304.00 | H24: 0.00 | I24: 0.00
B25: 05 | E25: 1,352,676.20 | F25: 1,352,676.20 | G25: 1,352,676.20 | H25: 0.00 | I25: 0.00
A26: 208 | E26: 1,352,676.20 | F26: 1,352,676.20 | G26: 1,352,676.20 | H26: 0.00 | I26: 0.00
A27: 208 | B27: 05 | C27: 05 | D27: 机关事业单位基本养老保险缴费支出 | E27: 257,434.00 | F27: 257,434.00 | G27: 257,434.00 | H27: 0.00 | I27: 0.00
A28: 208 | B28: 05 | C28: 05 | D28: 机关事业单位基本养老保险缴费支出 | E28: 208,483.20 | F28: 208,483.20 | G28: 208,483.20 | H28: 0.00 | I28: 0.00
A29: 208 | B29: 05 | C29: 05 | D29: 机关事业单位基本养老保险缴费支出 | E29: 100,260.00 | F29: 100,260.00 | G29: 100,260.00 | H29: 0.00 | I29: 0.00
A30: 208 | B30: 05 | C30: 05 | D30: 机关事业单位基本养老保险缴费支出 | E30: 403,054.20 | F30: 403,054.20 | G30: 403,054.20 | H30: 0.00 | I30: 0.00
A31: 208 | B31: 05 | C31: 05 | D31: 机关事业单位基本养老保险缴费支出 | E31: 200,760.00 | F31: 200,760.00 | G31: 200,760.00 | H31: 0.00 | I31: 0.00
A32: 208 | B32: 05 | C32: 05 | D32: 机关事业单位基本养老保险缴费支出 | E32: 182,684.80 | F32: 182,684.80 | G32: 182,684.80 | H32: 0.00 | I32: 0.00

Sheet 一般-工资福利
A2: 一般公共预算基本支出预算明细表-工资福利支出
A3: 单位名称：临湘市文化旅游广电新闻出版局 和 临湘市文化馆 和 临湘市图书馆 和 临湘市花鼓戏保护传承中心 和 临湘市文化市场综合执法大队 和 临湘市影剧院 和 临湘市博物馆 | U3: 单位：元
A4: 功能科目 | D4: 科目名称 | E4: 总计 | F4: 工资性支出 | K4: 社会保障缴费 | Q4: 住房公积金 | R4: 伙食补贴支出 | U4: 其他工资福利支出
A5: 类 | B5: 款 | C5: 项 | F5: 合计 | G5: 基本工资 | H5: 津贴补贴 | I5: 奖金 | J5: 绩效工资 | K5: 合计 | L5: 职工基本医疗保险 | M5: 公务员医疗补助缴费 | N5: 其他社会保障缴费 | O5: 机关事业单位基本养老保险缴费 | P5: 职业年金 | R5: 合计 | S5: 医疗费 | T5: 伙食补助费
D6: 合计 | E6: 9104270.84 | F6: 6662381.00 | G6: 3960624.00 | H6: 1146240.00 | I6: 157249.00 | J6: 1398268.00 | K6: 1900819.36 | L6: 473436.67 | M6: 0.00 | N6: 74706.49 | O6: 1352676.20 | P6: 0.00 | Q6: 541070.48 | R6: 0.00 | S6: 0.00 | T6: 0.00 | U6: 0.00
B7: 01 | E7: 6222904.34 | F7: 5748957.00 | G7: 3435756.00 | H7: 905964.00 | I7: 125429.00 | J7: 1281808.00 | K7: 473947.34 | L7: 409496.99 | M7: 0.00 | N7: 64450.35 | O7: 0.00 | P7: 0.00 | Q7: 0.00 | R7: 0.00 | S7: 0.00 | T7: 0.00 | U7: 0.00
A8: 207 | E8: 6222904.34 | F8: 5748957.00 | G8: 3435756.00 | H8: 905964.00 | I8: 125429.00 | J8: 1281808.00 | K8: 473947.34 | L8: 409496.99 | M8: 0.00 | N8: 64450.35 | O8: 0.00 | P8: 0.00 | Q8: 0.00 | R8: 0.00 | S8: 0.00 | T8: 0.00 | U8: 0.00
A9: 207 | B9: 01 | C9: 01 | D9: 行政运行（文化） | E9: 1391885.63 | F9: 1287170.00 | G9: 739860.00 | H9: 382212.00 | I9: 50690.00 | J9: 114408.00 | K9: 104715.63 | L9: 90101.90 | M9: 0.00 | N9: 14613.73 | O9: 0.00 | P9: 0.00 | Q9: 0.00 | R9: 0.00 | S9: 0.00 | T9: 0.00 | U9: 0.00
A10: 207 | B10: 01 | C10: 01 | D10: 行政运行（文化） | E10: 2178149.87 | F10: 2015271.00 | G10: 1187568.00 | H10: 523752.00 | I10: 74739.00 | J10: 229212.00 | K10: 162878.87 | L10: 141068.97 | M10: 0.00 | N10: 21809.90 | O10: 0.00 | P10: 0.00 | Q10: 0.00 | R10: 0.00 | S10: 0.00 | T10: 0.00 | U10: 0.00
A11: 207 | B11: 01 | C11: 04 | D11: 图书馆 | E11: 1126641.72 | F11: 1042416.00 | G11: 624876.00 | H11: 0.00 | I11: 0.00 | J11: 417540.00 | K11: 84225.72 | L11: 72969.12 | M11: 0.00 | N11: 11256.60 | O11: 0.00 | P11: 0.00 | Q11: 0.00 | R11: 0.00 | S11: 0.00 | T11: 0.00 | U11: 0.00
A12: 207 | B12: 01 | C12: 07 | D12: 艺术表演团体 | E12: 440742.04 | F12: 400300.00 | G12: 308868.00 | H12: 0.00 | I12: 0.00 | J12: 91432.00 | K12: 40442.04 | L12: 35091.00 | M12: 0.00 | N12: 5351.04 | O12: 0.00 | P12: 0.00 | Q12: 0.00 | R12: 0.00 | S12: 0.00 | T12: 0.00 | U12: 0.00
A13: 207 | B13: 01 | C13: 09 | D13: 群众文化 | E13: 1085485.08 | F13: 1003800.00 | G13: 574584.00 | H13: 0.00 | I13: 0.00 | J13: 429216.00 | K13: 81685.08 | L13: 70266.00 | M13: 0.00 | N13: 11419.08 | O13: 0.00 | P13: 0.00 | Q13: 0.00 | R13: 0.00 | S13: 0.00 | T13: 0.00 | U13: 0.00
B14: 02 | E14: 1528690.30 | F14: 913424.00 | G14: 524868.00 | H14: 240276.00 | I14: 31820.00 | J14: 116460.00 | K14: 74195.82 | L14: 63939.68 | M14: 0.00 | N14: 10256.14 | O14: 0.00 | P14: 0.00 | Q14: 541070.48 | R14: 0.00 | S14: 0.00 | T14: 0.00 | U14: 0.00
A15: 207 | E15: 987619.82 | F15: 913424.00 | G15: 524868.00 | H15: 240276.00 | I15: 31820.00 | J15: 116460.00 | K15: 74195.82 | L15: 63939.68 | M15: 0.00 | N15: 10256.14 | O15: 0.00 | P15: 0.00 | Q15: 0.00 | R15: 0.00 | S15: 0.00 | T15: 0.00 | U15: 0.00
A16: 207 | B16: 02 | C16: 05 | D16: 博物馆 | E16: 987619.82 | F16: 913424.00 | G16: 524868.00 | H16: 240276.00 | I16: 31820.00 | J16: 116460.00 | K16: 74195.82 | L16: 63939.68 | M16: 0.00 | N16: 10256.14 | O16: 0.00 | P16: 0.00 | Q16: 0.00 | R16: 0.00 | S16: 0.00 | T16: 0.00 | U16: 0.00
A17: 221 | E17: 541070.48 | F17: 0.00 | G17: 0.00 | H17: 0.00 | I17: 0.00 | J17: 0.00 | K17: 0.00 | L17: 0.00 | M17: 0.00 | N17: 0.00 | O17: 0.00 | P17: 0.00 | Q17: 541070.48 | R17: 0.00 | S17: 0.00 | T17: 0.00 | U17: 0.00
A18: 221 | B18: 02 | C18: 01 | D18: 住房公积金 | E18: 161221.68 | F18: 0.00 | G18: 0.00 | H18: 0.00 | I18: 0.00 | J18: 0.00 | K18: 0.00 | L18: 0.00 | M18: 0.00 | N18: 0.00 | O18: 0.00 | P18: 0.00 | Q18: 161221.68 | R18: 0.00 | S18: 0.00 | T18: 0.00 | U18: 0.00
A19: 221 | B19: 02 | C19: 01 | D19: 住房公积金 | E19: 73073.92 | F19: 0.00 | G19: 0.00 | H19: 0.00 | I19: 0.00 | J19: 0.00 | K19: 0.00 | L19: 0.00 | M19: 0.00 | N19: 0.00 | O19: 0.00 | P19: 0.00 | Q19: 73073.92 | R19: 0.00 | S19: 0.00 | T19: 0.00 | U19: 0.00
A20: 221 | B20: 02 | C20: 01 | D20: 住房公积金 | E20: 83393.28 | F20: 0.00 | G20: 0.00 | H20: 0.00 | I20: 0.00 | J20: 0.00 | K20: 0.00 | L20: 0.00 | M20: 0.00 | N20: 0.00 | O20: 0.00 | P20: 0.00 | Q20: 83393.28 | R20: 0.00 | S20: 0.00 | T20: 0.00 | U20: 0.00
A21: 221 | B21: 02 | C21: 01 | D21: 住房公积金 | E21: 102973.60 | F21: 0.00 | G21: 0.00 | H21: 0.00 | I21: 0.00 | J21: 0.00 | K21: 0.00 | L21: 0.00 | M21: 0.00 | N21: 0.00 | O21: 0.00 | P21: 0.00 | Q21: 102973.60 | R21: 0.00 | S21: 0.00 | T21: 0.00 | U21: 0.00
A22: 221 | B22: 02 | C22: 01 | D22: 住房公积金 | E22: 40104.00 | F22: 0.00 | G22: 0.00 | H22: 0.00 | I22: 0.00 | J22: 0.00 | K22: 0.00 | L22: 0.00 | M22: 0.00 | N22: 0.00 | O22: 0.00 | P22: 0.00 | Q22: 40104.00 | R22: 0.00 | S22: 0.00 | T22: 0.00 | U22: 0.00
A23: 221 | B23: 02 | C23: 01 | D23: 住房公积金 | E23: 80304.00 | F23: 0.00 | G23: 0.00 | H23: 0.00 | I23: 0.00 | J23: 0.00 | K23: 0.00 | L23: 0.00 | M23: 0.00 | N23: 0.00 | O23: 0.00 | P23: 0.00 | Q23: 80304.00 | R23: 0.00 | S23: 0.00 | T23: 0.00 | U23: 0.00
B24: 05 | E24: 1352676.20 | F24: 0.00 | G24: 0.00 | H24: 0.00 | I24: 0.00 | J24: 0.00 | K24: 1352676.20 | L24: 0.00 | M24: 0.00 | N24: 0.00 | O24: 1352676.20 | P24: 0.00 | Q24: 0.00 | R24: 0.00 | S24: 0.00 | T24: 0.00 | U24: 0.00
A25: 208 | E25: 1352676.20 | F25: 0.00 | G25: 0.00 | H25: 0.00 | I25: 0.00 | J25: 0.00 | K25: 1352676.20 | L25: 0.00 | M25: 0.00 | N25: 0.00 | O25: 1352676.20 | P25: 0.00 | Q25: 0.00 | R25: 0.00 | S25: 0.00 | T25: 0.00 | U25: 0.00
A26: 208 | B26: 05 | C26: 05 | D26: 机关事业单位基本养老保险缴费支出 | E26: 257434.00 | F26: 0.00 | G26: 0.00 | H26: 0.00 | I26: 0.00 | J26: 0.00 | K26: 257434.00 | L26: 0.00 | M26: 0.00 | N26: 0.00 | O26: 257434.00 | P26: 0.00 | Q26: 0.00 | R26: 0.00 | S26: 0.00 | T26: 0.00 | U26: 0.00
A27: 208 | B27: 05 | C27: 05 | D27: 机关事业单位基本养老保险缴费支出 | E27: 403054.20 | F27: 0.00 | G27: 0.00 | H27: 0.00 | I27: 0.00 | J27: 0.00 | K27: 403054.20 | L27: 0.00 | M27: 0.00 | N27: 0.00 | O27: 403054.20 | P27: 0.00 | Q27: 0.00 | R27: 0.00 | S27: 0.00 | T27: 0.00 | U27: 0.00
A28: 208 | B28: 05 | C28: 05 | D28: 机关事业单位基本养老保险缴费支出 | E28: 182684.80 | F28: 0.00 | G28: 0.00 | H28: 0.00 | I28: 0.00 | J28: 0.00 | K28: 182684.80 | L28: 0.00 | M28: 0.00 | N28: 0.00 | O28: 182684.80 | P28: 0.00 | Q28: 0.00 | R28: 0.00 | S28: 0.00 | T28: 0.00 | U28: 0.00
A29: 208 | B29: 05 | C29: 05 | D29: 机关事业单位基本养老保险缴费支出 | E29: 208483.20 | F29: 0.00 | G29: 0.00 | H29: 0.00 | I29: 0.00 | J29: 0.00 | K29: 208483.20 | L29: 0.00 | M29: 0.00 | N29: 0.00 | O29: 208483.20 | P29: 0.00 | Q29: 0.00 | R29: 0.00 | S29: 0.00 | T29: 0.00 | U29: 0.00
A30: 208 | B30: 05 | C30: 05 | D30: 机关事业单位基本养老保险缴费支出 | E30: 200760.00 | F30: 0.00 | G30: 0.00 | H30: 0.00 | I30: 0.00 | J30: 0.00 | K30: 200760.00 | L30: 0.00 | M30: 0.00 | N30: 0.00 | O30: 200760.00 | P30: 0.00 | Q30: 0.00 | R30: 0.00 | S30: 0.00 | T30: 0.00 | U30: 0.00
A31: 208 | B31: 05 | C31: 05 | D31: 机关事业单位基本养老保险缴费支出 | E31: 100260.00 | F31: 0.00 | G31: 0.00 | H31: 0.00 | I31: 0.00 | J31: 0.00 | K31: 100260.00 | L31: 0.00 | M31: 0.00 | N31: 0.00 | O31: 100260.00 | P31: 0.00 | Q31: 0.00 | R31: 0.00 | S31: 0.00 | T31: 0.00 | U31: 0.00

Sheet 一般-工资福利（政府预算）
A2: 一般公共预算基本支出预算明细表-工资福利支出(按政府预算经济分类)
A3: 单位名称临湘市文化旅游广电新闻出版局 和 临湘市文化馆 和 临湘市图书馆 和 临湘市花鼓戏保护传承中心 和 临湘市文化市场综合执法大队 和 临湘市影剧院 和 临湘市博物馆 | M3: 单位：元
A4: 功能科目 | D4: 科目名称 | E4: 总计 | F4: 机关工资福利支出 | K4: 对事业单位经常性补助
A5: 类 | B5: 款 | C5: 项 | F5: 合计 | G5: 工资奖金津补贴 | H5: 社会保障缴费 | I5: 住房公积金 | J5: 其他工资福利支出 | K5: 合计 | L5: 工资福利支出 | M5: 其他对事业单位补助
D6: 合计 | E6: 9104270.84 | F6: 5738097.52 | G6: 4215865.00 | H6: 1184963.32 | I6: 337269.20 | J6: 0.00 | K6: 3366173.32 | L6: 3366173.32 | M6: 0.00
B7: 01 | E7: 6222904.34 | F7: 3570035.50 | G7: 3302441.00 | H7: 267594.50 | I7: 0.00 | J7: 0.00 | K7: 2652868.84 | L7: 2652868.84 | M7: 0.00
A8: 207 | E8: 6222904.34 | F8: 3570035.50 | G8: 3302441.00 | H8: 267594.50 | I8: 0.00 | J8: 0.00 | K8: 2652868.84 | L8: 2652868.84 | M8: 0.00
A9: 207 | B9: 01 | C9: 01 | D9: 行政运行（文化） | E9: 2178149.87 | F9: 2178149.87 | G9: 2015271.00 | H9: 162878.87 | I9: 0.00 | J9: 0.00 | K9: 0.00 | L9: 0.00 | M9: 0.00
A10: 207 | B10: 01 | C10: 01 | D10: 行政运行（文化） | E10: 1391885.63 | F10: 1391885.63 | G10: 1287170.00 | H10: 104715.63 | I10: 0.00 | J10: 0.00 | K10: 0.00 | L10: 0.00 | M10: 0.00
A11: 207 | B11: 01 | C11: 04 | D11: 图书馆 | E11: 1126641.72 | F11: 0.00 | G11: 0.00 | H11: 0.00 | I11: 0.00 | J11: 0.00 | K11: 1126641.72 | L11: 1126641.72 | M11: 0.00
A12: 207 | B12: 01 | C12: 07 | D12: 艺术表演团体 | E12: 440742.04 | F12: 0.00 | G12: 0.00 | H12: 0.00 | I12: 0.00 | J12: 0.00 | K12: 440742.04 | L12: 440742.04 | M12: 0.00
A13: 207 | B13: 01 | C13: 09 | D13: 群众文化 | E13: 1085485.08 | F13: 0.00 | G13: 0.00 | H13: 0.00 | I13: 0.00 | J13: 0.00 | K13: 1085485.08 | L13: 1085485.08 | M13: 0.00
B14: 02 | E14: 1528690.30 | F14: 1324889.02 | G14: 913424.00 | H14: 74195.82 | I14: 337269.20 | J14: 0.00 | K14: 203801.28 | L14: 203801.28 | M14: 0.00
A15: 207 | E15: 987619.82 | F15: 987619.82 | G15: 913424.00 | H15: 74195.82 | I15: 0.00 | J15: 0.00 | K15: 0.00 | L15: 0.00 | M15: 0.00
A16: 207 | B16: 02 | C16: 05 | D16: 博物馆 | E16: 987619.82 | F16: 987619.82 | G16: 913424.00 | H16: 74195.82 | I16: 0.00 | J16: 0.00 | K16: 0.00 | L16: 0.00 | M16: 0.00
A17: 221 | E17: 541070.48 | F17: 337269.20 | G17: 0.00 | H17: 0.00 | I17: 337269.20 | J17: 0.00 | K17: 203801.28 | L17: 203801.28 | M17: 0.00
A18: 221 | B18: 02 | C18: 01 | D18: 住房公积金 | E18: 83393.28 | F18: 0.00 | G18: 0.00 | H18: 0.00 | I18: 0.00 | J18: 0.00 | K18: 83393.28 | L18: 83393.28 | M18: 0.00
A19: 221 | B19: 02 | C19: 01 | D19: 住房公积金 | E19: 102973.60 | F19: 102973.60 | G19: 0.00 | H19: 0.00 | I19: 102973.60 | J19: 0.00 | K19: 0.00 | L19: 0.00 | M19: 0.00
A20: 221 | B20: 02 | C20: 01 | D20: 住房公积金 | E20: 73073.92 | F20: 73073.92 | G20: 0.00 | H20: 0.00 | I20: 73073.92 | J20: 0.00 | K20: 0.00 | L20: 0.00 | M20: 0.00
A21: 221 | B21: 02 | C21: 01 | D21: 住房公积金 | E21: 40104.00 | F21: 0.00 | G21: 0.00 | H21: 0.00 | I21: 0.00 | J21: 0.00 | K21: 40104.00 | L21: 40104.00 | M21: 0.00
A22: 221 | B22: 02 | C22: 01 | D22: 住房公积金 | E22: 161221.68 | F22: 161221.68 | G22: 0.00 | H22: 0.00 | I22: 161221.68 | J22: 0.00 | K22: 0.00 | L22: 0.00 | M22: 0.00
A23: 221 | B23: 02 | C23: 01 | D23: 住房公积金 | E23: 80304.00 | F23: 0.00 | G23: 0.00 | H23: 0.00 | I23: 0.00 | J23: 0.00 | K23: 80304.00 | L23: 80304.00 | M23: 0.00
B24: 05 | E24: 1352676.20 | F24: 843173.00 | G24: 0.00 | H24: 843173.00 | I24: 0.00 | J24: 0.00 | K24: 509503.20 | L24: 509503.20 | M24: 0.00
A25: 208 | E25: 1352676.20 | F25: 843173.00 | G25: 0.00 | H25: 843173.00 | I25: 0.00 | J25: 0.00 | K25: 509503.20 | L25: 509503.20 | M25: 0.00
A26: 208 | B26: 05 | C26: 05 | D26: 机关事业单位基本养老保险缴费支出 | E26: 257434.00 | F26: 257434.00 | G26: 0.00 | H26: 257434.00 | I26: 0.00 | J26: 0.00 | K26: 0.00 | L26: 0.00 | M26: 0.00
A27: 208 | B27: 05 | C27: 05 | D27: 机关事业单位基本养老保险缴费支出 | E27: 208483.20 | F27: 0.00 | G27: 0.00 | H27: 0.00 | I27: 0.00 | J27: 0.00 | K27: 208483.20 | L27: 208483.20 | M27: 0.00
A28: 208 | B28: 05 | C28: 05 | D28: 机关事业单位基本养老保险缴费支出 | E28: 182684.80 | F28: 182684.80 | G28: 0.00 | H28: 182684.80 | I28: 0.00 | J28: 0.00 | K28: 0.00 | L28: 0.00 | M28: 0.00
A29: 208 | B29: 05 | C29: 05 | D29: 机关事业单位基本养老保险缴费支出 | E29: 100260.00 | F29: 0.00 | G29: 0.00 | H29: 0.00 | I29: 0.00 | J29: 0.00 | K29: 100260.00 | L29: 100260.00 | M29: 0.00
A30: 208 | B30: 05 | C30: 05 | D30: 机关事业单位基本养老保险缴费支出 | E30: 403054.20 | F30: 403054.20 | G30: 0.00 | H30: 403054.20 | I30: 0.00 | J30: 0.00 | K30: 0.00 | L30: 0.00 | M30: 0.00
A31: 208 | B31: 05 | C31: 05 | D31: 机关事业单位基本养老保险缴费支出 | E31: 200760.00 | F31: 0.00 | G31: 0.00 | H31: 0.00 | I31: 0.00 | J31: 0.00 | K31: 200760.00 | L31: 200760.00 | M31: 0.00

Sheet 一般-商品和服务支出
A2: 一般公共预算基本预算支出明细表-商品和服务支出
A3: 单位名称临湘市文化旅游广电新闻出版局 和 临湘市文化馆 和 临湘市图书馆 和 临湘市花鼓戏保护传承中心 和 临湘市文化市场综合执法大队 和 临湘市影剧院 和 临湘市博物馆 | AF3: 单位：元
A4: 功能科目 | D4: 科目名称 | E4: 总计 | F4: 办公费 | G4: 日常印刷费 | H4: 水费 | I4: 电费 | J4: 邮电费 | K4: 取暖费 | L4: 物业管理费 | M4: 因公出国（境）费 | N4: 差旅费 | O4: 日常维修(护)费 | P4: 租赁费 | Q4: 会议费 | R4: 培训费 | S4: 公务接待费 | T4: 劳务费 | U4: 工会经费 | V4: 福利费 | W4: 公务用车运行维护费 | X4: 其他交通费 | Y4: 其他一般商品和服务支出 | Z4: 税金及附加费用 | AA4: 业务委托费 | AB4: 专用燃料费 | AC4: 被装购置费 | AD4: 专用材料费 | AE4: 手续费 | AF4: 咨询费
A5: 类 | B5: 款 | C5: 项
D6: 合计 | E6: 4,156,800.00 | F6: 410,000.00 | G6: 170,500.00 | H6: 82,500.00 | I6: 201,500.00 | J6: 38,800.00 | K6: 0.00 | L6: 0.00 | M6: 0.00 | N6: 86,000.00 | O6: 640,000.00 | P6: 30,000.00 | Q6: 88,000.00 | R6: 318,000.00 | S6: 149,500.00 | T6: 770,000.00 | U6: 103,100.00 | V6: 7,500.00 | W6: 0.00 | X6: 296,800.00 | Y6: 404,600.00 | Z6: 30,000.0000 | AA6: 330,000.0000 | AB6: 0.0000 | AC6: 0.0000 | AD6: 0.0000 | AE6: 0.0000 | AF6: 0.0000
B7: 01 | E7: 3,902,400.00 | F7: 366,000.00 | G7: 170,500.00 | H7: 77,500.00 | I7: 186,500.00 | J7: 38,800.00 | K7: 0.00 | L7: 0.00 | M7: 0.00 | N7: 86,000.00 | O7: 610,000.00 | P7: 30,000.00 | Q7: 80,000.00 | R7: 310,000.00 | S7: 139,500.00 | T7: 762,000.00 | U7: 83,500.00 | V7: 7,500.00 | W7: 0.00 | X7: 237,400.00 | Y7: 357,200.00 | Z7: 30,000.0000 | AA7: 330,000.0000 | AB7: 0.0000 | AC7: 0.0000 | AD7: 0.0000 | AE7: 0.0000 | AF7: 0.0000
A8: 207 | E8: 3,902,400.00 | F8: 366,000.00 | G8: 170,500.00 | H8: 77,500.00 | I8: 186,500.00 | J8: 38,800.00 | K8: 0.00 | L8: 0.00 | M8: 0.00 | N8: 86,000.00 | O8: 610,000.00 | P8: 30,000.00 | Q8: 80,000.00 | R8: 310,000.00 | S8: 139,500.00 | T8: 762,000.00 | U8: 83,500.00 | V8: 7,500.00 | W8: 0.00 | X8: 237,400.00 | Y8: 357,200.00 | Z8: 30,000.0000 | AA8: 330,000.0000 | AB8: 0.0000 | AC8: 0.0000 | AD8: 0.0000 | AE8: 0.0000 | AF8: 0.0000
A9: 207 | B9: 01 | C9: 01 | D9: 行政运行（文化） | E9: 1,548,200.00 | F9: 108,000.00 | G9: 40,000.00 | H9: 40,000.00 | I9: 40,000.00 | J9: 8,000.00 | K9: 0.00 | L9: 0.00 | M9: 0.00 | N9: 30,000.00 | O9: 280,000.00 | P9: 0.00 | Q9: 45,000.00 | R9: 270,000.00 | S9: 65,000.00 | T9: 0.00 | U9: 20,000.00 | V9: 0.00 | W9: 0.00 | X9: 157,200.00 | Y9: 115,000.00 | Z9: 0.0000 | AA9: 330,000.0000 | AB9: 0.0000 | AC9: 0.0000 | AD9: 0.0000 | AE9: 0.0000 | AF9: 0.0000
A10: 207 | B10: 01 | C10: 01 | D10: 行政运行（文化） | E10: 150,000.00 | F10: 0.00 | G10: 0.00 | H10: 0.00 | I10: 0.00 | J10: 0.00 | K10: 0.00 | L10: 0.00 | M10: 0.00 | N10: 0.00 | O10: 150,000.00 | P10: 0.00 | Q10: 0.00 | R10: 0.00 | S10: 0.00 | T10: 0.00 | U10: 0.00 | V10: 0.00 | W10: 0.00 | X10: 0.00 | Y10: 0.00 | Z10: 0.0000 | AA10: 0.0000 | AB10: 0.0000 | AC10: 0.0000 | AD10: 0.0000 | AE10: 0.0000 | AF10: 0.0000
A11: 207 | B11: 01 | C11: 01 | D11: 行政运行（文化） | E11: 596,200.00 | F11: 115,000.00 | G11: 47,500.00 | H11: 22,500.00 | I11: 61,500.00 | J11: 30,000.00 | K11: 0.00 | L11: 0.00 | M11: 0.00 | N11: 16,000.00 | O11: 92,000.00 | P11: 30,000.00 | Q11: 20,000.00 | R11: 15,000.00 | S11: 16,500.00 | T11: 15,000.00 | U11: 7,500.00 | V11: 7,500.00 | W11: 0.00 | X11: 40,200.00 | Y11: 60,000.00 | Z11: 0.0000 | AA11: 0.0000 | AB11: 0.0000 | AC11: 0.0000 | AD11: 0.0000 | AE11: 0.0000 | AF11: 0.0000
A12: 207 | B12: 01 | C12: 04 | D12: 图书馆 | E12: 178,000.00 | F12: 12,000.00 | G12: 2,000.00 | H12: 2,000.00 | I12: 20,000.00 | J12: 800.00 | K12: 0.00 | L12: 0.00 | M12: 0.00 | N12: 20,000.00 | O12: 8,000.00 | P12: 0.00 | Q12: 5,000.00 | R12: 15,000.00 | S12: 25,000.00 | T12: 0.00 | U12: 26,000.00 | V12: 0.00 | W12: 0.00 | X12: 0.00 | Y12: 42,200.00 | Z12: 0.0000 | AA12: 0.0000 | AB12: 0.0000 | AC12: 0.0000 | AD12: 0.0000 | AE12: 0.0000 | AF12: 0.0000
A13: 207 | B13: 01 | C13: 07 | D13: 艺术表演团体 | E13: 1,308,000.00 | F13: 120,000.00 | G13: 70,000.00 | H13: 3,000.00 | I13: 55,000.00 | J13: 0.00 | K13: 0.00 | L13: 0.00 | M13: 0.00 | N13: 20,000.00 | O13: 70,000.00 | P13: 0.00 | Q13: 0.00 | R13: 0.00 | S13: 0.00 | T13: 747,000.00 | U13: 30,000.00 | V13: 0.00 | W13: 0.00 | X13: 40,000.00 | Y13: 123,000.00 | Z13: 30,000.0000 | AA13: 0.0000 | AB13: 0.0000 | AC13: 0.0000 | AD13: 0.0000 | AE13: 0.0000 | AF13: 0.0000
A14: 207 | B14: 01 | C14: 09 | D14: 群众文化 | E14: 122,000.00 | F14: 11,000.00 | G14: 11,000.00 | H14: 10,000.00 | I14: 10,000.00 | J14: 0.00 | K14: 0.00 | L14: 0.00 | M14: 0.00 | N14: 0.00 | O14: 10,000.00 | P14: 0.00 | Q14: 10,000.00 | R14: 10,000.00 | S14: 33,000.00 | T14: 0.00 | U14: 0.00 | V14: 0.00 | W14: 0.00 | X14: 0.00 | Y14: 17,000.00 | Z14: 0.0000 | AA14: 0.0000 | AB14: 0.0000 | AC14: 0.0000 | AD14: 0.0000 | AE14: 0.0000 | AF14: 0.0000
B15: 02 | E15: 254,400.00 | F15: 44,000.00 | G15: 0.00 | H15: 5,000.00 | I15: 15,000.00 | J15: 0.00 | K15: 0.00 | L15: 0.00 | M15: 0.00 | N15: 0.00 | O15: 30,000.00 | P15: 0.00 | Q15: 8,000.00 | R15: 8,000.00 | S15: 10,000.00 | T15: 8,000.00 | U15: 19,600.00 | V15: 0.00 | W15: 0.00 | X15: 59,400.00 | Y15: 47,400.00 | Z15: 0.0000 | AA15: 0.0000 | AB15: 0.0000 | AC15: 0.0000 | AD15: 0.0000 | AE15: 0.0000 | AF15: 0.0000
A16: 207 | E16: 254,400.00 | F16: 44,000.00 | G16: 0.00 | H16: 5,000.00 | I16: 15,000.00 | J16: 0.00 | K16: 0.00 | L16: 0.00 | M16: 0.00 | N16: 0.00 | O16: 30,000.00 | P16: 0.00 | Q16: 8,000.00 | R16: 8,000.00 | S16: 10,000.00 | T16: 8,000.00 | U16: 19,600.00 | V16: 0.00 | W16: 0.00 | X16: 59,400.00 | Y16: 47,400.00 | Z16: 0.0000 | AA16: 0.0000 | AB16: 0.0000 | AC16: 0.0000 | AD16: 0.0000 | AE16: 0.0000 | AF16: 0.0000
A17: 207 | B17: 02 | C17: 04 | D17: 文物保护 | E17: 10,000.00 | F17: 0.00 | G17: 0.00 | H17: 0.00 | I17: 0.00 | J17: 0.00 | K17: 0.00 | L17: 0.00 | M17: 0.00 | N17: 0.00 | O17: 0.00 | P17: 0.00 | Q17: 0.00 | R17: 0.00 | S17: 0.00 | T17: 0.00 | U17: 0.00 | V17: 0.00 | W17: 0.00 | X17: 0.00 | Y17: 10,000.00 | Z17: 0.0000 | AA17: 0.0000 | AB17: 0.0000 | AC17: 0.0000 | AD17: 0.0000 | AE17: 0.0000 | AF17: 0.0000
A18: 207 | B18: 02 | C18: 05 | D18: 博物馆 | E18: 244,400.00 | F18: 44,000.00 | G18: 0.00 | H18: 5,000.00 | I18: 15,000.00 | J18: 0.00 | K18: 0.00 | L18: 0.00 | M18: 0.00 | N18: 0.00 | O18: 30,000.00 | P18: 0.00 | Q18: 8,000.00 | R18: 8,000.00 | S18: 10,000.00 | T18: 8,000.00 | U18: 19,600.00 | V18: 0.00 | W18: 0.00 | X18: 59,400.00 | Y18: 37,400.00 | Z18: 0.0000 | AA18: 0.0000 | AB18: 0.0000 | AC18: 0.0000 | AD18: 0.0000 | AE18: 0.0000 | AF18: 0.0000

Sheet 一般-商品和服务支出（政府预算）
A2: 一般公共预算支出预算明细表-商品和服务支出（政府预算）
A3: 单位名称临湘市文化旅游广电新闻出版局 和 临湘市文化馆 和 临湘市图书馆 和 临湘市花鼓戏保护传承中心 和 临湘市文化市场综合执法大队 和 临湘市影剧院 和 临湘市博物馆 | S3: 单位：元
A4: 功能科目 | D4: 科目名称 | E4: 总计 | F4: 机关商品和服务支出 | Q4: 对事业单位经常性补助
A5: 类 | B5: 款 | C5: 项 | F5: 合计 | G5: 办公经费 | H5: 会议费 | I5: 培训费 | J5: 委托业务费 | K5: 公务接待费 | L5: 公务用车运行维护费 | M5: 维修（护）费 | N5: 其他商品和服务支出 | O5: 因公出国（境）费用 | P5: 专用材料购置费 | Q5: 合计 | R5: 商品和服务支出 | S5: 其他对事业单位补助
D6: 合计 | E6: 4,156,800.00 | F6: 2,398,800.00 | G6: 963,900.00 | H6: 73,000.00 | I6: 293,000.00 | J6: 353,000.00 | K6: 91,500.00 | L6: 0.00 | M6: 402,000.00 | N6: 222,400.00 | O6: 0.0000 | P6: 0.0000 | Q6: 1,758,000.00 | R6: 1,758,000.00 | S6: 0.00
B7: 01 | E7: 3,902,400.00 | F7: 2,144,400.00 | G7: 820,900.00 | H7: 65,000.00 | I7: 285,000.00 | J7: 345,000.00 | K7: 81,500.00 | L7: 0.00 | M7: 372,000.00 | N7: 175,000.00 | O7: 0.0000 | P7: 0.0000 | Q7: 1,758,000.00 | R7: 1,758,000.00 | S7: 0.00
A8: 207 | E8: 3,902,400.00 | F8: 2,144,400.00 | G8: 820,900.00 | H8: 65,000.00 | I8: 285,000.00 | J8: 345,000.00 | K8: 81,500.00 | L8: 0.00 | M8: 372,000.00 | N8: 175,000.00 | O8: 0.0000 | P8: 0.0000 | Q8: 1,758,000.00 | R8: 1,758,000.00 | S8: 0.00
A9: 207 | B9: 01 | C9: 01 | D9: 行政运行（文化） | E9: 1,548,200.00 | F9: 1,548,200.00 | G9: 443,200.00 | H9: 45,000.00 | I9: 270,000.00 | J9: 330,000.00 | K9: 65,000.00 | L9: 0.00 | M9: 280,000.00 | N9: 115,000.00 | O9: 0.0000 | P9: 0.0000 | Q9: 0.00 | R9: 0.00 | S9: 0.00
A10: 207 | B10: 01 | C10: 01 | D10: 行政运行（文化） | E10: 150,000.00 | F10: 0.00 | G10: 0.00 | H10: 0.00 | I10: 0.00 | J10: 0.00 | K10: 0.00 | L10: 0.00 | M10: 0.00 | N10: 0.00 | O10: 0.0000 | P10: 0.0000 | Q10: 150,000.00 | R10: 150,000.00 | S10: 0.00
A11: 207 | B11: 01 | C11: 01 | D11: 行政运行（文化） | E11: 596,200.00 | F11: 596,200.00 | G11: 377,700.00 | H11: 20,000.00 | I11: 15,000.00 | J11: 15,000.00 | K11: 16,500.00 | L11: 0.00 | M11: 92,000.00 | N11: 60,000.00 | O11: 0.0000 | P11: 0.0000 | Q11: 0.00 | R11: 0.00 | S11: 0.00
A12: 207 | B12: 01 | C12: 04 | D12: 图书馆 | E12: 178,000.00 | F12: 0.00 | G12: 0.00 | H12: 0.00 | I12: 0.00 | J12: 0.00 | K12: 0.00 | L12: 0.00 | M12: 0.00 | N12: 0.00 | O12: 0.0000 | P12: 0.0000 | Q12: 178,000.00 | R12: 178,000.00 | S12: 0.00
A13: 207 | B13: 01 | C13: 07 | D13: 艺术表演团体 | E13: 1,308,000.00 | F13: 0.00 | G13: 0.00 | H13: 0.00 | I13: 0.00 | J13: 0.00 | K13: 0.00 | L13: 0.00 | M13: 0.00 | N13: 0.00 | O13: 0.0000 | P13: 0.0000 | Q13: 1,308,000.00 | R13: 1,308,000.00 | S13: 0.00
A14: 207 | B14: 01 | C14: 09 | D14: 群众文化 | E14: 122,000.00 | F14: 0.00 | G14: 0.00 | H14: 0.00 | I14: 0.00 | J14: 0.00 | K14: 0.00 | L14: 0.00 | M14: 0.00 | N14: 0.00 | O14: 0.0000 | P14: 0.0000 | Q14: 122,000.00 | R14: 122,000.00 | S14: 0.00
B15: 02 | E15: 254,400.00 | F15: 254,400.00 | G15: 143,000.00 | H15: 8,000.00 | I15: 8,000.00 | J15: 8,000.00 | K15: 10,000.00 | L15: 0.00 | M15: 30,000.00 | N15: 47,400.00 | O15: 0.0000 | P15: 0.0000 | Q15: 0.00 | R15: 0.00 | S15: 0.00
A16: 207 | E16: 254,400.00 | F16: 254,400.00 | G16: 143,000.00 | H16: 8,000.00 | I16: 8,000.00 | J16: 8,000.00 | K16: 10,000.00 | L16: 0.00 | M16: 30,000.00 | N16: 47,400.00 | O16: 0.0000 | P16: 0.0000 | Q16: 0.00 | R16: 0.00 | S16: 0.00
A17: 207 | B17: 02 | C17: 04 | D17: 文物保护 | E17: 10,000.00 | F17: 10,000.00 | G17: 0.00 | H17: 0.00 | I17: 0.00 | J17: 0.00 | K17: 0.00 | L17: 0.00 | M17: 0.00 | N17: 10,000.00 | O17: 0.0000 | P17: 0.0000 | Q17: 0.00 | R17: 0.00 | S17: 0.00
A18: 207 | B18: 02 | C18: 05 | D18: 博物馆 | E18: 244,400.00 | F18: 244,400.00 | G18: 143,000.00 | H18: 8,000.00 | I18: 8,000.00 | J18: 8,000.00 | K18: 10,000.00 | L18: 0.00 | M18: 30,000.00 | N18: 37,400.00 | O18: 0.0000 | P18: 0.0000 | Q18: 0.00 | R18: 0.00 | S18: 0.00

Sheet 一般-个人家庭
A2: 一般公共预算基本支出明细表-对个人和家庭的补助
A3: 单位名称临湘市文化旅游广电新闻出版局 和 临湘市文化馆 和 临湘市图书馆 和 临湘市花鼓戏保护传承中心 和 临湘市文化市场综合执法大队 和 临湘市影剧院 和 临湘市博物馆 | P3: 单位：元
A4: 功能科目 | D4: 科目名称 | E4: 总计 | F4: 离休费 | G4: 退休费 | H4: 退职(役)费 | I4: 抚恤金 | J4: 生活补助 | K4: 救济费 | L4: 医疗费 | M4: 助学金 | N4: 奖励金 | O4: 生产补贴 | P4: 其他对个人和家庭的补助
A5: 类 | B5: 款 | C5: 项
D6: 合计 | E6: 16,560.00 | F6: 0.00 | G6: 0.00 | H6: 0.00 | I6: 16,560.00 | J6: 0.00 | K6: 0.00 | L6: 0.00 | M6: 0.00 | N6: 0.00 | O6: 0.00 | P6: 0.00
B7: 01 | E7: 16,560.00 | F7: 0.00 | G7: 0.00 | H7: 0.00 | I7: 16,560.00 | J7: 0.00 | K7: 0.00 | L7: 0.00 | M7: 0.00 | N7: 0.00 | O7: 0.00 | P7: 0.00
A8: 207 | E8: 16,560.00 | F8: 0.00 | G8: 0.00 | H8: 0.00 | I8: 16,560.00 | J8: 0.00 | K8: 0.00 | L8: 0.00 | M8: 0.00 | N8: 0.00 | O8: 0.00 | P8: 0.00
A9: 207 | B9: 01 | C9: 04 | D9: 图书馆 | E9: 5,100.00 | F9: 0.00 | G9: 0.00 | H9: 0.00 | I9: 5,100.00 | J9: 0.00 | K9: 0.00 | L9: 0.00 | M9: 0.00 | N9: 0.00 | O9: 0.00 | P9: 0.00
A10: 207 | B10: 01 | C10: 09 | D10: 群众文化 | E10: 11,460.00 | F10: 0.00 | G10: 0.00 | H10: 0.00 | I10: 11,460.00 | J10: 0.00 | K10: 0.00 | L10: 0.00 | M10: 0.00 | N10: 0.00 | O10: 0.00 | P10: 0.00

Sheet 一般-个人家庭（政府预算）
A2: 一般公共预算基本支出明细表-对个人和家庭的补助（政府预算）
A3: 单位名称临湘市文化旅游广电新闻出版局 和 临湘市文化馆 和 临湘市图书馆 和 临湘市花鼓戏保护传承中心 和 临湘市文化市场综合执法大队 和 临湘市影剧院 和 临湘市博物馆 | J3: 单位：元
A4: 功能科目 | D4: 科目名称 | E4: 总计 | F4: 社会福利和救济 | G4: 助学金 | H4: 个人农业生产补贴 | I4: 离退休 | J4: 其他对个人和家庭的补助
A5: 类 | B5: 款 | C5: 项
D6: 合计 | E6: 16,560.00 | F6: 16,560.00 | G6: 0.00 | H6: 0.00 | I6: 0.00 | J6: 0.00
B7: 01 | E7: 16,560.00 | F7: 16,560.00 | G7: 0.00 | H7: 0.00 | I7: 0.00 | J7: 0.00
A8: 207 | E8: 16,560.00 | F8: 16,560.00 | G8: 0.00 | H8: 0.00 | I8: 0.00 | J8: 0.00
A9: 207 | B9: 01 | C9: 04 | D9: 图书馆 | E9: 5,100.00 | F9: 5,100.00 | G9: 0.00 | H9: 0.00 | I9: 0.00 | J9: 0.00
A10: 207 | B10: 01 | C10: 09 | D10: 群众文化 | E10: 11,460.00 | F10: 11,460.00 | G10: 0.00 | H10: 0.00 | I10: 0.00 | J10: 0.00

Sheet 基金
A2: 政府性基金预算支出情况表
A3: 单位名称临湘市文化旅游广电新闻出版局 和 临湘市文化馆 和 临湘市图书馆 和 临湘市花鼓戏保护传承中心 和 临湘市文化市场综合执法大队 和 临湘市影剧院 和 临湘市博物馆 | Q3: 单位：元
A4: 功能科目 | E4: 总计 | F4: 基本支出 | J4: 项目支出
A5: 科目编码 | D5: 科目名称 | F5: 合计 | G5: 工资福利支出 | H5: 一般商品和服务支出 | I5: 对个人和家庭的补助 | J5: 合计 | K5: 商品和服务支出 | L5: 对个人和家庭的补助支出 | M5: 基本建设 | N5: 其他资本性支出 | O5: 对企事业单位的补贴 | P5: 其他支出 | Q5: 债务利息及费用支出
A6: 类 | B6: 款 | C6: 项

Sheet 基金（政府预算）
A2: 政府性基金预算支出情况表(按政府预算经济分类)
A3: 单位名称临湘市文化旅游广电新闻出版局 和 临湘市文化馆 和 临湘市图书馆 和 临湘市花鼓戏保护传承中心 和 临湘市文化市场综合执法大队 和 临湘市影剧院 和 临湘市博物馆 | Q3: 单位：元
A4: 功能科目 | D4: 功能科目 | E4: 总计 | F4: 机关工资福利支出 | G4: 机关商品和服务支出 | H4: 机关资本性支出（一） | I4: 机关资本性支出（二） | J4: 对事业单位经常性补助 | K4: 对事业单位资本性补助 | L4: 对企业补助 | M4: 对企业资本性支出 | N4: 对个人和家庭的补助 | O4: 对社会保障基金补助 | P4: 债务利息及费用支出 | Q4: 其他支出
A5: 类 | B5: 款 | C5: 项

Sheet 专户
A2: 纳入专户管理的非税收入预算拨款汇总表
A3: 单位名称临湘市文化旅游广电新闻出版局 和 临湘市文化馆 和 临湘市图书馆 和 临湘市花鼓戏保护传承中心 和 临湘市文化市场综合执法大队 和 临湘市影剧院 和 临湘市博物馆 | Q3: 单位：元
A4: 功能科目 | E4: 总计 | F4: 基本支出 | J4: 项目支出
A5: 科目编码 | D5: 科目名称 | F5: 合计 | G5: 工资福利支出 | H5: 一般商品和服务支出 | I5: 对个人和家庭的补助 | J5: 合计 | K5: 商品和服务支出 | L5: 对个人和家庭的补助支出 | M5: 基本建设 | N5: 其他资本性支出 | O5: 对企事业单位的补贴 | P5: 其他支出 | Q5: 债务利息及费用支出
A6: 类 | B6: 款 | C6: 项
D7: 合计 | E7: 200000.00 | F7: 200000.00 | G7: 176455.08 | H7: 23544.92 | I7: 0.00 | J7: 0.00 | K7: 0.00 | L7: 0.00 | M7: 0.00 | N7: 0.00 | O7: 0.00 | P7: 0.00 | Q7: 0.00
A8: 207 | E8: 200000.00 | F8: 200000.00 | G8: 176455.08 | H8: 23544.92 | I8: 0.00 | J8: 0.00 | K8: 0.00 | L8: 0.00 | M8: 0.00 | N8: 0.00 | O8: 0.00 | P8: 0.00 | Q8: 0.00
B9: 01 | E9: 200000.00 | F9: 200000.00 | G9: 176455.08 | H9: 23544.92 | I9: 0.00 | J9: 0.00 | K9: 0.00 | L9: 0.00 | M9: 0.00 | N9: 0.00 | O9: 0.00 | P9: 0.00 | Q9: 0.00
A10: 207 | B10: 01 | C10: 01 | D10: 行政运行（文化） | E10: 200000.00 | F10: 200000.00 | G10: 176455.08 | H10: 23544.92 | I10: 0.00 | J10: 0.00 | K10: 0.00 | L10: 0.00 | M10: 0.00 | N10: 0.00 | O10: 0.00 | P10: 0.00 | Q10: 0.00

Sheet 专户（政府预算）
A2: 纳入专户管理的非税收入拨款预算分类汇总表(按政府预算经济分类)
A3: 单位名称临湘市文化旅游广电新闻出版局 和 临湘市文化馆 和 临湘市图书馆 和 临湘市花鼓戏保护传承中心 和 临湘市文化市场综合执法大队 和 临湘市影剧院 和 临湘市博物馆 | Q3: 单位：元
A4: 功能科目 | D4: 功能科目 | E4: 总计 | F4: 机关工资福利支出 | G4: 机关商品和服务支出 | H4: 机关资本性支出（一） | I4: 机关资本性支出（二） | J4: 对事业单位经常性补助 | K4: 对事业单位资本性补助 | L4: 对企业补助 | M4: 对企业资本性支出 | N4: 对个人和家庭的补助 | O4: 对社会保障基金补助 | P4: 债务利息及费用支出 | Q4: 其他支出
A5: 类 | B5: 款 | C5: 项
D7: 合计 | E7: 0.00 | F7: 0.00 | G7: 0.00 | H7: 0.00 | I7: 0.00 | J7: 200000.00 | K7: 0.00 | L7: 0.00 | M7: 0.00 | N7: 0.00 | O7: 0.00 | P7: 0.00 | Q7: 0.00
A8: 207 | E8: 0.00 | F8: 0.00 | G8: 0.00 | H8: 0.00 | I8: 0.00 | J8: 200000.00 | K8: 0.00 | L8: 0.00 | M8: 0.00 | N8: 0.00 | O8: 0.00 | P8: 0.00 | Q8: 0.00
A9: 207 | B9: 01 | E9: 0.00 | F9: 0.00 | G9: 0.00 | H9: 0.00 | I9: 0.00 | J9: 200000.00 | K9: 0.00 | L9: 0.00 | M9: 0.00 | N9: 0.00 | O9: 0.00 | P9: 0.00 | Q9: 0.00
A10: 207 | B10: 01 | C10: 01 | D10: 行政运行（文化） | E10: 0.00 | F10: 0.00 | G10: 0.00 | H10: 0.00 | I10: 0.00 | J10: 200000.00 | K10: 0.00 | L10: 0.00 | M10: 0.00 | N10: 0.00 | O10: 0.00 | P10: 0.00 | Q10: 0.00

Sheet 经费拨款
A2: 一般预算拨款-经费拨款
A3: 单位名称临湘市文化旅游广电新闻出版局 和 临湘市文化馆 和 临湘市图书馆 和 临湘市花鼓戏保护传承中心 和 临湘市文化市场综合执法大队 和 临湘市影剧院 和 临湘市博物馆 | Q3: 单位：元
A4: 功能科目 | E4: 总计 | F4: 基本支出 | J4: 项目支出
A5: 科目编码 | D5: 科目名称 | F5: 合计 | G5: 工资福利支出 | H5: 一般商品和服务支出 | I5: 对个人和家庭的补助 | J5: 合计 | K5: 商品和服务支出 | L5: 对个人和家庭的补助支出 | M5: 基本建设 | N5: 其他资本性支出 | O5: 对企事业单位的补贴 | P5: 其他支出 | Q5: 债务利息及费用支出
A6: 类 | B6: 款 | C6: 项
D7: 合计 | E7: 13655630.84 | F7: 10389630.84 | G7: 9104270.84 | H7: 1268800.00 | I7: 16560.00 | J7: 3266000.00 | K7: 2458000.00 | L7: 0.00 | M7: 310000.00 | N7: 498000.00 | O7: 0.00 | P7: 0.00 | Q7: 0.00
A8: 207 | E8: 11761884.16 | F8: 8495884.16 | G8: 7210524.16 | H8: 1268800.00 | I8: 16560.00 | J8: 3266000.00 | K8: 2458000.00 | L8: 0.00 | M8: 310000.00 | N8: 498000.00 | O8: 0.00 | P8: 0.00 | Q8: 0.00
B9: 1 | E9: 10539864.34 | F9: 7303864.34 | G9: 6222904.34 | H9: 1064400.00 | I9: 16560.00 | J9: 3236000.00 | K9: 2458000.00 | L9: 0.00 | M9: 280000.00 | N9: 498000.00 | O9: 0.00 | P9: 0.00 | Q9: 0.00
A10: 207 | B10: 1 | C10: 1 | D10: 行政运行（文化） | E10: 1608085.63 | F10: 1608085.63 | G10: 1391885.63 | H10: 216200.00 | I10: 0.00 | J10: 0.00 | K10: 0.00 | L10: 0.00 | M10: 0.00 | N10: 0.00 | O10: 0.00 | P10: 0.00 | Q10: 0.00
A11: 207 | B11: 1 | C11: 1 | D11: 行政运行（文化） | E11: 150000.00 | F11: 0.00 | G11: 0.00 | H11: 0.00 | I11: 0.00 | J11: 150000.00 | K11: 150000.00 | L11: 0.00 | M11: 0.00 | N11: 0.00 | O11: 0.00 | P11: 0.00 | Q11: 0.00
A12: 207 | B12: 1 | C12: 1 | D12: 行政运行（文化） | E12: 4006349.87 | F12: 2726349.87 | G12: 2178149.87 | H12: 548200.00 | I12: 0.00 | J12: 1280000.00 | K12: 1000000.00 | L12: 0.00 | M12: 280000.00 | N12: 0.00 | O12: 0.00 | P12: 0.00 | Q12: 0.00
A13: 207 | B13: 1 | C13: 4 | D13: 图书馆 | E13: 1559741.72 | F13: 1309741.72 | G13: 1126641.72 | H13: 178000.00 | I13: 5100.00 | J13: 250000.00 | K13: 0.00 | L13: 0.00 | M13: 0.00 | N13: 250000.00 | O13: 0.00 | P13: 0.00 | Q13: 0.00
A14: 207 | B14: 1 | C14: 7 | D14: 艺术表演团体 | E14: 1996742.04 | F14: 440742.04 | G14: 440742.04 | H14: 0.00 | I14: 0.00 | J14: 1556000.00 | K14: 1308000.00 | L14: 0.00 | M14: 0.00 | N14: 248000.00 | O14: 0.00 | P14: 0.00 | Q14: 0.00
A15: 207 | B15: 1 | C15: 9 | D15: 群众文化 | E15: 1218945.08 | F15: 1218945.08 | G15: 1085485.08 | H15: 122000.00 | I15: 11460.00 | J15: 0.00 | K15: 0.00 | L15: 0.00 | M15: 0.00 | N15: 0.00 | O15: 0.00 | P15: 0.00 | Q15: 0.00
B16: 2 | E16: 1222019.82 | F16: 1192019.82 | G16: 987619.82 | H16: 204400.00 | I16: 0.00 | J16: 30000.00 | K16: 0.00 | L16: 0.00 | M16: 30000.00 | N16: 0.00 | O16: 0.00 | P16: 0.00 | Q16: 0.00
A17: 207 | B17: 2 | C17: 4 | D17: 文物保护 | E17: 30000.00 | F17: 0.00 | G17: 0.00 | H17: 0.00 | I17: 0.00 | J17: 30000.00 | K17: 0.00 | L17: 0.00 | M17: 30000.00 | N17: 0.00 | O17: 0.00 | P17: 0.00 | Q17: 0.00
A18: 207 | B18: 2 | C18: 5 | D18: 博物馆 | E18: 1192019.82 | F18: 1192019.82 | G18: 987619.82 | H18: 204400.00 | I18: 0.00 | J18: 0.00 | K18: 0.00 | L18: 0.00 | M18: 0.00 | N18: 0.00 | O18: 0.00 | P18: 0.00 | Q18: 0.00
A19: 208 | E19: 1352676.20 | F19: 1352676.20 | G19: 1352676.20 | H19: 0.00 | I19: 0.00 | J19: 0.00 | K19: 0.00 | L19: 0.00 | M19: 0.00 | N19: 0.00 | O19: 0.00 | P19: 0.00 | Q19: 0.00
B20: 5 | E20: 1352676.20 | F20: 1352676.20 | G20: 1352676.20 | H20: 0.00 | I20: 0.00 | J20: 0.00 | K20: 0.00 | L20: 0.00 | M20: 0.00 | N20: 0.00 | O20: 0.00 | P20: 0.00 | Q20: 0.00
A21: 208 | B21: 5 | C21: 5 | D21: 机关事业单位基本养老保险缴费支出 | E21: 403054.20 | F21: 403054.20 | G21: 403054.20 | H21: 0.00 | I21: 0.00 | J21: 0.00 | K21: 0.00 | L21: 0.00 | M21: 0.00 | N21: 0.00 | O21: 0.00 | P21: 0.00 | Q21: 0.00
A22: 208 | B22: 5 | C22: 5 | D22: 机关事业单位基本养老保险缴费支出 | E22: 182684.80 | F22: 182684.80 | G22: 182684.80 | H22: 0.00 | I22: 0.00 | J22: 0.00 | K22: 0.00 | L22: 0.00 | M22: 0.00 | N22: 0.00 | O22: 0.00 | P22: 0.00 | Q22: 0.00
A23: 208 | B23: 5 | C23: 5 | D23: 机关事业单位基本养老保险缴费支出 | E23: 208483.20 | F23: 208483.20 | G23: 208483.20 | H23: 0.00 | I23: 0.00 | J23: 0.00 | K23: 0.00 | L23: 0.00 | M23: 0.00 | N23: 0.00 | O23: 0.00 | P23: 0.00 | Q23: 0.00
A24: 208 | B24: 5 | C24: 5 | D24: 机关事业单位基本养老保险缴费支出 | E24: 200760.00 | F24: 200760.00 | G24: 200760.00 | H24: 0.00 | I24: 0.00 | J24: 0.00 | K24: 0.00 | L24: 0.00 | M24: 0.00 | N24: 0.00 | O24: 0.00 | P24: 0.00 | Q24: 0.00
A25: 208 | B25: 5 | C25: 5 | D25: 机关事业单位基本养老保险缴费支出 | E25: 100260.00 | F25: 100260.00 | G25: 100260.00 | H25: 0.00 | I25: 0.00 | J25: 0.00 | K25: 0.00 | L25: 0.00 | M25: 0.00 | N25: 0.00 | O25: 0.00 | P25: 0.00 | Q25: 0.00
A26: 208 | B26: 5 | C26: 5 | D26: 机关事业单位基本养老保险缴费支出 | E26: 257434.00 | F26: 257434.00 | G26: 257434.00 | H26: 0.00 | I26: 0.00 | J26: 0.00 | K26: 0.00 | L26: 0.00 | M26: 0.00 | N26: 0.00 | O26: 0.00 | P26: 0.00 | Q26: 0.00
A27: 221 | E27: 541070.48 | F27: 541070.48 | G27: 541070.48 | H27: 0.00 | I27: 0.00 | J27: 0.00 | K27: 0.00 | L27: 0.00 | M27: 0.00 | N27: 0.00 | O27: 0.00 | P27: 0.00 | Q27: 0.00
B28: 2 | E28: 541070.48 | F28: 541070.48 | G28: 541070.48 | H28: 0.00 | I28: 0.00 | J28: 0.00 | K28: 0.00 | L28: 0.00 | M28: 0.00 | N28: 0.00 | O28: 0.00 | P28: 0.00 | Q28: 0.00
A29: 221 | B29: 2 | C29: 1 | D29: 住房公积金 | E29: 83393.28 | F29: 83393.28 | G29: 83393.28 | H29: 0.00 | I29: 0.00 | J29: 0.00 | K29: 0.00 | L29: 0.00 | M29: 0.00 | N29: 0.00 | O29: 0.00 | P29: 0.00 | Q29: 0.00
A30: 221 | B30: 2 | C30: 1 | D30: 住房公积金 | E30: 73073.92 | F30: 73073.92 | G30: 73073.92 | H30: 0.00 | I30: 0.00 | J30: 0.00 | K30: 0.00 | L30: 0.00 | M30: 0.00 | N30: 0.00 | O30: 0.00 | P30: 0.00 | Q30: 0.00
A31: 221 | B31: 2 | C31: 1 | D31: 住房公积金 | E31: 102973.60 | F31: 102973.60 | G31: 102973.60 | H31: 0.00 | I31: 0.00 | J31: 0.00 | K31: 0.00 | L31: 0.00 | M31: 0.00 | N31: 0.00 | O31: 0.00 | P31: 0.00 | Q31: 0.00
A32: 221 | B32: 2 | C32: 1 | D32: 住房公积金 | E32: 161221.68 | F32: 161221.68 | G32: 161221.68 | H32: 0.00 | I32: 0.00 | J32: 0.00 | K32: 0.00 | L32: 0.00 | M32: 0.00 | N32: 0.00 | O32: 0.00 | P32: 0.00 | Q32: 0.00
A33: 221 | B33: 2 | C33: 1 | D33: 住房公积金 | E33: 80304.00 | F33: 80304.00 | G33: 80304.00 | H33: 0.00 | I33: 0.00 | J33: 0.00 | K33: 0.00 | L33: 0.00 | M33: 0.00 | N33: 0.00 | O33: 0.00 | P33: 0.00 | Q33: 0.00
A34: 221 | B34: 2 | C34: 1 | D34: 住房公积金 | E34: 40104.00 | F34: 40104.00 | G34: 40104.00 | H34: 0.00 | I34: 0.00 | J34: 0.00 | K34: 0.00 | L34: 0.00 | M34: 0.00 | N34: 0.00 | O34: 0.00 | P34: 0.00 | Q34: 0.00

Sheet 经费拨款（政府预算）
A2: 一般公共预算拨款--经费拨款预算表(按政府预算经济分类)
A3: 单位名称临湘市文化旅游广电新闻出版局 和 临湘市文化馆 和 临湘市图书馆 和 临湘市花鼓戏保护传承中心 和 临湘市文化市场综合执法大队 和 临湘市影剧院 和 临湘市博物馆 | Q3: 单位：元
A4: 功能科目 | D4: 功能科目 | E4: 总计 | F4: 机关工资福利支出 | G4: 机关商品和服务支出 | H4: 机关资本性支出（一） | I4: 机关资本性支出（二） | J4: 对事业单位经常性补助 | K4: 对事业单位资本性补助 | L4: 对企业补助 | M4: 对企业资本性支出 | N4: 对个人和家庭的补助 | O4: 对社会保障基金补助 | P4: 债务利息及费用支出 | Q4: 其他支出
A5: 类 | B5: 款 | C5: 项
D7: 合计 | E7: 13655630.84 | F7: 5738097.52 | G7: 1968800.00 | H7: 0.00 | I7: 310000.00 | J7: 5124173.32 | K7: 498000.00 | L7: 0.00 | M7: 0.00 | N7: 16560.00 | O7: 0.00 | P7: 0.00 | Q7: 0.00
A8: 207 | E8: 11761884.16 | F8: 4557655.32 | G8: 1968800.00 | H8: 0.00 | I8: 310000.00 | J8: 4410868.84 | K8: 498000.00 | L8: 0.00 | M8: 0.00 | N8: 16560.00 | O8: 0.00 | P8: 0.00 | Q8: 0.00
B9: 01 | E9: 10539864.34 | F9: 3570035.50 | G9: 1764400.00 | H9: 0.00 | I9: 280000.00 | J9: 4410868.84 | K9: 498000.00 | L9: 0.00 | M9: 0.00 | N9: 16560.00 | O9: 0.00 | P9: 0.00 | Q9: 0.00
A10: 207 | B10: 01 | C10: 01 | D10: 行政运行（文化） | E10: 4006349.87 | F10: 2178149.87 | G10: 1548200.00 | H10: 0.00 | I10: 280000.00 | J10: 0.00 | K10: 0.00 | L10: 0.00 | M10: 0.00 | N10: 0.00 | O10: 0.00 | P10: 0.00 | Q10: 0.00
A11: 207 | B11: 01 | C11: 01 | D11: 行政运行（文化） | E11: 150000.00 | F11: 0.00 | G11: 0.00 | H11: 0.00 | I11: 0.00 | J11: 150000.00 | K11: 0.00 | L11: 0.00 | M11: 0.00 | N11: 0.00 | O11: 0.00 | P11: 0.00 | Q11: 0.00
A12: 207 | B12: 01 | C12: 01 | D12: 行政运行（文化） | E12: 1608085.63 | F12: 1391885.63 | G12: 216200.00 | H12: 0.00 | I12: 0.00 | J12: 0.00 | K12: 0.00 | L12: 0.00 | M12: 0.00 | N12: 0.00 | O12: 0.00 | P12: 0.00 | Q12: 0.00
A13: 207 | B13: 01 | C13: 04 | D13: 图书馆 | E13: 1559741.72 | F13: 0.00 | G13: 0.00 | H13: 0.00 | I13: 0.00 | J13: 1304641.72 | K13: 250000.00 | L13: 0.00 | M13: 0.00 | N13: 5100.00 | O13: 0.00 | P13: 0.00 | Q13: 0.00
A14: 207 | B14: 01 | C14: 07 | D14: 艺术表演团体 | E14: 1996742.04 | F14: 0.00 | G14: 0.00 | H14: 0.00 | I14: 0.00 | J14: 1748742.04 | K14: 248000.00 | L14: 0.00 | M14: 0.00 | N14: 0.00 | O14: 0.00 | P14: 0.00 | Q14: 0.00
A15: 207 | B15: 01 | C15: 09 | D15: 群众文化 | E15: 1218945.08 | F15: 0.00 | G15: 0.00 | H15: 0.00 | I15: 0.00 | J15: 1207485.08 | K15: 0.00 | L15: 0.00 | M15: 0.00 | N15: 11460.00 | O15: 0.00 | P15: 0.00 | Q15: 0.00
B16: 02 | E16: 1222019.82 | F16: 987619.82 | G16: 204400.00 | H16: 0.00 | I16: 30000.00 | J16: 0.00 | K16: 0.00 | L16: 0.00 | M16: 0.00 | N16: 0.00 | O16: 0.00 | P16: 0.00 | Q16: 0.00
A17: 207 | B17: 02 | C17: 04 | D17: 文物保护 | E17: 30000.00 | F17: 0.00 | G17: 0.00 | H17: 0.00 | I17: 30000.00 | J17: 0.00 | K17: 0.00 | L17: 0.00 | M17: 0.00 | N17: 0.00 | O17: 0.00 | P17: 0.00 | Q17: 0.00
A18: 207 | B18: 02 | C18: 05 | D18: 博物馆 | E18: 1192019.82 | F18: 987619.82 | G18: 204400.00 | H18: 0.00 | I18: 0.00 | J18: 0.00 | K18: 0.00 | L18: 0.00 | M18: 0.00 | N18: 0.00 | O18: 0.00 | P18: 0.00 | Q18: 0.00
A19: 208 | E19: 1352676.20 | F19: 843173.00 | G19: 0.00 | H19: 0.00 | I19: 0.00 | J19: 509503.20 | K19: 0.00 | L19: 0.00 | M19: 0.00 | N19: 0.00 | O19: 0.00 | P19: 0.00 | Q19: 0.00
B20: 05 | E20: 1352676.20 | F20: 843173.00 | G20: 0.00 | H20: 0.00 | I20: 0.00 | J20: 509503.20 | K20: 0.00 | L20: 0.00 | M20: 0.00 | N20: 0.00 | O20: 0.00 | P20: 0.00 | Q20: 0.00
A21: 208 | B21: 05 | C21: 05 | D21: 机关事业单位基本养老保险缴费支出 | E21: 257434.00 | F21: 257434.00 | G21: 0.00 | H21: 0.00 | I21: 0.00 | J21: 0.00 | K21: 0.00 | L21: 0.00 | M21: 0.00 | N21: 0.00 | O21: 0.00 | P21: 0.00 | Q21: 0.00
A22: 208 | B22: 05 | C22: 05 | D22: 机关事业单位基本养老保险缴费支出 | E22: 208483.20 | F22: 0.00 | G22: 0.00 | H22: 0.00 | I22: 0.00 | J22: 208483.20 | K22: 0.00 | L22: 0.00 | M22: 0.00 | N22: 0.00 | O22: 0.00 | P22: 0.00 | Q22: 0.00
A23: 208 | B23: 05 | C23: 05 | D23: 机关事业单位基本养老保险缴费支出 | E23: 200760.00 | F23: 0.00 | G23: 0.00 | H23: 0.00 | I23: 0.00 | J23: 200760.00 | K23: 0.00 | L23: 0.00 | M23: 0.00 | N23: 0.00 | O23: 0.00 | P23: 0.00 | Q23: 0.00
A24: 208 | B24: 05 | C24: 05 | D24: 机关事业单位基本养老保险缴费支出 | E24: 403054.20 | F24: 403054.20 | G24: 0.00 | H24: 0.00 | I24: 0.00 | J24: 0.00 | K24: 0.00 | L24: 0.00 | M24: 0.00 | N24: 0.00 | O24: 0.00 | P24: 0.00 | Q24: 0.00
A25: 208 | B25: 05 | C25: 05 | D25: 机关事业单位基本养老保险缴费支出 | E25: 182684.80 | F25: 182684.80 | G25: 0.00 | H25: 0.00 | I25: 0.00 | J25: 0.00 | K25: 0.00 | L25: 0.00 | M25: 0.00 | N25: 0.00 | O25: 0.00 | P25: 0.00 | Q25: 0.00
A26: 208 | B26: 05 | C26: 05 | D26: 机关事业单位基本养老保险缴费支出 | E26: 100260.00 | F26: 0.00 | G26: 0.00 | H26: 0.00 | I26: 0.00 | J26: 100260.00 | K26: 0.00 | L26: 0.00 | M26: 0.00 | N26: 0.00 | O26: 0.00 | P26: 0.00 | Q26: 0.00
A27: 221 | E27: 541070.48 | F27: 337269.20 | G27: 0.00 | H27: 0.00 | I27: 0.00 | J27: 203801.28 | K27: 0.00 | L27: 0.00 | M27: 0.00 | N27: 0.00 | O27: 0.00 | P27: 0.00 | Q27: 0.00
B28: 02 | E28: 541070.48 | F28: 337269.20 | G28: 0.00 | H28: 0.00 | I28: 0.00 | J28: 203801.28 | K28: 0.00 | L28: 0.00 | M28: 0.00 | N28: 0.00 | O28: 0.00 | P28: 0.00 | Q28: 0.00
A29: 221 | B29: 02 | C29: 01 | D29: 住房公积金 | E29: 83393.28 | F29: 0.00 | G29: 0.00 | H29: 0.00 | I29: 0.00 | J29: 83393.28 | K29: 0.00 | L29: 0.00 | M29: 0.00 | N29: 0.00 | O29: 0.00 | P29: 0.00 | Q29: 0.00
A30: 221 | B30: 02 | C30: 01 | D30: 住房公积金 | E30: 73073.92 | F30: 73073.92 | G30: 0.00 | H30: 0.00 | I30: 0.00 | J30: 0.00 | K30: 0.00 | L30: 0.00 | M30: 0.00 | N30: 0.00 | O30: 0.00 | P30: 0.00 | Q30: 0.00
A31: 221 | B31: 02 | C31: 01 | D31: 住房公积金 | E31: 161221.68 | F31: 161221.68 | G31: 0.00 | H31: 0.00 | I31: 0.00 | J31: 0.00 | K31: 0.00 | L31: 0.00 | M31: 0.00 | N31: 0.00 | O31: 0.00 | P31: 0.00 | Q31: 0.00
A32: 221 | B32: 02 | C32: 01 | D32: 住房公积金 | E32: 40104.00 | F32: 0.00 | G32: 0.00 | H32: 0.00 | I32: 0.00 | J32: 40104.00 | K32: 0.00 | L32: 0.00 | M32: 0.00 | N32: 0.00 | O32: 0.00 | P32: 0.00 | Q32: 0.00
A33: 221 | B33: 02 | C33: 01 | D33: 住房公积金 | E33: 80304.00 | F33: 0.00 | G33: 0.00 | H33: 0.00 | I33: 0.00 | J33: 80304.00 | K33: 0.00 | L33: 0.00 | M33: 0.00 | N33: 0.00 | O33: 0.00 | P33: 0.00 | Q33: 0.00
A34: 221 | B34: 02 | C34: 01 | D34: 住房公积金 | E34: 102973.60 | F34: 102973.60 | G34: 0.00 | H34: 0.00 | I34: 0.00 | J34: 0.00 | K34: 0.00 | L34: 0.00 | M34: 0.00 | N34: 0.00 | O34: 0.00 | P34: 0.00 | Q34: 0.00

Sheet 专项
A2: 专项资金预算汇总表
A3: 单位名称临湘市文化旅游广电新闻出版局 和 临湘市文化馆 和 临湘市图书馆 和 临湘市花鼓戏保护传承中心 和 临湘市文化市场综合执法大队 和 临湘市影剧院 和 临湘市博物馆 | H3: 单位：元
A4: 项目名称 | B4: 总计 | C4: 一般预算拨款 | E4: 纳入专户管理的非税收入拨款 | F4: 政府性基金拨款 | G4: 上级补助收入 | H4: 其他收入
C5: 经费拨款 | D5: 纳入预算管理的非税收入拨款
B6: 3676000.00 | C6: 3266000.00 | D6: 410000.00 | E6: 0.00 | F6: 0.00 | G6: 0.00 | H6: 0.00
A7: 监管平台 | B7: 60000.00 | C7: 0.00 | D7: 60000.00 | E7: 0.00 | F7: 0.00 | G7: 0.00 | H7: 0.00
A8: 旅游宣传促销 | B8: 70000.00 | C8: 70000.00 | D8: 0.00 | E8: 0.00 | F8: 0.00 | G8: 0.00 | H8: 0.00
A9: 嗡琴戏人员工作经费 | B9: 800000.00 | C9: 800000.00 | D9: 0.00 | E9: 0.00 | F9: 0.00 | G9: 0.00 | H9: 0.00
A10: 一元剧场 | B10: 216000.00 | C10: 216000.00 | D10: 0.00 | E10: 0.00 | F10: 0.00 | G10: 0.00 | H10: 0.00
A11: 文学创作奖励基金 | B11: 80000.00 | C11: 80000.00 | D11: 0.00 | E11: 0.00 | F11: 0.00 | G11: 0.00 | H11: 0.00
A12: 图书购置费 | B12: 250000.00 | C12: 250000.00 | D12: 0.00 | E12: 0.00 | F12: 0.00 | G12: 0.00 | H12: 0.00
A13: 公共文化服务体系运行保障经费 | B13: 950000.00 | C13: 950000.00 | D13: 0.00 | E13: 0.00 | F13: 0.00 | G13: 0.00 | H13: 0.00
A14: 龙窖山开发保护及遗址考古 | B14: 180000.00 | C14: 180000.00 | D14: 0.00 | E14: 0.00 | F14: 0.00 | G14: 0.00 | H14: 0.00
A15: 影剧院维修经费 | B15: 150000.00 | C15: 150000.00 | D15: 0.00 | E15: 0.00 | F15: 0.00 | G15: 0.00 | H15: 0.00
A16: 执法工作经费 | B16: 200000.00 | C16: 0.00 | D16: 200000.00 | E16: 0.00 | F16: 0.00 | G16: 0.00 | H16: 0.00
A17: 送戏下乡 | B17: 540000.00 | C17: 540000.00 | D17: 0.00 | E17: 0.00 | F17: 0.00 | G17: 0.00 | H17: 0.00
A18: 文物考古调查勘探费 | B18: 40000.00 | C18: 30000.00 | D18: 10000.00 | E18: 0.00 | F18: 0.00 | G18: 0.00 | H18: 0.00
A19: 能力建设费 | B19: 140000.00 | C19: 0.00 | D19: 140000.00 | E19: 0.00 | F19: 0.00 | G19: 0.00 | H19: 0.00

Sheet 三公
A1: 一般公共预算“三公”经费预算表
A2: 单位名称临湘市文化旅游广电新闻出版局 和 临湘市文化馆 和 临湘市图书馆 和 临湘市花鼓戏保护传承中心 和 临湘市文化市场综合执法大队 和 临湘市影剧院 和 临湘市博物馆 | G2: 单位：元
A3: 单位名称 | B3: 三公经费预算数(一般公共预算拨款)
B4: 小计 | C4: 公务接待费 | D4: 公务用车购置及运行费 | E4: 其中： | G4: 因公出国(境)费用
E5: 公务用车购置费 | F5: 公务用车运行维护费
A6: 合计 | B6: 189500.00 | C6: 167500.00 | D6: 22000.00 | E6: 0.00 | F6: 22000.00 | G6: 0.00
B7: 189500.00 | C7: 167500.00 | D7: 22000.00 | E7: 0.00 | F7: 22000.00 | G7: 0.00
A8: 临湘市影剧院 | B8: 10000.00 | C8: 10000.00 | D8: 0.00 | E8: 0.00 | F8: 0.00 | G8: 0.00
A9: 临湘市文化市场综合执法大队 | B9: 16500.00 | C9: 16500.00 | D9: 0.00 | E9: 0.00 | F9: 0.00 | G9: 0.00
A10: 临湘市花鼓戏保护传承中心 | B10: 30000.00 | C10: 8000.00 | D10: 22000.00 | E10: 0.00 | F10: 22000.00 | G10: 0.00
A11: 临湘市图书馆 | B11: 25000.00 | C11: 25000.00 | D11: 0.00 | E11: 0.00 | F11: 0.00 | G11: 0.00
A12: 临湘市文化馆 | B12: 33000.00 | C12: 33000.00 | D12: 0.00 | E12: 0.00 | F12: 0.00 | G12: 0.00
A13: 临湘市文化旅游广电新闻出版局 | B13: 65000.00 | C13: 65000.00 | D13: 0.00 | E13: 0.00 | F13: 0.00 | G13: 0.00
A14: 临湘市博物馆 | B14: 10000.00 | C14: 10000.00 | D14: 0.00 | E14: 0.00 | F14: 0.00 | G14: 0.00

Sheet 绩效目标整体申报
A1: 整体支出绩效目标申报表
A2: 单位名称临湘市文化旅游广电新闻出版局 和 临湘市文化馆 和 临湘市图书馆 和 临湘市花鼓戏保护传承中心 和 临湘市文化市场综合执法大队 和 临湘市影剧院 和 临湘市博物馆 | V2: 单位：万元
A3: 单位编码 | B3: 单位名称 | C3: 预算绩效管理联络员 | D3: 联系电话 | E3: 人员编制数 | F3: 实有人数 | G3: 单位职能 | H3: 单位年度收入预算（万元） | M3: 单位年度支出预算（万元） | T3: 部门整体支出年度绩效目标 | U3: 其他说明的问题 | V3: 财政部门审核意见
H4: 收入合计 | I4: 公共财政拨款 | J4: 政府性基金拨款 | K4: 非税收入拨款 | L4: 其他拨款 | M4: 支出合计 | N4: 基本支出 | O4: 项目支出 | P4: 其中三公经费预算（万元） | Q4: 公务用车运行和购置费 | R4: 公务接待费 | S4: 因公出国（境）费
A5: ** | B5: ** | C5: ** | D5: ** | E5: 1 | F5: 2 | G5: 3 | H5: 4 | I5: 5 | J5: 6 | K5: 7 | L5: 8 | M5: 9 | N5: 10 | O5: 11 | P5: 12 | Q5: 13 | R5: 14 | S5: 15 | T5: 16 | U5: 17 | V5: 18
A6: 403006 | B6: 临湘市文化市场综合执法大队 | D6: 3723745 | E6: 23 | F6: 23 | H6: 242.03 | I6: 192.83 | J6: 0.00 | K6: 40.00 | L6: 9.20 | M6: 267.71 | N6: 227.71 | O6: 40.00 | P6: 1.65 | Q6: 0.00 | R6: 1.65 | S6: 0.00
A7: 403004 | B7: 临湘市图书馆 | C7: 黄菊花 | D7: 3723691 | E7: 17 | F7: 24 | G7: 保存借阅图书资料，促进社会经济发展。负责图书资料借阅、推进市图书馆事业网络化、标准化、现代化发展。 | H7: 185.16 | I7: 185.16 | J7: 0.00 | K7: 0.00 | L7: 0.00 | M7: 185.16 | N7: 160.16 | O7: 25.00 | P7: 2.50 | Q7: 0.00 | R7: 2.50 | S7: 0.00 | T7: 图书齐备 | U7: 实有编制17人.财政统发16人.
A8: 403001 | B8: 临湘市文化旅游广电新闻出版局 | C8: 周路容 | D8: 3722658 | E8: 35 | F8: 35 | G8: 贯彻党政府有关文化旅游广电新闻出版工作的方针政策和法规，研究制定全市文化旅游广电新闻出版工作的规划、规章并监督执行。 | H8: 456.69 | I8: 441.34 | J8: 0.00 | K8: 0.00 | L8: 15.35 | M8: 456.69 | N8: 328.69 | O8: 128.00 | P8: 6.50 | Q8: 0.00 | R8: 6.50 | S8: 0.00
A9: 403002 | B9: 临湘市文化馆 | C9: 曹康英 | D9: 3722564 | E9: 18 | F9: 18 | G9: 组织群众文化活动，繁荣群众文化事业。负责开展文化宣传、文化活动组织、相关培训、指导群众业余文艺创作及全民美育教育 | H9: 157.20 | I9: 150.00 | J9: 0.00 | K9: 0.00 | L9: 7.20 | M9: 157.20 | N9: 157.20 | O9: 0.00 | P9: 3.30 | Q9: 0.00 | R9: 3.30 | S9: 0.00
A10: 403007 | B10: 临湘市影剧院 | C10: 钱丹 | D10: 13548922 | E10: 0 | F10: 0 | G10: 承担政府功能性会议、汇报、演出、“演艺惠民”及“一元剧场”等各项惠民演出活动。 | H10: 41.52 | I10: 15.00 | J10: 0.00 | K10: 20.00 | L10: 6.52 | M10: 41.52 | N10: 26.52 | O10: 15.00 | P10: 1.00 | Q10: 0.00 | R10: 1.00 | S10: 0.00
A11: 403008 | B11: 临湘市博物馆 | C11: 张斌香 | D11: 3730387 | E11: 16 | F11: 19 | G11: 收藏展览文物，弘扬民族文化。负责文物展览、文物市场的稽查工作和征集流散文物、宣传文博方面的有关法律法规。 | H11: 146.94 | I11: 141.84 | J11: 0.00 | K11: 5.00 | L11: 0.10 | M11: 146.94 | N11: 142.94 | O11: 4.00 | P11: 1.00 | Q11: 0.00 | R11: 1.00 | S11: 0.00
A12: 403005 | B12: 临湘市花鼓戏保护传承中心 | C12: 曾伟 | D12: 3767543 | E12: 11 | F12: 11 | H12: 233.11 | I12: 233.11 | J12: 0.00 | K12: 0.00 | L12: 0.00 | M12: 233.11 | N12: 77.51 | O12: 155.60 | P12: 3.00 | Q12: 2.20 | R12: 0.80 | S12: 0.00

Sheet 项目绩效目标申报表
A2: 项 目 绩 效 目 标 申 报 表
A4: 单位编码 | B4: 单位名称 | C4: 主管部门 | D4: 项目起止时间 | E4: 项目属性 | F4: 项目类型 | G4: 项目负责人 | H4: 联系电话 | I4: 项目概况 | J4: 项目立项依据 | K4: 项目资金情况 | V4: 单位已有（或拟定）保证项目实施的制度与措施 | W4: 绩效目标 | AZ4: 其他说明的问题 | BA4: 财政部门审核意见
K5: 项目资金申请 | S5: 支出明细预算 | W5: 长期目标 | X5: 年度目标 | Y5: 产出指标 | AK5: 效益指标
K6: 市级资金 | M6: 省级资金 | O6: 中央资金 | Q6: 自有资金 | S6: 上年度安排资金 | T6: 本年度申请资金 | U6: 测算依据及说明 | Y6: 数量指标 | AB6: 质量指标 | AE6: 时效指标 | AH6: 成本指标 | AK6: 经济效益指标 | AN6: 社会效益指标 | AQ6: 生态效益指标 | AT6: 可持续指标 | AW6: 社会公众或服务对象满意度
K7: 上年度安排资金（市级） | L7: 本年度申请资金（市级） | M7: 上年度安排资金（省级） | N7: 本年度申请资金（省级） | O7: 上年度安排资金（中央） | P7: 本年度申请资金（中央） | Q7: 上年度安排资金（自有） | R7: 本年度申请资金（自有） | Y7: 指标内容（数量） | Z7: 指标值（数量） | AA7: 备注（数量） | AB7: 指标内容（质量） | AC7: 指标值（质量） | AD7: 备注（质量） | AE7: 指标内容（时效） | AF7: 指标值（时效） | AG7: 备注（时效） | AH7: 指标内容（成本） | AI7: 指标值（成本） | AJ7: 备注（成本） | AK7: 指标内容（经济） | AL7: 指标值（经济） | AM7: 备注（经济） | AN7: 指标内容（社会） | AO7: 指标值（社会） | AP7: 备注（社会） | AQ7: 指标内容（生态） | AR7: 指标值（生态） | AS7: 备注（生态） | AT7: 指标内容（可持续） | AU7: 指标值（可持续） | AV7: 备注（可持续） | AW7: 指标内容 | AX7: 指标值 | AY7: 备注
A9: ** | B9: ** | C9: ** | D9: ** | E9: ** | F9: ** | G9: ** | H9: ** | I9: ** | J9: ** | K9: 1 | L9: 2 | M9: 3 | N9: 4 | O9: 5 | P9: 6 | Q9: 7 | R9: 8 | S9: 9 | T9: 10 | U9: 11 | V9: 12 | W9: 13 | X9: 14 | Y9: 15 | Z9: 16 | AA9: 17 | AB9: 18 | AC9: 19 | AD9: 20 | AE9: 21 | AF9: 22 | AG9: 23 | AH9: 24 | AI9: 25 | AJ9: 26 | AK9: 27 | AL9: 28 | AM9: 29 | AN9: 30 | AO9: 31 | AP9: 32 | AQ9: 33 | AR9: 34 | AS9: 35 | AT9: 36 | AU9: 37 | AV9: 38 | AW9: 39 | AX9: 40 | AY9: 41
B10: 合计 | K10: 100,277.00 | L10: 30,279.00 | M10: 0.00 | N10: 0.00 | O10: 0.00 | P10: 0.00 | Q10: 0.00 | R10: 0.00 | S10: 100,297.00 | T10: 110,799.00
A11: 403001 | B11: 临湘市文化旅游广电新闻出版局 | C11: 教科文股 | D11: 2019年 | E11: 延续项目 | F11: 其他专项类 | K11: 7.00 | L11: 7.00 | M11: 0.00 | N11: 0.00 | O11: 0.00 | P11: 0.00 | Q11: 0.00 | R11: 0.00 | S11: 7.00 | T11: 7.00 | U11: 临办发[2011]9号 | V11: 《临湘市旅游发展专项资金管理办法》
A12: 403001 | B12: 临湘市文化旅游广电新闻出版局 | C12: 教科文股 | D12: 2015－2020 | E12: 延续项目 | F12: 其他专项类 | I12: 到2020年，基本建成覆盖城乡，便捷高效，保基本、促公平的现代公共文化服务体系. | K12: 150.00 | L12: 108.00 | M12: 0.00 | N12: 0.00 | O12: 0.00 | P12: 0.00 | Q12: 0.00 | R12: 0.00 | S12: 150.00 | T12: 108.00 | U12: 中办发[2015]2号
A13: 403001 | B13: 临湘市文化旅游广电新闻出版局 | C13: 教科文股 | D13: 2019年 | E13: 延续项目 | F13: 其他专项类 | G13: 陆如勇 | H13: 3722658 | K13: 18.00 | L13: 18.00 | M13: 0.00 | N13: 0.00 | O13: 0.00 | P13: 0.00 | Q13: 0.00 | R13: 0.00 | S13: 18.00 | T13: 18.00
A14: 403001 | B14: 临湘市文化旅游广电新闻出版局 | C14: 教科文股 | D14: 2019年 | E14: 延续项目 | F14: 其他专项类 | K14: 8.00 | L14: 8.00 | M14: 0.00 | N14: 0.00 | O14: 0.00 | P14: 0.00 | Q14: 0.00 | R14: 0.00 | S14: 8.00 | T14: 8.00
A15: 403004 | B15: 临湘市图书馆 | C15: 教科文股 | D15: 2019.01-2019.12 | E15: 延续项目 | F15: 采购类 | G15: 陈谋 | H15: 6723691 | I15: 根据国家一级图书馆的评估标准，人均购书达到0.8册，每年新购图书达4万册左右，需购书经费40万。 | J15: 湘文公共[2017]11号.中办发[2015]2号，财政[2013]98号 | K15: 40.00 | L15: 25.00 | M15: 0.00 | N15: 0.00 | O15: 0.00 | P15: 0.00 | Q15: 0.00 | R15: 0.00 | S15: 40.00 | T15: 25.00 | U15: 根据国家一级图书馆的评估标准，人均购书达到0.8册，每年新购图书达4万册左右，需购书经费40万。财政【2013】98号 | V15: 1、根据图书馆年度图书采购计划，向政府采购办申请招标立项由图书馆招标组织向社会公开招标。2、图书馆通过招标或经过相关领导批准同于续标的供应商采购纸质图书。3、纸质图书由采购部负责实施年度采购计划。 | W15: 2019新购书1.68万册，购书经费达48万元 | X15: 按创建国家公共文化服务体系标准，每年人均增书0.8册，年增1.68万册 | Y15: 2019新购书1.68万册，购书经费达48万元 | Z15: 2019新购书1.68万册，购书经费达48万元 | AE15: 加强和改进公共文化服务，提升文化服务水平，丰富群众文化生活，繁荣社会主义先进文化都是有十分重要的意义。 | AF15: 加强和改进公共文化服务，提升文化服务水平，丰富群众文化生活，繁荣社会主义先进文化都是有十分重要的意义。 | AH15: 年增新书量1.6万册，购书费40万元 | AI15: 年增新书量1.6万册，购书费40万元 | AK15: 加强和改进公共文化服务，提升文化服务水平，丰富群众文化生活，繁荣社会主义先进文化都是有十分重要的意义。 | AL15: 加强和改进公共文化服务，提升文化服务水平，丰富群众文化生活，繁荣社会主义先进文化都是有十分重要的意义。 | AN15: 加强和改进公共文化服务，提升文化服务水平，丰富群众文化生活，繁荣社会主义先进文化都是有十分重要的意义。 | AO15: 加强和改进公共文化服务，提升文化服务水平，丰富群众文化生活，繁荣社会主义先进文化都是有十分重要的意义。 | AW15: 加强和改进公共文化服务，提升文化服务水平，丰富群众文化生活，繁荣社会主义先进文化都是有十分重要的意义 | AX15: 加强和改进公共文化服务，提升文化服务水平，丰富群众文化生活，繁荣社会主义先进文化都是有十分重要的意义
A16: 403005 | B16: 临湘市花鼓戏保护传承中心 | C16: 教科文股 | D16: 2019年1月1日到12月30 | F16: 其他专项类 | G16: 曾伟 | H16: 13607400002 | I16: 市委会议纪要临常[2018]3号 | J16: 市委会议纪要临常[2018]3号文件，解决12名工作人员经费 | K16: 0.00 | L16: 80.00 | M16: 0.00 | N16: 0.00 | O16: 0.00 | P16: 0.00 | Q16: 0.00 | R16: 0.00 | S16: 0.00 | T16: 80.00
A17: 403005 | B17: 临湘市花鼓戏保护传承中心 | C17: 教科文股 | D17: 2019年1月1日至12月31 | E17: 延续项目 | F17: 其他专项类 | G17: 曾伟 | H17: 13607400002 | J17: 根据湖南省财政厅、湖南省文化厅文件湘财教[2010]72号关于“十二五”期间开展“送戏下乡演艺惠民”活动有关问题的通知 | K17: 54.00 | L17: 33.00 | M17: 0.00 | N17: 0.00 | O17: 0.00 | P17: 0.00 | Q17: 0.00 | R17: 0.00 | S17: 54.00 | T17: 33.00
A18: 403006 | B18: 临湘市文化市场综合执法大队 | C18: 教科文股 | D18: 2019年1月-2019年12月 | E18: 新增项目 | F18: 采购类 | G18: 吴国良 | K18: 0.00 | L18: 0.00 | M18: 0.00 | N18: 0.00 | O18: 0.00 | P18: 0.00 | Q18: 0.00 | R18: 0.00 | S18: 0.00 | T18: 80,500.00
A19: 403007 | B19: 临湘市影剧院 | C19: 教科文股 | D19: 2019 | E19: 延续项目 | K19: 0.00 | L19: 0.00 | M19: 0.00 | N19: 0.00 | O19: 0.00 | P19: 0.00 | Q19: 0.00 | R19: 0.00 | S19: 20.00 | T19: 20.00 | BB19: 0 | BC19: 0
A20: 403008 | B20: 临湘市博物馆 | C20: 教科文股 | D20: 2019年 | E20: 延续项目 | F20: 其他专项类 | G20: 沈旭曦 | H20: 07303730387 | I20: 1、各级文物保护单位安全保护；2、文物法律、法规宣传；3、文物市场稽查；4、各级文物保护单位保护标志栽竖；5、流散文物征集。 | J20: 中华人民共和国文物保护法第十条 | K20: 100,000.00 | L20: 30,000.00 | M20: 0.00 | N20: 0.00 | O20: 0.00 | P20: 0.00 | Q20: 0.00 | R20: 0.00 | S20: 100,000.00 | T20: 30,000.00

Sheet 5-政府采购预算表
O1: 录入05表
A2: 2019年部门预算政府采购预算表
O3: 单位：元
A4: 单位编码 | B4: 单位名称 | C4: 类别 | D4: 采购项目 | E4: 采购品目 | F4: 采购数量 | G4: 计量单位 | H4: 总计 | I4: 经费拨款 | J4: 纳入预算管理的非税收入 | K4: 纳入专户管理的非税收入 | L4: 政府性基金 | M4: 上级补助收入 | N4: 其他收入 | O4: 提前下达
B6: 合计 | F6: 16,830 | H6: 55.00 | I6: 55.00 | J6: 0.00 | K6: 0.00 | L6: 0.00 | M6: 0.00 | N6: 0.00 | O6: 0.00
B7: 临湘市花鼓戏保护传承中心 | F7: 30 | H7: 30.00 | I7: 30.00 | J7: 0.00 | K7: 0.00 | L7: 0.00 | M7: 0.00 | N7: 0.00 | O7: 0.00
A8: 403005 | B8: 临湘市花鼓戏保护传承中心 | C8: 货物类 | D8: 送戏下乡 | E8: 办公设备 | F8: 30 | G8: 件 | H8: 30.00 | I8: 30.00 | J8: 0.00 | K8: 0.00 | L8: 0.00 | M8: 0.00 | N8: 0.00 | O8: 0.00
B9: 临湘市图书馆 | F9: 16,800 | H9: 25.00 | I9: 25.00 | J9: 0.00 | K9: 0.00 | L9: 0.00 | M9: 0.00 | N9: 0.00 | O9: 0.00
A10: 403004 | B10: 临湘市图书馆 | C10: 货物类 | D10: 图书购置费 | E10: 图书档案设备 | F10: 16,800 | G10: 册 | H10: 25.00 | I10: 25.00 | J10: 0.00 | K10: 0.00 | L10: 0.00 | M10: 0.00 | N10: 0.00 | O10: 0.00

Sheet 绩效目标-附表
A1: 绩效目标申报表-附表
E2: 单位：万元
A3: 单位名称 | B3: 项目名称 | C3: 标准或依据 | D3: 预算人数及其他 | E3: 金额
A4: 临湘市文化市场综合执法大队 | B4: 住房公积金 | C4: 按部门预算要求及标准填列 | D4: 23人 | E4: 10.29
A5: 临湘市文化市场综合执法大队 | B5: 基本工资 | C5: 按部门预算要求及标准填列 | D5: 23人 | E5: 73.98
A6: 临湘市文化市场综合执法大队 | B6: 一般商品何服务支出 | C6: 按部门预算要求及标准填列 | D6: 自筹2人 | E6: 0.20
A7: 临湘市花鼓戏保护传承中心 | B7: 送戏下乡 | E7: 54.00
A8: 临湘市图书馆 | B8: 抚恤 | C8: 按部门预算要求及标准填列 | E8: 0.51
A9: 临湘市图书馆 | B9: 绩效工资 | C9: 按部门预算要求及标准填列 | E9: 28.08
A10: 临湘市图书馆 | B10: 奖励性绩效 | C10: 按部门预算要求及标准填列 | E10: 11.52
A11: 临湘市文化市场综合执法大队 | B11: 奖励性绩效 | C11: 按部门预算要求及标准填列 | D11: 23人 | E11: 3.60
A12: 临湘市文化市场综合执法大队 | B12: 一般商品何服务支出 | C12: 按部门预算要求及标准填列 | D12: 23人 | E12: 26.80
A13: 临湘市图书馆 | B13: 基本工资 | C13: 按部门预算要求及标准填列 | D13: 图书馆编制人员17人 | E13: 60.34
A14: 临湘市图书馆 | B14: 生育保险 | C14: 按部门预算要求及标准填列 | E14: 0.50
A15: 临湘市图书馆 | B15: 养老金及职业年金 | C15: 按部门预算要求及标准填列 | E15: 19.99
A16: 临湘市图书馆 | B16: 医保基金 | C16: 按部门预算要求及标准填列 | E16: 7.00
A17: 临湘市文化市场综合执法大队 | B17: 绩效工资 | C17: 按部门预算要求及标准填列 | D17: 23人 | E17: 7.80
A18: 临湘市文化旅游广电新闻出版局 | D18: 35 | E18: 456.69
A19: 临湘市花鼓戏保护传承中心 | B19: 一元剧场 | E19: 21.60
A20: 临湘市图书馆 | B20: 工伤保险 | C20: 按部门预算要求及标准填列 | E20: 0.57
A21: 临湘市花鼓戏保护传承中心 | B21: 嗡琴戏人员工作经费 | E21: 80.00
A22: 临湘市花鼓戏保护传承中心 | B22: 基本支出 | E22: 77.51
A23: 临湘市图书馆 | B23: 一般商品服务支出 | C23: 按部门预算要求及标准填列 | E23: 16.80
A24: 临湘市图书馆 | B24: 住房公积金 | C24: 按部门预算要求及标准填列 | E24: 8.00
A25: 临湘市文化市场综合执法大队 | B25: 机关事业单位养老保险缴费 | C25: 按部门预算要求及标准填列 | D25: 23人 | E25: 25.74
A26: 临湘市文化旅游广电新闻出版局汇总 | B26: 基本支出 | C26: 年初预算 | E26: 1120.73
A27: 临湘市文化旅游广电新闻出版局汇总 | B27: 项目支出 | C27: 年初预算 | E27: 367.6
